﻿Directorate,Service,Division,Responsible Unit,Expense Type,Payment Date,Trans No,Net Amount,Supplier Name
Adults Services,Public Health,Smoking and Tobacco,Public Health Team - 2,Payments to Private Contractors - Other Contractors,02/10/2015,3480148,"1,012.65",ALLENS PHARMACY
Adults Services,Public Health,Smoking and Tobacco,Public Health Team - 2,Payments to Private Contractors - Other Contractors,02/10/2015,3499528,678.90,Guardian Pharmacy t/a Lansbury Chemist
Adults Services,Adult Social Care,Older People (Aged 65 or over) including Older Mental Ill,Learning Dis Commissioning,Social Care - Help to Live at Home,02/10/2015,3505273,"5,678.00",Church House
Adults Services,Adult Social Care,Older People (Aged 65 or over) including Older Mental Ill,Learning Dis Commissioning,Social Care - Personal Budgets - Non-Trad Service,02/10/2015,3505278,"3,105.00",QALB Centre Short Break Services
Adults Services,Public Health,Smoking and Tobacco,Public Health Team - 2,Third Party Payments - Other Establishments,02/10/2015,3505658,611.00,North West London Hospitals NHS Trust
Adults Services,Adult Social Care,Older People (Aged 65 or over) including Older Mental Ill,Physical Dis Commissioning,Social Care - Homecare,02/10/2015,3507922,"5,425.42",Interserve Healthcare
Adults Services,Adult Social Care,Older People (Aged 65 or over) including Older Mental Ill,Older People Commissioning,Social Care - Residential Care,02/10/2015,3508086,"2,228.57",Cheriton Residential Care Home
Adults Services,Adult Social Care,Older People (Aged 65 or over) including Older Mental Ill,Older People Commissioning,Social Care - Residential Care,02/10/2015,3509149,"3,214.28",Scimitar Care Hotels PLC
Adults Services,Adult Social Care,Older People (Aged 65 or over) including Older Mental Ill,Older People Commissioning,Social Care - Residential Care,02/10/2015,3509149,-912.26,Scimitar Care Hotels PLC
Adults Services,Adult Social Care,Older People (Aged 65 or over) including Older Mental Ill,Older People Commissioning,Social Care - Nursing Care,02/10/2015,3509238,"3,123.86",Catchpole Court Care Home
Adults Services,Adult Social Care,Older People (Aged 65 or over) including Older Mental Ill,Older People Commissioning,Social Care - Nursing Care,02/10/2015,3509295,"4,448.57",Heathlands Care Home
Adults Services,Adult Social Care,Older People (Aged 65 or over) including Older Mental Ill,Older People Commissioning,Social Care - Nursing Care,02/10/2015,3509296,"3,591.43",Heathlands Care Home
Adults Services,Adult Social Care,Older People (Aged 65 or over) including Older Mental Ill,Older People Commissioning,Social Care - Nursing Care,02/10/2015,3509318,"2,305.71",Ladyville Lodge Care Home (part of Four Seasons Health Care Ltd
Adults Services,Adult Social Care,Older People (Aged 65 or over) including Older Mental Ill,Older People Commissioning,Social Care - Nursing Care,02/10/2015,3509323,"2,593.59",Sunhill Court
Adults Services,Adult Social Care,Older People (Aged 65 or over) including Older Mental Ill,Learning Dis Commissioning,Social Care - Residential Care,02/10/2015,3511336,"4,163.87",OUTLOOK HOUSE
Adults Services,Adult Social Care,Older People (Aged 65 or over) including Older Mental Ill,Learning Dis Commissioning,Social Care - Residential Care,02/10/2015,3511358,"7,505.79",THE JOHN TOWNSEND TRUST
Adults Services,Adult Social Care,Older People (Aged 65 or over) including Older Mental Ill,Learning Dis Commissioning,Social Care - Residential Care,02/10/2015,3511409,"7,714.29",ELEANOR NURSING CARE LTD
Adults Services,Adult Social Care,Older People (Aged 65 or over) including Older Mental Ill,Physical Dis Commissioning,Social Care - Day Care,02/10/2015,3512510,810.44,HEADWAY EAST LONDON
Adults Services,Adult Social Care,Older People (Aged 65 or over) including Older Mental Ill,Physical Dis Commissioning,Social Care - Day Care,02/10/2015,3512512,686.80,HEADWAY EAST LONDON
Adults Services,Adult Social Care,Older People (Aged 65 or over) including Older Mental Ill,Physical Dis Commissioning,Social Care - Day Care,02/10/2015,3512514,686.80,HEADWAY EAST LONDON
Adults Services,Adult Social Care,Older People (Aged 65 or over) including Older Mental Ill,Physical Dis Commissioning,Social Care - Day Care,02/10/2015,3512515,889.50,HEADWAY EAST LONDON
Adults Services,Adult Social Care,Older People (Aged 65 or over) including Older Mental Ill,Physical Dis Commissioning,Social Care - Day Care,02/10/2015,3512516,"1,011.12",HEADWAY EAST LONDON
Adults Services,Adult Social Care,Older People (Aged 65 or over) including Older Mental Ill,Physical Dis Commissioning,Social Care - Day Care,02/10/2015,3512521,531.36,HEADWAY EAST LONDON
Adults Services,Adult Social Care,Older People (Aged 65 or over) including Older Mental Ill,Physical Dis Commissioning,Social Care - Personal Budgets - Cash,02/10/2015,3513057,"-1,004.98",DAVID HOWARD LTD CLIENT ACCOUNT
Adults Services,Adult Social Care,Older People (Aged 65 or over) including Older Mental Ill,Physical Dis Commissioning,Social Care - Personal Budgets - Cash,02/10/2015,3513058,"-5,701.66",DAVID HOWARD LTD CLIENT ACCOUNT
Adults Services,Adult Social Care,Older People (Aged 65 or over) including Older Mental Ill,Physical Dis Commissioning,Social Care - Personal Budgets - Cash,02/10/2015,3513060,"-1,410.80",DAVID HOWARD LTD CLIENT ACCOUNT
Adults Services,Public Health,Smoking and Tobacco,Public Health Team - 2,Third Party Payments - Other Establishments,05/10/2015,3499610,-594.00,NORTH EAST LONDON NHS FOUNDATION
Adults Services,Adult Social Care,Older People (Aged 65 or over) including Older Mental Ill,Older People Commissioning,Social Care - Residential Care,05/10/2015,3501439,"2,898.50",H-C ONE
Adults Services,Public Health,Children 519 Public Health Programmes,Public Health Team 1,Third Party Payments - Other Establishments,05/10/2015,3501640,"131,743.25",COMPASS WELLBEING CIC
Adults Services,Adult Social Care,Older People (Aged 65 or over) including Older Mental Ill,Older People Commissioning,Social Care - Residential Care,05/10/2015,3509142,"2,200.00",Barleycroft Care Home
Adults Services,Adult Social Care,Older People (Aged 65 or over) including Older Mental Ill,Physical Dis Commissioning,Social Care - Nursing Care,05/10/2015,3513310,"3,000.00",TOPCARE LTD
Adults Services,Public Health,Children 519 Public Health Programmes,Public Health Team 1,Third Party Payments - Voluntary Associations,05/10/2015,3515121,"57,291.67",Osmani Trust
Adults Services,Adult Social Care,Older People (Aged 65 or over) including Older Mental Ill,Learning Dis Commissioning,Social Care - Day Care,06/10/2015,3383147,"1,522.50",YOUR CHOICE (BARNET) LTD
Adults Services,Wapping CC,Wapping CC,Wapping CC,Stores Materials,06/10/2015,Payment Card,613.96,currys online
Adults Services,Public Health,Children 519 Public Health Programmes,Public Health Team 1,Payments to Private Contractors - Other Contractors,07/10/2015,3500007,"3,000.00",Rice Retail Marketing Ltd
Adults Services,Public Health,Children 519 Public Health Programmes,Public Health Team 1,Third Party Payments - Other Establishments,07/10/2015,3503604,"107,449.00",Mytime Active
Adults Services,Adult Social Care,Older People (Aged 65 or over) including Older Mental Ill,Learning Dis Commissioning,Social Care - Residential Care,07/10/2015,3504555,"25,796.49",MENCAP
Adults Services,Adult Social Care,Older People (Aged 65 or over) including Older Mental Ill,Older People Commissioning,Social Care - Residential Care,07/10/2015,3507916,"4,045.71",HEALTH & HOME LTD (ALEXANDER HOUSE)
Adults Services,Adult Social Care,Older People (Aged 65 or over) including Older Mental Ill,Older People Commissioning,Social Care - Residential Care,07/10/2015,3509146,"2,480.48",Forest Drive Residential Home Ltd
Adults Services,Adult Social Care,Older People (Aged 65 or over) including Older Mental Ill,Older People Commissioning,Social Care - Residential Care,07/10/2015,3509146,"-1,330.08",Forest Drive Residential Home Ltd
Adults Services,Adult Social Care,Older People (Aged 65 or over) including Older Mental Ill,Older People Commissioning,Social Care - Residential Care,07/10/2015,3509147,"3,642.86",HEALTH & HOME LTD (ALEXANDER HOUSE)
Adults Services,Adult Social Care,Older People (Aged 65 or over) including Older Mental Ill,Older People Commissioning,Social Care - Residential Care,07/10/2015,3509320,"3,800.91",HEALTH & HOME LTD (ALEXANDER HOUSE)
Adults Services,Adult Social Care,Older People (Aged 65 or over) including Older Mental Ill,Replacement of EHCM,Computing - Purchase of Software,07/10/2015,3510378,"10,196.00",Agilisys Professional Services
Adults Services,Adult Social Care,Older People (Aged 65 or over) including Older Mental Ill,Physical Dis Commissioning,Social Care - Residential Care,07/10/2015,3513317,"5,888.61",HEALTH & HOME LTD (ALEXANDER HOUSE)
Adults Services,Adult Social Care,Older People (Aged 65 or over) including Older Mental Ill,Learning Dis Commissioning,Social Care - Homecare,07/10/2015,3513603,691.64,Outward Housing
Adults Services,Adult Social Care,Older People (Aged 65 or over) including Older Mental Ill,Learning Dis Commissioning,Social Care - Personal Budgets - Non-Trad Service,07/10/2015,3513603,"4,330.36",Outward Housing
Adults Services,No Service Specified,No Division Specified,Community Equipment Store,Electricity,07/10/2015,3516967,634.93,British Gas Business
Adults Services,No Service Specified,No Division Specified,Community Equipment Store,Electricity,07/10/2015,3517041,786.32,British Gas Business
Adults Services,Adult Social Care,Older People (Aged 65 or over) including Older Mental Ill,Learning Dis Commissioning,Social Care - Day Care,07/10/2015,3526934,"1,269.00",VIBRANCE
Adults Services,Adult Social Care,Older People (Aged 65 or over) including Older Mental Ill,Learning Dis Commissioning,Social Care - Day Care,07/10/2015,3526935,"1,550.00",VIBRANCE
Adults Services,Adult Social Care,Older People (Aged 65 or over) including Older Mental Ill,Learning Dis Commissioning,Social Care - Day Care,07/10/2015,3526936,806.00,VIBRANCE
Adults Services,Adult Social Care,Older People (Aged 65 or over) including Older Mental Ill,Learning Dis Commissioning,Social Care - Day Care,07/10/2015,3526937,"1,550.00",VIBRANCE
Adults Services,Adult Social Care,Older People (Aged 65 or over) including Older Mental Ill,Learning Dis Commissioning,Social Care - Day Care,07/10/2015,3526938,"1,564.50",VIBRANCE
Adults Services,Adult Social Care,Older People (Aged 65 or over) including Older Mental Ill,Learning Dis Commissioning,Social Care - Day Care,07/10/2015,3526939,"2,115.00",VIBRANCE
Adults Services,Adult Social Care,Older People (Aged 65 or over) including Older Mental Ill,Learning Dis Commissioning,Social Care - Day Care,07/10/2015,3526940,"1,410.00",VIBRANCE
Adults Services,Adult Social Care,Older People (Aged 65 or over) including Older Mental Ill,Mental Health Commissioning,Social Care - Supported Accommodation,07/10/2015,3526954,"2,121.43",BAXTER HOUSE SUPPORTED LIVING PROJECT
Adults Services,Adult Social Care,Older People (Aged 65 or over) including Older Mental Ill,Mental Health Commissioning,Social Care - Supported Accommodation,07/10/2015,3526955,"2,192.14",BAXTER HOUSE SUPPORTED LIVING PROJECT
Adults Services,Adult Social Care,Older People (Aged 65 or over) including Older Mental Ill,Mental Health Commissioning,Social Care - Supported Accommodation,07/10/2015,3526956,"1,705.71",J M CAREHOMES LIMITED
Adults Services,Adult Social Care,Older People (Aged 65 or over) including Older Mental Ill,Learning Dis Commissioning,Social Care - Homecare,07/10/2015,3526957,"1,279.20",Look Ahead Care & Support Ltd
Adults Services,Adult Social Care,Older People (Aged 65 or over) including Older Mental Ill,Older People Commissioning,Social Care - Residential Care,07/10/2015,3526958,"3,291.57",J M CAREHOMES LIMITED
Adults Services,Adult Social Care,Older People (Aged 65 or over) including Older Mental Ill,Learning Dis Commissioning,Social Care - Prevention & Support,07/10/2015,3526959,"1,279.20",Look Ahead Care & Support Ltd
Adults Services,Adult Social Care,Older People (Aged 65 or over) including Older Mental Ill,Mental Health Commissioning,Social Care - Personal Budgets - Non-Trad Service,07/10/2015,3526972,607.16,TRIANGLE COMMUNITY SERVICES
Adults Services,Adult Social Care,Older People (Aged 65 or over) including Older Mental Ill,Mental Health Commissioning,Social Care - Personal Budgets - Non-Trad Service,07/10/2015,3526973,627.00,TRIANGLE COMMUNITY SERVICES
Adults Services,Adult Social Care,Older People (Aged 65 or over) including Older Mental Ill,Mental Health Commissioning,Social Care - Personal Budgets - Non-Trad Service,07/10/2015,3526974,657.31,TRIANGLE COMMUNITY SERVICES
Adults Services,Adult Social Care,Older People (Aged 65 or over) including Older Mental Ill,Older People Commissioning,Social Care - Homecare,07/10/2015,3526981,525.88,ATHLONE CARE LTD
Adults Services,Adult Social Care,Older People (Aged 65 or over) including Older Mental Ill,Physical Dis Commissioning,Social Care - Homecare,07/10/2015,3526984,"2,934.06",ATHLONE CARE LTD
Adults Services,Adult Social Care,Older People (Aged 65 or over) including Older Mental Ill,Physical Dis Commissioning,Social Care - Homecare,07/10/2015,3526985,"1,682.87",ATHLONE CARE LTD
Adults Services,Adult Social Care,Older People (Aged 65 or over) including Older Mental Ill,Older People Commissioning,Social Care - Homecare,07/10/2015,3526988,586.57,ATHLONE CARE LTD
Adults Services,Adult Social Care,Older People (Aged 65 or over) including Older Mental Ill,Strategic Commissioning,Social Care - MSG Prevention Health & Wellbeing,07/10/2015,3526996,"2,000.00",East London Vision (Waltham Forest Resource Hub (South)
Adults Services,Adult Social Care,Older People (Aged 65 or over) including Older Mental Ill,Mental Health Commissioning,Social Care - Supported Accommodation,07/10/2015,3526998,"1,971.30",ANTRIM CARE SERVICES LIMITED
Adults Services,Adult Social Care,Older People (Aged 65 or over) including Older Mental Ill,Mental Health Commissioning,Social Care - Supported Accommodation,07/10/2015,3527003,"1,971.30",ANTRIM CARE SERVICES LIMITED
Adults Services,Adult Social Care,Older People (Aged 65 or over) including Older Mental Ill,Older People Commissioning,Social Care - Homecare,07/10/2015,3527009,"1,608.39",FOCUS CARE LINK LTD
Adults Services,Adult Social Care,Older People (Aged 65 or over) including Older Mental Ill,Older People Commissioning,Social Care - Homecare,07/10/2015,3527010,"1,420.02",FOCUS CARE LINK LTD
Adults Services,Adult Social Care,Older People (Aged 65 or over) including Older Mental Ill,Mental Health Commissioning,Social Care - Prevention & Support,07/10/2015,3527025,"1,350.00",McCreadie Hotel
Adults Services,Adult Social Care,Older People (Aged 65 or over) including Older Mental Ill,Physical Dis Commissioning,Social Care - Homecare,07/10/2015,3527035,641.18,FOCUS CARE LINK LTD
Adults Services,Adult Social Care,Older People (Aged 65 or over) including Older Mental Ill,Older People Commissioning,Social Care - Homecare,07/10/2015,3527038,514.40,FOCUS CARE LINK LTD
Adults Services,Adult Social Care,Older People (Aged 65 or over) including Older Mental Ill,Learning Dis Commissioning,Social Care - Residential Care,07/10/2015,3527044,"6,428.70",INDEPENDENCE HOMES LTD
Adults Services,Adult Social Care,Older People (Aged 65 or over) including Older Mental Ill,Older People Commissioning,Social Care - Homecare,07/10/2015,3527058,680.40,Mantra Recruitment
Adults Services,Adult Social Care,Older People (Aged 65 or over) including Older Mental Ill,Learning Dis Commissioning,Social Care - Homecare,07/10/2015,3527069,"1,227.15",Mantra Recruitment
Adults Services,Adult Social Care,Older People (Aged 65 or over) including Older Mental Ill,Older People Commissioning,Social Care - Homecare,07/10/2015,3527070,721.93,Mantra Recruitment
Adults Services,Adult Social Care,Older People (Aged 65 or over) including Older Mental Ill,Physical Dis Commissioning,Social Care - Homecare,07/10/2015,3527102,"1,029.63",Mantra Recruitment
Adults Services,Adult Social Care,Older People (Aged 65 or over) including Older Mental Ill,Older People Commissioning,Social Care - Homecare,07/10/2015,3527132,680.40,Mantra Recruitment
Adults Services,Adult Social Care,Older People (Aged 65 or over) including Older Mental Ill,Learning Dis Commissioning,Social Care - Homecare,07/10/2015,3527142,"1,227.15",Mantra Recruitment
Adults Services,Adult Social Care,Older People (Aged 65 or over) including Older Mental Ill,Older People Commissioning,Social Care - Homecare,07/10/2015,3527143,721.93,Mantra Recruitment
Adults Services,Adult Social Care,Older People (Aged 65 or over) including Older Mental Ill,Physical Dis Commissioning,Social Care - Homecare,07/10/2015,3527168,"1,029.63",Mantra Recruitment
Adults Services,Adult Social Care,Older People (Aged 65 or over) including Older Mental Ill,Older People Commissioning,Social Care - Homecare,07/10/2015,3527195,"4,082.40",Mantra Recruitment
Adults Services,Adult Social Care,Older People (Aged 65 or over) including Older Mental Ill,Physical Dis Commissioning,Social Care - Homecare,07/10/2015,3527201,935.55,Mantra Recruitment
Adults Services,Adult Social Care,Older People (Aged 65 or over) including Older Mental Ill,Older People Commissioning,Social Care - Homecare,07/10/2015,3527215,540.68,Mantra Recruitment
Adults Services,Adult Social Care,Older People (Aged 65 or over) including Older Mental Ill,Older People Commissioning,Social Care - Homecare,07/10/2015,3527227,510.30,Mantra Recruitment
Adults Services,Adult Social Care,Older People (Aged 65 or over) including Older Mental Ill,Older People Commissioning,Social Care - Homecare,07/10/2015,3527242,"1,090.44",Carewatch Newham Ltd
Adults Services,Adult Social Care,Older People (Aged 65 or over) including Older Mental Ill,Physical Dis Commissioning,Social Care - Homecare,07/10/2015,3527243,"1,020.56",Carewatch Newham Ltd
Adults Services,Adult Social Care,Older People (Aged 65 or over) including Older Mental Ill,Older People Commissioning,Social Care - Homecare,07/10/2015,3527244,587.16,Carewatch Newham Ltd
Adults Services,Adult Social Care,Older People (Aged 65 or over) including Older Mental Ill,Older People Commissioning,Social Care - Homecare,07/10/2015,3527254,880.74,Carewatch Newham Ltd
Adults Services,Adult Social Care,Older People (Aged 65 or over) including Older Mental Ill,Older People Commissioning,Social Care - Homecare,07/10/2015,3527255,978.60,Carewatch Newham Ltd
Adults Services,Adult Social Care,Older People (Aged 65 or over) including Older Mental Ill,Older People Commissioning,Social Care - Homecare,07/10/2015,3527259,573.32,Carewatch Newham Ltd
Adults Services,Adult Social Care,Older People (Aged 65 or over) including Older Mental Ill,Older People Commissioning,Social Care - Homecare,07/10/2015,3527265,"2,027.78",Carewatch Newham Ltd
Adults Services,Adult Social Care,Older People (Aged 65 or over) including Older Mental Ill,Older People Commissioning,Social Care - Homecare,07/10/2015,3527267,"1,069.57",Carewatch Newham Ltd
Adults Services,Adult Social Care,Older People (Aged 65 or over) including Older Mental Ill,Older People Commissioning,Social Care - Homecare,07/10/2015,3527271,978.60,Carewatch Newham Ltd
Adults Services,Adult Social Care,Older People (Aged 65 or over) including Older Mental Ill,Physical Dis Commissioning,Social Care - Homecare,07/10/2015,3527273,566.23,Carewatch Newham Ltd
Adults Services,Adult Social Care,Older People (Aged 65 or over) including Older Mental Ill,Older People Commissioning,Social Care - Homecare,07/10/2015,3527279,545.22,Carewatch Newham Ltd
Adults Services,Adult Social Care,Older People (Aged 65 or over) including Older Mental Ill,Older People Commissioning,Social Care - Homecare,07/10/2015,3527281,559.20,Carewatch Newham Ltd
Adults Services,Adult Social Care,Older People (Aged 65 or over) including Older Mental Ill,Older People Commissioning,Social Care - Homecare,07/10/2015,3527289,"1,370.04",Carewatch Newham Ltd
Adults Services,Adult Social Care,Older People (Aged 65 or over) including Older Mental Ill,Older People Commissioning,Social Care - Homecare,07/10/2015,3527293,796.88,Carewatch Newham Ltd
Adults Services,Adult Social Care,Older People (Aged 65 or over) including Older Mental Ill,Older People Commissioning,Social Care - Homecare,07/10/2015,3527300,"3,816.54",Excelcare (Home Care Division) LTD
Adults Services,Adult Social Care,Older People (Aged 65 or over) including Older Mental Ill,Older People Commissioning,Social Care - Homecare,07/10/2015,3527301,954.86,Excelcare (Home Care Division) LTD
Adults Services,Adult Social Care,Older People (Aged 65 or over) including Older Mental Ill,Older People Commissioning,Social Care - Personal Budgets - Non-Trad Service,07/10/2015,3527302,942.06,Excelcare (Home Care Division) LTD
Adults Services,Adult Social Care,Older People (Aged 65 or over) including Older Mental Ill,Older People Commissioning,Social Care - Homecare,07/10/2015,3527304,"1,078.70",Excelcare (Home Care Division) LTD
Adults Services,Adult Social Care,Older People (Aged 65 or over) including Older Mental Ill,Physical Dis Commissioning,Social Care - Homecare,07/10/2015,3527315,"4,676.80",Excelcare (Home Care Division) LTD
Adults Services,Adult Social Care,Older People (Aged 65 or over) including Older Mental Ill,Older People Commissioning,Social Care - Homecare,07/10/2015,3527318,"1,187.83",Excelcare (Home Care Division) LTD
Adults Services,Adult Social Care,Older People (Aged 65 or over) including Older Mental Ill,Older People Commissioning,Social Care - Homecare,07/10/2015,3527319,552.58,Excelcare (Home Care Division) LTD
Adults Services,Adult Social Care,Older People (Aged 65 or over) including Older Mental Ill,Older People Commissioning,Social Care - Homecare,07/10/2015,3527320,675.78,Excelcare (Home Care Division) LTD
Adults Services,Adult Social Care,Older People (Aged 65 or over) including Older Mental Ill,Mental Health Commissioning,Social Care - Homecare,07/10/2015,3527322,764.54,Excelcare (Home Care Division) LTD
Adults Services,Adult Social Care,Older People (Aged 65 or over) including Older Mental Ill,Older People Commissioning,Social Care - Homecare,07/10/2015,3527325,"1,167.32",Excelcare (Home Care Division) LTD
Adults Services,Adult Social Care,Older People (Aged 65 or over) including Older Mental Ill,Older People Commissioning,Social Care - Homecare,07/10/2015,3527327,580.30,Excelcare (Home Care Division) LTD
Adults Services,Adult Social Care,Older People (Aged 65 or over) including Older Mental Ill,Older People Commissioning,Social Care - Homecare,07/10/2015,3527329,522.00,Excelcare (Home Care Division) LTD
Adults Services,Adult Social Care,Older People (Aged 65 or over) including Older Mental Ill,Older People Commissioning,Social Care - Homecare,07/10/2015,3527333,"2,170.40",Excelcare (Home Care Division) LTD
Adults Services,Adult Social Care,Older People (Aged 65 or over) including Older Mental Ill,Older People Commissioning,Social Care - Homecare,07/10/2015,3527335,559.46,Excelcare (Home Care Division) LTD
Adults Services,Adult Social Care,Older People (Aged 65 or over) including Older Mental Ill,Older People Commissioning,Social Care - Homecare,07/10/2015,3527349,805.36,Excelcare (Home Care Division) LTD
Adults Services,Adult Social Care,Older People (Aged 65 or over) including Older Mental Ill,Learning Dis Commissioning,Social Care - Homecare,07/10/2015,3527350,573.44,Excelcare (Home Care Division) LTD
Adults Services,Adult Social Care,Older People (Aged 65 or over) including Older Mental Ill,Learning Dis Commissioning,Social Care - Homecare,07/10/2015,3527356,"1,508.40",Excelcare (Home Care Division) LTD
Adults Services,Adult Social Care,Older People (Aged 65 or over) including Older Mental Ill,Mental Health Commissioning,Social Care - Personal Budgets - Non-Trad Service,07/10/2015,3527358,627.00,TRIANGLE COMMUNITY SERVICES
Adults Services,Adult Social Care,Older People (Aged 65 or over) including Older Mental Ill,Mental Health Commissioning,Social Care - Personal Budgets - Non-Trad Service,07/10/2015,3527359,644.32,TRIANGLE COMMUNITY SERVICES
Adults Services,Adult Social Care,Older People (Aged 65 or over) including Older Mental Ill,Mental Health Commissioning,Social Care - Personal Budgets - Non-Trad Service,07/10/2015,3527360,627.00,TRIANGLE COMMUNITY SERVICES
Adults Services,Adult Social Care,Older People (Aged 65 or over) including Older Mental Ill,Mental Health Commissioning,Social Care - Personal Budgets - Non-Trad Service,07/10/2015,3527361,627.00,TRIANGLE COMMUNITY SERVICES
Adults Services,Adult Social Care,Older People (Aged 65 or over) including Older Mental Ill,Mental Health Commissioning,Social Care - Personal Budgets - Non-Trad Service,07/10/2015,3527365,627.00,TRIANGLE COMMUNITY SERVICES
Adults Services,Adult Social Care,Older People (Aged 65 or over) including Older Mental Ill,Learning Dis Commissioning,Social Care - Personal Budgets - Cash,07/10/2015,3527367,"4,618.63",D D PAYROLL SERVICES
Adults Services,Adult Social Care,Older People (Aged 65 or over) including Older Mental Ill,Older People Commissioning,Social Care - Residential Care,07/10/2015,3527376,-960.00,GATEWAY HOUSING ASSOCIATION
Adults Services,Adult Social Care,Older People (Aged 65 or over) including Older Mental Ill,Older People Commissioning,Social Care - Residential Care,07/10/2015,3527377,"1,040.00",GATEWAY HOUSING ASSOCIATION
Adults Services,Adult Social Care,Older People (Aged 65 or over) including Older Mental Ill,Older People Commissioning,Social Care - Nursing Care,07/10/2015,3527378,"7,433.13",SANCTUARY CARE LTD
Adults Services,Adult Social Care,Older People (Aged 65 or over) including Older Mental Ill,Older People Commissioning,Social Care - Personal Budgets - Cash,07/10/2015,3527380,"1,360.24",D D PAYROLL SERVICES
Adults Services,Adult Social Care,Older People (Aged 65 or over) including Older Mental Ill,Older People Commissioning,Social Care - Personal Budgets - Cash,07/10/2015,3527381,"3,128.54",DAVID HOWARD LTD CLIENT ACCOUNT
Adults Services,Adult Social Care,Older People (Aged 65 or over) including Older Mental Ill,Physical Dis Commissioning,Social Care - Homecare,07/10/2015,3527383,500.40,Age UK Tower Hamlets
Adults Services,Adult Social Care,Older People (Aged 65 or over) including Older Mental Ill,Older People Commissioning,Social Care - Homecare,07/10/2015,3527392,950.20,Age UK Tower Hamlets
Adults Services,Adult Social Care,Older People (Aged 65 or over) including Older Mental Ill,Learning Dis Commissioning,Social Care - Homecare,07/10/2015,3527407,"4,906.80",Tower Project
Adults Services,Adult Social Care,Older People (Aged 65 or over) including Older Mental Ill,Learning Dis Commissioning,Social Care - Homecare,07/10/2015,3527408,"5,024.87",Tower Project
Adults Services,Adult Social Care,Older People (Aged 65 or over) including Older Mental Ill,Older People Commissioning,Social Care - Homecare,07/10/2015,3527414,659.75,SEVACARE UK LTD
Adults Services,Adult Social Care,Older People (Aged 65 or over) including Older Mental Ill,Older People Commissioning,Social Care - Homecare,07/10/2015,3527422,"1,116.50",SEVACARE UK LTD
Adults Services,Adult Social Care,Older People (Aged 65 or over) including Older Mental Ill,Older People Commissioning,Social Care - Homecare,07/10/2015,3527425,"1,109.25",SEVACARE UK LTD
Adults Services,Adult Social Care,Older People (Aged 65 or over) including Older Mental Ill,Older People Commissioning,Social Care - Homecare,07/10/2015,3527429,558.25,SEVACARE UK LTD
Adults Services,Adult Social Care,Older People (Aged 65 or over) including Older Mental Ill,Older People Commissioning,Social Care - Homecare,07/10/2015,3527435,754.00,SEVACARE UK LTD
Adults Services,Adult Social Care,Older People (Aged 65 or over) including Older Mental Ill,Older People Commissioning,Social Care - Homecare,07/10/2015,3527440,815.63,SEVACARE UK LTD
Adults Services,Adult Social Care,Older People (Aged 65 or over) including Older Mental Ill,Older People Commissioning,Social Care - Homecare,07/10/2015,3527443,"1,102.00",SEVACARE UK LTD
Adults Services,Adult Social Care,Older People (Aged 65 or over) including Older Mental Ill,Older People Commissioning,Social Care - Personal Budgets - Non-Trad Service,07/10/2015,3527445,"1,087.50",SEVACARE UK LTD
Adults Services,Adult Social Care,Older People (Aged 65 or over) including Older Mental Ill,Older People Commissioning,Social Care - Homecare,07/10/2015,3527453,783.00,SEVACARE UK LTD
Adults Services,Adult Social Care,Older People (Aged 65 or over) including Older Mental Ill,Older People Commissioning,Social Care - Homecare,07/10/2015,3527459,"1,015.00",SEVACARE UK LTD
Adults Services,Adult Social Care,Older People (Aged 65 or over) including Older Mental Ill,Older People Commissioning,Social Care - Homecare,07/10/2015,3527465,565.50,SEVACARE UK LTD
Adults Services,Adult Social Care,Older People (Aged 65 or over) including Older Mental Ill,Older People Commissioning,Social Care - Homecare,07/10/2015,3527476,884.50,SEVACARE UK LTD
Adults Services,Adult Social Care,Older People (Aged 65 or over) including Older Mental Ill,Physical Dis Commissioning,Social Care - Homecare,07/10/2015,3527480,507.50,SEVACARE UK LTD
Adults Services,Adult Social Care,Older People (Aged 65 or over) including Older Mental Ill,Physical Dis Commissioning,Social Care - Homecare,07/10/2015,3527484,"1,616.75",SEVACARE UK LTD
Adults Services,Adult Social Care,Older People (Aged 65 or over) including Older Mental Ill,Older People Commissioning,Social Care - Homecare,07/10/2015,3527491,522.00,SEVACARE UK LTD
Adults Services,Adult Social Care,Older People (Aged 65 or over) including Older Mental Ill,Older People Commissioning,Social Care - Homecare,07/10/2015,3527503,609.00,SEVACARE UK LTD
Adults Services,Adult Social Care,Older People (Aged 65 or over) including Older Mental Ill,Older People Commissioning,Social Care - Homecare,07/10/2015,3527506,543.75,SEVACARE UK LTD
Adults Services,Adult Social Care,Older People (Aged 65 or over) including Older Mental Ill,Mental Health Commissioning,Social Care - Homecare,07/10/2015,3527515,841.00,SEVACARE UK LTD
Adults Services,Adult Social Care,Older People (Aged 65 or over) including Older Mental Ill,Older People Commissioning,Social Care - Homecare,07/10/2015,3527519,572.75,SEVACARE UK LTD
Adults Services,Adult Social Care,Older People (Aged 65 or over) including Older Mental Ill,Physical Dis Commissioning,Social Care - Personal Budgets - Non-Trad Service,07/10/2015,3527522,513.00,LONDON COMMUNITY HOMECARE LTD
Adults Services,Adult Social Care,Older People (Aged 65 or over) including Older Mental Ill,Learning Dis Commissioning,Social Care - Homecare,07/10/2015,3527529,"1,687.58",LONDON COMMUNITY HOMECARE LTD
Adults Services,Adult Social Care,Older People (Aged 65 or over) including Older Mental Ill,Physical Dis Commissioning,Social Care - Homecare,07/10/2015,3527535,573.96,LONDON COMMUNITY HOMECARE LTD
Adults Services,Adult Social Care,Older People (Aged 65 or over) including Older Mental Ill,Older People Commissioning,Social Care - Homecare,07/10/2015,3527542,"1,107.14",LONDON COMMUNITY HOMECARE LTD
Adults Services,Adult Social Care,Older People (Aged 65 or over) including Older Mental Ill,Older People Commissioning,Social Care - Homecare,07/10/2015,3527543,924.82,LONDON COMMUNITY HOMECARE LTD
Adults Services,Adult Social Care,Older People (Aged 65 or over) including Older Mental Ill,Physical Dis Commissioning,Social Care - Homecare,07/10/2015,3527544,796.60,LONDON COMMUNITY HOMECARE LTD
Adults Services,Adult Social Care,Older People (Aged 65 or over) including Older Mental Ill,Older People Commissioning,Social Care - Homecare,07/10/2015,3527545,"1,053.14",LONDON COMMUNITY HOMECARE LTD
Adults Services,Adult Social Care,Older People (Aged 65 or over) including Older Mental Ill,Older People Commissioning,Social Care - Homecare,07/10/2015,3527550,597.07,LONDON COMMUNITY HOMECARE LTD
Adults Services,Adult Social Care,Older People (Aged 65 or over) including Older Mental Ill,Older People Commissioning,Social Care - Homecare,07/10/2015,3527551,702.14,LONDON COMMUNITY HOMECARE LTD
Adults Services,Adult Social Care,Older People (Aged 65 or over) including Older Mental Ill,Physical Dis Commissioning,Social Care - Homecare,07/10/2015,3527552,"1,174.78",LONDON COMMUNITY HOMECARE LTD
Adults Services,Adult Social Care,Older People (Aged 65 or over) including Older Mental Ill,Older People Commissioning,Social Care - Homecare,07/10/2015,3527553,756.00,LONDON COMMUNITY HOMECARE LTD
Adults Services,Adult Social Care,Older People (Aged 65 or over) including Older Mental Ill,Older People Commissioning,Social Care - Homecare,07/10/2015,3527558,"1,993.50",LONDON COMMUNITY HOMECARE LTD
Adults Services,Adult Social Care,Older People (Aged 65 or over) including Older Mental Ill,Older People Commissioning,Social Care - Personal Budgets - Non-Trad Service,07/10/2015,3527558,861.76,LONDON COMMUNITY HOMECARE LTD
Adults Services,Adult Social Care,Older People (Aged 65 or over) including Older Mental Ill,Physical Dis Commissioning,Social Care - Personal Budgets - Non-Trad Service,07/10/2015,3527559,661.64,LONDON COMMUNITY HOMECARE LTD
Adults Services,Adult Social Care,Older People (Aged 65 or over) including Older Mental Ill,Older People Commissioning,Social Care - Homecare,07/10/2015,3527563,681.84,LONDON COMMUNITY HOMECARE LTD
Adults Services,Adult Social Care,Older People (Aged 65 or over) including Older Mental Ill,Older People Commissioning,Social Care - Homecare,07/10/2015,3527566,972.21,LONDON COMMUNITY HOMECARE LTD
Adults Services,Adult Social Care,Older People (Aged 65 or over) including Older Mental Ill,Older People Commissioning,Social Care - Residential Care,07/10/2015,3527574,"1,538.57",Hillside Care Home
Adults Services,Adult Social Care,Older People (Aged 65 or over) including Older Mental Ill,Older People Commissioning,Social Care - Homecare,07/10/2015,3527576,931.50,LONDON COMMUNITY HOMECARE LTD
Adults Services,Adult Social Care,Older People (Aged 65 or over) including Older Mental Ill,Learning Dis Commissioning,Social Care - Homecare,07/10/2015,3527580,837.00,LONDON COMMUNITY HOMECARE LTD
Adults Services,Adult Social Care,Older People (Aged 65 or over) including Older Mental Ill,Older People Commissioning,Social Care - Homecare,07/10/2015,3527586,850.64,LONDON COMMUNITY HOMECARE LTD
Adults Services,Adult Social Care,Older People (Aged 65 or over) including Older Mental Ill,Physical Dis Commissioning,Social Care - Personal Budgets - Non-Trad Service,07/10/2015,3527593,513.00,LONDON COMMUNITY HOMECARE LTD
Adults Services,Adult Social Care,Older People (Aged 65 or over) including Older Mental Ill,Learning Dis Commissioning,Social Care - Homecare,07/10/2015,3527598,"1,687.58",LONDON COMMUNITY HOMECARE LTD
Adults Services,Adult Social Care,Older People (Aged 65 or over) including Older Mental Ill,Physical Dis Commissioning,Social Care - Homecare,07/10/2015,3527605,573.96,LONDON COMMUNITY HOMECARE LTD
Adults Services,Adult Social Care,Older People (Aged 65 or over) including Older Mental Ill,Older People Commissioning,Social Care - Homecare,07/10/2015,3527613,"1,107.14",LONDON COMMUNITY HOMECARE LTD
Adults Services,Adult Social Care,Older People (Aged 65 or over) including Older Mental Ill,Physical Dis Commissioning,Social Care - Homecare,07/10/2015,3527614,796.60,LONDON COMMUNITY HOMECARE LTD
Adults Services,Adult Social Care,Older People (Aged 65 or over) including Older Mental Ill,Older People Commissioning,Social Care - Homecare,07/10/2015,3527619,594.07,LONDON COMMUNITY HOMECARE LTD
Adults Services,Adult Social Care,Older People (Aged 65 or over) including Older Mental Ill,Older People Commissioning,Social Care - Homecare,07/10/2015,3527620,702.14,LONDON COMMUNITY HOMECARE LTD
Adults Services,Adult Social Care,Older People (Aged 65 or over) including Older Mental Ill,Physical Dis Commissioning,Social Care - Homecare,07/10/2015,3527621,"1,174.78",LONDON COMMUNITY HOMECARE LTD
Adults Services,Adult Social Care,Older People (Aged 65 or over) including Older Mental Ill,Older People Commissioning,Social Care - Homecare,07/10/2015,3527622,756.00,LONDON COMMUNITY HOMECARE LTD
Adults Services,Adult Social Care,Older People (Aged 65 or over) including Older Mental Ill,Older People Commissioning,Social Care - Homecare,07/10/2015,3527627,"1,984.50",LONDON COMMUNITY HOMECARE LTD
Adults Services,Adult Social Care,Older People (Aged 65 or over) including Older Mental Ill,Older People Commissioning,Social Care - Personal Budgets - Non-Trad Service,07/10/2015,3527627,850.50,LONDON COMMUNITY HOMECARE LTD
Adults Services,Adult Social Care,Older People (Aged 65 or over) including Older Mental Ill,Physical Dis Commissioning,Social Care - Personal Budgets - Non-Trad Service,07/10/2015,3527628,661.64,LONDON COMMUNITY HOMECARE LTD
Adults Services,Adult Social Care,Older People (Aged 65 or over) including Older Mental Ill,Older People Commissioning,Social Care - Homecare,07/10/2015,3527632,"1,039.64",LONDON COMMUNITY HOMECARE LTD
Adults Services,Adult Social Care,Older People (Aged 65 or over) including Older Mental Ill,Older People Commissioning,Social Care - Homecare,07/10/2015,3527635,"1,093.71",LONDON COMMUNITY HOMECARE LTD
Adults Services,Adult Social Care,Older People (Aged 65 or over) including Older Mental Ill,Older People Commissioning,Social Care - Homecare,07/10/2015,3527643,945.00,LONDON COMMUNITY HOMECARE LTD
Adults Services,Adult Social Care,Older People (Aged 65 or over) including Older Mental Ill,Learning Dis Commissioning,Social Care - Homecare,07/10/2015,3527647,837.00,LONDON COMMUNITY HOMECARE LTD
Adults Services,Adult Social Care,Older People (Aged 65 or over) including Older Mental Ill,Older People Commissioning,Social Care - Homecare,07/10/2015,3527654,850.64,LONDON COMMUNITY HOMECARE LTD
Adults Services,Adult Social Care,Older People (Aged 65 or over) including Older Mental Ill,Learning Dis Commissioning,Social Care - Homecare,07/10/2015,3527668,958.50,Oasis Care & Training Agency
Adults Services,Adult Social Care,Older People (Aged 65 or over) including Older Mental Ill,Physical Dis Commissioning,Social Care - Homecare,07/10/2015,3527672,813.38,Oasis Care & Training Agency
Adults Services,Adult Social Care,Older People (Aged 65 or over) including Older Mental Ill,Physical Dis Commissioning,Social Care - Homecare,07/10/2015,3527673,621.00,Oasis Care & Training Agency
Adults Services,Adult Social Care,Older People (Aged 65 or over) including Older Mental Ill,Older People Commissioning,Social Care - Homecare,07/10/2015,3527674,546.75,Oasis Care & Training Agency
Adults Services,Adult Social Care,Older People (Aged 65 or over) including Older Mental Ill,Older People Commissioning,Social Care - Homecare,07/10/2015,3527683,556.88,Oasis Care & Training Agency
Adults Services,Adult Social Care,Older People (Aged 65 or over) including Older Mental Ill,Mental Health Commissioning,Social Care - Personal Budgets - Non-Trad Service,07/10/2015,3527695,627.00,TRIANGLE COMMUNITY SERVICES
Adults Services,Adult Social Care,Older People (Aged 65 or over) including Older Mental Ill,Older People Commissioning,Social Care - Residential Care,07/10/2015,3527696,"2,258.57",ROSE COURT
Adults Services,Adult Social Care,Older People (Aged 65 or over) including Older Mental Ill,Older People Commissioning,Social Care - Homecare,07/10/2015,3527701,877.52,REDSPOT HOMECARE(CONTRACTS) LTD
Adults Services,Adult Social Care,Older People (Aged 65 or over) including Older Mental Ill,Older People Commissioning,Social Care - Homecare,07/10/2015,3527702,615.73,REDSPOT HOMECARE(CONTRACTS) LTD
Adults Services,Adult Social Care,Older People (Aged 65 or over) including Older Mental Ill,Older People Commissioning,Social Care - Homecare,07/10/2015,3527704,714.86,REDSPOT HOMECARE(CONTRACTS) LTD
Adults Services,Adult Social Care,Older People (Aged 65 or over) including Older Mental Ill,Older People Commissioning,Social Care - Homecare,07/10/2015,3527718,636.06,REDSPOT HOMECARE(CONTRACTS) LTD
Adults Services,Adult Social Care,Older People (Aged 65 or over) including Older Mental Ill,Older People Commissioning,Social Care - Homecare,07/10/2015,3527722,998.38,REDSPOT HOMECARE(CONTRACTS) LTD
Adults Services,Adult Social Care,Older People (Aged 65 or over) including Older Mental Ill,Physical Dis Commissioning,Social Care - Homecare,07/10/2015,3527727,817.79,REDSPOT HOMECARE(CONTRACTS) LTD
Adults Services,Adult Social Care,Older People (Aged 65 or over) including Older Mental Ill,Learning Dis Commissioning,Social Care - Help to Live at Home,07/10/2015,3527732,"1,813.50",Kent Homefinding and Fostering
Adults Services,Adult Social Care,Older People (Aged 65 or over) including Older Mental Ill,Mental Health Commissioning,Social Care - Prevention & Support,07/10/2015,3527748,"1,025.00",Alma Attic Ltd T/A Glorydale Inn
Adults Services,Adult Social Care,Older People (Aged 65 or over) including Older Mental Ill,Learning Dis Commissioning,Social Care - Day Care,07/10/2015,3527749,"1,984.71",Tower Project
Adults Services,Adult Social Care,Older People (Aged 65 or over) including Older Mental Ill,Learning Dis Commissioning,Social Care - Day Care,07/10/2015,3527750,"1,984.71",Tower Project
Adults Services,Adult Social Care,Older People (Aged 65 or over) including Older Mental Ill,Mental Health Commissioning,Social Care - Prevention & Support,07/10/2015,3527751,"1,775.00",Alma Attic Ltd T/A Glorydale Inn
Adults Services,Adult Social Care,Older People (Aged 65 or over) including Older Mental Ill,Older People Commissioning,Social Care - Homecare,07/10/2015,3527774,709.20,MiHOMECARE LIMITED
Adults Services,Adult Social Care,Older People (Aged 65 or over) including Older Mental Ill,Older People Commissioning,Social Care - Homecare,07/10/2015,3527776,779.90,MiHOMECARE LIMITED
Adults Services,Adult Social Care,Older People (Aged 65 or over) including Older Mental Ill,Older People Commissioning,Social Care - Homecare,07/10/2015,3527794,850.94,MiHOMECARE LIMITED
Adults Services,Adult Social Care,Older People (Aged 65 or over) including Older Mental Ill,Older People Commissioning,Social Care - Homecare,07/10/2015,3527817,531.82,MiHOMECARE LIMITED
Adults Services,Adult Social Care,Older People (Aged 65 or over) including Older Mental Ill,Older People Commissioning,Social Care - Homecare,07/10/2015,3527823,631.07,MiHOMECARE LIMITED
Adults Services,Adult Social Care,Older People (Aged 65 or over) including Older Mental Ill,Older People Commissioning,Social Care - Homecare,07/10/2015,3527824,794.36,MiHOMECARE LIMITED
Adults Services,Adult Social Care,Older People (Aged 65 or over) including Older Mental Ill,Older People Commissioning,Social Care - Homecare,07/10/2015,3527830,"3,856.96",MiHOMECARE LIMITED
Adults Services,Adult Social Care,Older People (Aged 65 or over) including Older Mental Ill,Older People Commissioning,Social Care - Homecare,07/10/2015,3527832,964.24,MiHOMECARE LIMITED
Adults Services,Adult Social Care,Older People (Aged 65 or over) including Older Mental Ill,Older People Commissioning,Social Care - Homecare,07/10/2015,3527834,595.70,MiHOMECARE LIMITED
Adults Services,Adult Social Care,Older People (Aged 65 or over) including Older Mental Ill,Older People Commissioning,Social Care - Nursing Care,07/10/2015,3527838,"2,315.19",HAWKINGE HOUSE LTD
Adults Services,Adult Social Care,Older People (Aged 65 or over) including Older Mental Ill,Mental Health Commissioning,Social Care - Nursing Care,07/10/2015,3527839,"4,244.36",SANCTUARY CARE LTD
Adults Services,Adult Social Care,Older People (Aged 65 or over) including Older Mental Ill,Mental Health Commissioning,Social Care - Residential Care,07/10/2015,3527839,-541.29,SANCTUARY CARE LTD
Adults Services,Adult Social Care,Older People (Aged 65 or over) including Older Mental Ill,Older People Commissioning,Social Care - Prevention & Support,07/10/2015,3527841,"1,500.00",Alma Attic Ltd T/A Glorydale Inn
Adults Services,Adult Social Care,Older People (Aged 65 or over) including Older Mental Ill,Learning Dis Commissioning,Social Care - Personal Budgets - Non-Trad Service,07/10/2015,3527842,"1,400.00",APASENTH
Adults Services,Adult Social Care,Older People (Aged 65 or over) including Older Mental Ill,Learning Dis Commissioning,Social Care - Residential Care,07/10/2015,3527844,"4,950.00",APASENTH
Adults Services,Adult Social Care,Older People (Aged 65 or over) including Older Mental Ill,Learning Dis Commissioning,Social Care - Residential Care,07/10/2015,3527845,"4,500.00",APASENTH
Adults Services,Adult Social Care,Older People (Aged 65 or over) including Older Mental Ill,Learning Dis Commissioning,Social Care - Personal Budgets - Non-Trad Service,07/10/2015,3527846,"4,950.00",APASENTH
Adults Services,Adult Social Care,Older People (Aged 65 or over) including Older Mental Ill,Learning Dis Commissioning,Social Care - Residential Care,07/10/2015,3527847,"4,500.00",APASENTH
Adults Services,Adult Social Care,Older People (Aged 65 or over) including Older Mental Ill,Learning Dis Commissioning,Social Care - Residential Care,07/10/2015,3527848,"3,625.00",APASENTH
Adults Services,Adult Social Care,Older People (Aged 65 or over) including Older Mental Ill,Learning Dis Commissioning,Social Care - Personal Budgets - Non-Trad Service,07/10/2015,3527850,"2,475.00",APASENTH
Adults Services,Adult Social Care,Older People (Aged 65 or over) including Older Mental Ill,Learning Dis Commissioning,Social Care - Prevention & Support,07/10/2015,3527851,875.00,Plaza London Hotel
Adults Services,Adult Social Care,Older People (Aged 65 or over) including Older Mental Ill,Learning Dis Commissioning,Social Care - Homecare,07/10/2015,3527852,"2,256.75",APASENTH
Adults Services,Adult Social Care,Older People (Aged 65 or over) including Older Mental Ill,Learning Dis Commissioning,Social Care - Homecare,07/10/2015,3527853,"1,479.00",APASENTH
Adults Services,Adult Social Care,Older People (Aged 65 or over) including Older Mental Ill,Older People Commissioning,Social Care - Homecare,07/10/2015,3527854,"1,428.00",APASENTH
Adults Services,Adult Social Care,Older People (Aged 65 or over) including Older Mental Ill,Learning Dis Commissioning,Social Care - Homecare,07/10/2015,3527855,"1,351.50",APASENTH
Adults Services,Adult Social Care,Older People (Aged 65 or over) including Older Mental Ill,Learning Dis Commissioning,Social Care - Homecare,07/10/2015,3527856,"1,173.00",APASENTH
Adults Services,Adult Social Care,Older People (Aged 65 or over) including Older Mental Ill,Learning Dis Commissioning,Social Care - Homecare,07/10/2015,3527857,"1,134.75",APASENTH
Adults Services,Adult Social Care,Older People (Aged 65 or over) including Older Mental Ill,Older People Commissioning,Social Care - Homecare,07/10/2015,3527858,879.75,APASENTH
Adults Services,Adult Social Care,Older People (Aged 65 or over) including Older Mental Ill,Learning Dis Commissioning,Social Care - Homecare,07/10/2015,3527859,867.00,APASENTH
Adults Services,Adult Social Care,Older People (Aged 65 or over) including Older Mental Ill,Learning Dis Commissioning,Social Care - Homecare,07/10/2015,3527860,841.50,APASENTH
Adults Services,Adult Social Care,Older People (Aged 65 or over) including Older Mental Ill,Learning Dis Commissioning,Social Care - Homecare,07/10/2015,3527861,726.75,APASENTH
Adults Services,Adult Social Care,Older People (Aged 65 or over) including Older Mental Ill,Learning Dis Commissioning,Social Care - Homecare,07/10/2015,3527862,682.13,APASENTH
Adults Services,Adult Social Care,Older People (Aged 65 or over) including Older Mental Ill,Learning Dis Commissioning,Social Care - Homecare,07/10/2015,3527863,637.50,APASENTH
Adults Services,Adult Social Care,Older People (Aged 65 or over) including Older Mental Ill,Learning Dis Commissioning,Social Care - Homecare,07/10/2015,3527864,586.50,APASENTH
Adults Services,Adult Social Care,Older People (Aged 65 or over) including Older Mental Ill,Learning Dis Commissioning,Social Care - Homecare,07/10/2015,3527865,522.75,APASENTH
Adults Services,Adult Social Care,Older People (Aged 65 or over) including Older Mental Ill,Learning Dis Commissioning,Social Care - Homecare,07/10/2015,3527866,510.00,APASENTH
Adults Services,Adult Social Care,Older People (Aged 65 or over) including Older Mental Ill,Older People Commissioning,Social Care - Homecare,07/10/2015,3527867,503.63,APASENTH
Adults Services,Adult Social Care,Older People (Aged 65 or over) including Older Mental Ill,Older People Commissioning,Social Care - Homecare,07/10/2015,3527926,"2,320.50",APASENTH
Adults Services,Adult Social Care,Older People (Aged 65 or over) including Older Mental Ill,Learning Dis Commissioning,Social Care - Homecare,07/10/2015,3527927,"2,256.75",APASENTH
Adults Services,Adult Social Care,Older People (Aged 65 or over) including Older Mental Ill,Learning Dis Commissioning,Social Care - Homecare,07/10/2015,3527928,"1,479.00",APASENTH
Adults Services,Adult Social Care,Older People (Aged 65 or over) including Older Mental Ill,Older People Commissioning,Social Care - Homecare,07/10/2015,3527929,"1,421.63",APASENTH
Adults Services,Adult Social Care,Older People (Aged 65 or over) including Older Mental Ill,Learning Dis Commissioning,Social Care - Homecare,07/10/2015,3527930,"1,351.50",APASENTH
Adults Services,Adult Social Care,Older People (Aged 65 or over) including Older Mental Ill,Learning Dis Commissioning,Social Care - Homecare,07/10/2015,3527931,"1,160.25",APASENTH
Adults Services,Adult Social Care,Older People (Aged 65 or over) including Older Mental Ill,Learning Dis Commissioning,Social Care - Homecare,07/10/2015,3527932,"1,134.75",APASENTH
Adults Services,Adult Social Care,Older People (Aged 65 or over) including Older Mental Ill,Older People Commissioning,Social Care - Homecare,07/10/2015,3527933,892.50,APASENTH
Adults Services,Adult Social Care,Older People (Aged 65 or over) including Older Mental Ill,Learning Dis Commissioning,Social Care - Homecare,07/10/2015,3527934,867.00,APASENTH
Adults Services,Adult Social Care,Older People (Aged 65 or over) including Older Mental Ill,Learning Dis Commissioning,Social Care - Homecare,07/10/2015,3527935,841.50,APASENTH
Adults Services,Adult Social Care,Older People (Aged 65 or over) including Older Mental Ill,Older People Commissioning,Social Care - Homecare,07/10/2015,3527936,726.75,APASENTH
Adults Services,Adult Social Care,Older People (Aged 65 or over) including Older Mental Ill,Learning Dis Commissioning,Social Care - Homecare,07/10/2015,3527937,666.19,APASENTH
Adults Services,Adult Social Care,Older People (Aged 65 or over) including Older Mental Ill,Learning Dis Commissioning,Social Care - Homecare,07/10/2015,3527938,650.25,APASENTH
Adults Services,Adult Social Care,Older People (Aged 65 or over) including Older Mental Ill,Learning Dis Commissioning,Social Care - Homecare,07/10/2015,3527939,554.63,APASENTH
Adults Services,Adult Social Care,Older People (Aged 65 or over) including Older Mental Ill,Learning Dis Commissioning,Social Care - Homecare,07/10/2015,3527940,548.25,APASENTH
Adults Services,Adult Social Care,Older People (Aged 65 or over) including Older Mental Ill,Learning Dis Commissioning,Social Care - Homecare,07/10/2015,3527941,535.50,APASENTH
Adults Services,Adult Social Care,Older People (Aged 65 or over) including Older Mental Ill,Learning Dis Commissioning,Social Care - Homecare,07/10/2015,3527942,510.00,APASENTH
Adults Services,Adult Social Care,Older People (Aged 65 or over) including Older Mental Ill,Learning Dis Commissioning,Social Care - Homecare,07/10/2015,3527943,510.00,APASENTH
Adults Services,Adult Social Care,Older People (Aged 65 or over) including Older Mental Ill,Older People Commissioning,Social Care - Homecare,07/10/2015,3527944,503.63,APASENTH
Adults Services,Adult Social Care,Older People (Aged 65 or over) including Older Mental Ill,Learning Dis Commissioning,Social Care - Residential Care,07/10/2015,3528007,"6,600.00",FAIRKYTES
Adults Services,Adult Social Care,Adults Aged Under 65 with Mental Health Needs,MH Commissioner,Social Care - Prevention & Support - Block,07/10/2015,3528008,"7,500.00",AGE UK EAST LONDON
Adults Services,Adult Social Care,Older People (Aged 65 or over) including Older Mental Ill,Physical Dis Commissioning,Social Care - Nursing Care,07/10/2015,3528009,"5,795.67",LIFE STYLE CARE (2011) PLC
Adults Services,Adult Social Care,Older People (Aged 65 or over) including Older Mental Ill,Physical Dis Commissioning,Social Care - Nursing Care,07/10/2015,3528010,"5,795.67",LIFE STYLE CARE (2011) PLC
Adults Services,Adult Social Care,Older People (Aged 65 or over) including Older Mental Ill,Older People Commissioning,Social Care - Nursing Care,07/10/2015,3528011,"2,089.18",LIFE STYLE CARE (2011) PLC
Adults Services,Adult Social Care,Older People (Aged 65 or over) including Older Mental Ill,Older People Commissioning,Client Contributions for Social Care - Nursing Care,07/10/2015,3528011,-548.92,LIFE STYLE CARE (2011) PLC
Adults Services,Adult Social Care,Older People (Aged 65 or over) including Older Mental Ill,Physical Dis Commissioning,Social Care - Nursing Care,07/10/2015,3528012,"5,608.71",LIFE STYLE CARE (2011) PLC
Adults Services,Adult Social Care,Older People (Aged 65 or over) including Older Mental Ill,Physical Dis Commissioning,Social Care - Nursing Care,07/10/2015,3528013,"3,981.77",LIFE STYLE CARE (2011) PLC
Adults Services,Adult Social Care,Older People (Aged 65 or over) including Older Mental Ill,Physical Dis Commissioning,Social Care - Nursing Care,07/10/2015,3528014,"3,853.33",LIFE STYLE CARE (2011) PLC
Adults Services,Adult Social Care,Older People (Aged 65 or over) including Older Mental Ill,Learning Dis Commissioning,Social Care - Day Care,07/10/2015,3528015,"32,000.00",POETRY IN WOOD
Adults Services,Adult Social Care,Older People (Aged 65 or over) including Older Mental Ill,Mental Health Commissioning,Social Care - Supported Accommodation,07/10/2015,3528016,605.84,Look Ahead Care & Support Ltd
Adults Services,Adult Social Care,Older People (Aged 65 or over) including Older Mental Ill,Mental Health Commissioning,Social Care - Supported Accommodation,07/10/2015,3528017,605.84,Look Ahead Care & Support Ltd
Adults Services,Adult Social Care,Older People (Aged 65 or over) including Older Mental Ill,Mental Health Commissioning,Social Care - Supported Accommodation,07/10/2015,3528018,605.84,Look Ahead Care & Support Ltd
Adults Services,Adult Social Care,Older People (Aged 65 or over) including Older Mental Ill,Mental Health Commissioning,Social Care - Supported Accommodation,07/10/2015,3528019,605.84,Look Ahead Care & Support Ltd
Adults Services,Adult Social Care,Older People (Aged 65 or over) including Older Mental Ill,Mental Health Commissioning,Social Care - Supported Accommodation,07/10/2015,3528020,561.84,Look Ahead Care & Support Ltd
Adults Services,Adult Social Care,Older People (Aged 65 or over) including Older Mental Ill,Mental Health Commissioning,Social Care - Supported Accommodation,07/10/2015,3528021,616.31,Look Ahead Care & Support Ltd
Adults Services,Adult Social Care,Older People (Aged 65 or over) including Older Mental Ill,Older People Commissioning,Social Care - Day Care,07/10/2015,3528030,552.22,Peabody Trust
Adults Services,Adult Social Care,Older People (Aged 65 or over) including Older Mental Ill,Older People Commissioning,Social Care - Day Care,07/10/2015,3528032,581.10,Peabody Trust
Adults Services,Adult Social Care,Older People (Aged 65 or over) including Older Mental Ill,Physical Dis Commissioning,Social Care - Homecare,07/10/2015,3528038,727.26,SANCTUARY HOME CARE LIMITED
Adults Services,Adult Social Care,Older People (Aged 65 or over) including Older Mental Ill,Older People Commissioning,Social Care - Homecare,07/10/2015,3528040,620.34,SANCTUARY HOME CARE LIMITED
Adults Services,Adult Social Care,Older People (Aged 65 or over) including Older Mental Ill,Older People Commissioning,Social Care - Homecare,07/10/2015,3528042,620.34,SANCTUARY HOME CARE LIMITED
Adults Services,Adult Social Care,Older People (Aged 65 or over) including Older Mental Ill,Physical Dis Commissioning,Social Care - Homecare,07/10/2015,3528046,716.57,SANCTUARY HOME CARE LIMITED
Adults Services,Adult Social Care,Older People (Aged 65 or over) including Older Mental Ill,Older People Commissioning,Social Care - Homecare,07/10/2015,3528052,606.05,SANCTUARY HOME CARE LIMITED
Adults Services,Adult Social Care,Older People (Aged 65 or over) including Older Mental Ill,Older People Commissioning,Social Care - Homecare,07/10/2015,3528056,"1,197.84",SANCTUARY HOME CARE LIMITED
Adults Services,Adult Social Care,Older People (Aged 65 or over) including Older Mental Ill,Older People Commissioning,Social Care - Homecare,07/10/2015,3528064,620.34,SANCTUARY HOME CARE LIMITED
Adults Services,Adult Social Care,Older People (Aged 65 or over) including Older Mental Ill,Older People Commissioning,Social Care - Homecare,07/10/2015,3528072,"1,283.40",SANCTUARY HOME CARE LIMITED
Adults Services,Adult Social Care,Older People (Aged 65 or over) including Older Mental Ill,Older People Commissioning,Social Care - Homecare,07/10/2015,3528082,520.50,SANCTUARY HOME CARE LIMITED
Adults Services,Adult Social Care,Older People (Aged 65 or over) including Older Mental Ill,Older People Commissioning,Social Care - Homecare,07/10/2015,3528087,598.94,SANCTUARY HOME CARE LIMITED
Adults Services,Adult Social Care,Older People (Aged 65 or over) including Older Mental Ill,Mental Health Commissioning,Social Care - Homecare,07/10/2015,3528089,855.60,SANCTUARY HOME CARE LIMITED
Adults Services,Adult Social Care,Older People (Aged 65 or over) including Older Mental Ill,Older People Commissioning,Social Care - Homecare,07/10/2015,3528112,898.38,SANCTUARY HOME CARE LIMITED
Adults Services,Adult Social Care,Older People (Aged 65 or over) including Older Mental Ill,Physical Dis Commissioning,Social Care - Homecare,07/10/2015,3528121,"1,597.12",SANCTUARY HOME CARE LIMITED
Adults Services,Adult Social Care,Older People (Aged 65 or over) including Older Mental Ill,Learning Dis Commissioning,Social Care - Homecare,07/10/2015,3528128,556.14,SANCTUARY HOME CARE LIMITED
Adults Services,Adult Social Care,Older People (Aged 65 or over) including Older Mental Ill,Older People Commissioning,Social Care - Homecare,07/10/2015,3528141,"1,397.48",SANCTUARY HOME CARE LIMITED
Adults Services,Adult Social Care,Older People (Aged 65 or over) including Older Mental Ill,Older People Commissioning,Social Care - Homecare,07/10/2015,3528149,"1,055.24",SANCTUARY HOME CARE LIMITED
Adults Services,Adult Social Care,Older People (Aged 65 or over) including Older Mental Ill,Older People Commissioning,Social Care - Homecare,07/10/2015,3528152,591.80,SANCTUARY HOME CARE LIMITED
Adults Services,Adult Social Care,Older People (Aged 65 or over) including Older Mental Ill,Physical Dis Commissioning,Social Care - Homecare,07/10/2015,3528160,541.90,SANCTUARY HOME CARE LIMITED
Adults Services,Adult Social Care,Older People (Aged 65 or over) including Older Mental Ill,Physical Dis Commissioning,Social Care - Homecare,07/10/2015,3528165,960.90,Soma Healthcare Ltd
Adults Services,Adult Social Care,Older People (Aged 65 or over) including Older Mental Ill,Physical Dis Commissioning,Social Care - Homecare,07/10/2015,3528167,"1,040.25",Soma Healthcare Ltd
Adults Services,Adult Social Care,Older People (Aged 65 or over) including Older Mental Ill,Learning Dis Commissioning,Social Care - Homecare,07/10/2015,3528190,783.75,Soma Healthcare Ltd
Adults Services,Adult Social Care,Older People (Aged 65 or over) including Older Mental Ill,Older People Commissioning,Social Care - Homecare,07/10/2015,3528192,598.50,Soma Healthcare Ltd
Adults Services,Adult Social Care,Older People (Aged 65 or over) including Older Mental Ill,Physical Dis Commissioning,Social Care - Homecare,07/10/2015,3528195,612.75,Soma Healthcare Ltd
Adults Services,Adult Social Care,Older People (Aged 65 or over) including Older Mental Ill,Older People Commissioning,Social Care - Homecare,07/10/2015,3528196,"1,596.00",Soma Healthcare Ltd
Adults Services,Adult Social Care,Older People (Aged 65 or over) including Older Mental Ill,Older People Commissioning,Social Care - Homecare,07/10/2015,3528201,726.75,Soma Healthcare Ltd
Adults Services,Adult Social Care,Older People (Aged 65 or over) including Older Mental Ill,Mental Health Commissioning,Social Care - Personal Budgets - Non-Trad Service,07/10/2015,3528202,541.50,Soma Healthcare Ltd
Adults Services,Adult Social Care,Older People (Aged 65 or over) including Older Mental Ill,Older People Commissioning,Social Care - Personal Budgets - Non-Trad Service,07/10/2015,3528208,869.64,Soma Healthcare Ltd
Adults Services,Adult Social Care,Older People (Aged 65 or over) including Older Mental Ill,Older People Commissioning,Social Care - Homecare,07/10/2015,3528220,"1,054.50",Soma Healthcare Ltd
Adults Services,Adult Social Care,Older People (Aged 65 or over) including Older Mental Ill,Older People Commissioning,Social Care - Personal Budgets - Non-Trad Service,07/10/2015,3528221,719.63,Soma Healthcare Ltd
Adults Services,Adult Social Care,Older People (Aged 65 or over) including Older Mental Ill,Older People Commissioning,Social Care - Homecare,07/10/2015,3528224,"1,645.88",Soma Healthcare Ltd
Adults Services,Adult Social Care,Older People (Aged 65 or over) including Older Mental Ill,Older People Commissioning,Social Care - Homecare,07/10/2015,3528232,555.75,Soma Healthcare Ltd
Adults Services,Adult Social Care,Older People (Aged 65 or over) including Older Mental Ill,Older People Commissioning,Social Care - Homecare,07/10/2015,3528236,527.25,Soma Healthcare Ltd
Adults Services,Adult Social Care,Older People (Aged 65 or over) including Older Mental Ill,Physical Dis Commissioning,Social Care - Homecare,07/10/2015,3528242,"1,624.50",Soma Healthcare Ltd
Adults Services,Adult Social Care,Older People (Aged 65 or over) including Older Mental Ill,Older People Commissioning,Social Care - Homecare,07/10/2015,3528244,"1,382.25",Soma Healthcare Ltd
Adults Services,Adult Social Care,Older People (Aged 65 or over) including Older Mental Ill,Older People Commissioning,Social Care - Homecare,07/10/2015,3528250,"1,368.00",Soma Healthcare Ltd
Adults Services,Adult Social Care,Older People (Aged 65 or over) including Older Mental Ill,Physical Dis Commissioning,Social Care - Homecare,07/10/2015,3528251,"1,100.81",Soma Healthcare Ltd
Adults Services,Adult Social Care,Older People (Aged 65 or over) including Older Mental Ill,Older People Commissioning,Social Care - Homecare,07/10/2015,3528252,500.00,Soma Healthcare Ltd
Adults Services,Adult Social Care,Older People (Aged 65 or over) including Older Mental Ill,Physical Dis Commissioning,Social Care - Homecare,07/10/2015,3528258,"2,037.75",Soma Healthcare Ltd
Adults Services,Adult Social Care,Other Adult Services,Integration Project,Social Care - Nursing Care,09/10/2015,3501656,"6,500.00",East London NHS Foundation Trust
Adults Services,Adult Social Care,Older People (Aged 65 or over) including Older Mental Ill,Mental Health Commissioning,Social Care - Supported Accommodation,09/10/2015,3505258,749.00,Look Ahead Care & Support Ltd
Adults Services,Adult Social Care,Older People (Aged 65 or over) including Older Mental Ill,Mental Health Commissioning,Social Care - Supported Accommodation,09/10/2015,3505259,678.92,Look Ahead Care & Support Ltd
Adults Services,Adult Social Care,Older People (Aged 65 or over) including Older Mental Ill,Mental Health Commissioning,Social Care - Supported Accommodation,09/10/2015,3505260,633.64,Look Ahead Care & Support Ltd
Adults Services,Adult Social Care,Older People (Aged 65 or over) including Older Mental Ill,Mental Health Commissioning,Social Care - Supported Accommodation,09/10/2015,3505261,678.92,Look Ahead Care & Support Ltd
Adults Services,Adult Social Care,Older People (Aged 65 or over) including Older Mental Ill,Mental Health Commissioning,Social Care - Supported Accommodation,09/10/2015,3505262,653.12,Look Ahead Care & Support Ltd
Adults Services,Adult Social Care,Older People (Aged 65 or over) including Older Mental Ill,Learning Dis Commissioning,Non Staff Transport Costs - Client Transport Costs,09/10/2015,3505267,590.25,DIMENSIONS (UK) LTD
Adults Services,Adult Social Care,Older People (Aged 65 or over) including Older Mental Ill,Learning Dis Commissioning,Social Care - Homecare,09/10/2015,3505529,"2,268.09",Outward Housing
Adults Services,Adult Social Care,Older People (Aged 65 or over) including Older Mental Ill,Learning Dis Commissioning,Social Care - Homecare,09/10/2015,3505531,765.60,Outward Housing
Adults Services,Adult Social Care,Older People (Aged 65 or over) including Older Mental Ill,Learning Dis Commissioning,Social Care - Homecare,09/10/2015,3505532,918.72,Outward Housing
Adults Services,Adult Social Care,Older People (Aged 65 or over) including Older Mental Ill,Learning Dis Commissioning,Social Care - Homecare,09/10/2015,3505533,612.48,Outward Housing
Adults Services,Adult Social Care,Older People (Aged 65 or over) including Older Mental Ill,Learning Dis Commissioning,Social Care - Homecare,09/10/2015,3505536,"1,033.56",Outward Housing
Adults Services,Adult Social Care,Older People (Aged 65 or over) including Older Mental Ill,Learning Dis Commissioning,Social Care - Homecare,09/10/2015,3505537,612.48,Outward Housing
Adults Services,Adult Social Care,Older People (Aged 65 or over) including Older Mental Ill,Learning Dis Commissioning,Social Care - Homecare,09/10/2015,3505538,574.20,Outward Housing
Adults Services,Adult Social Care,Older People (Aged 65 or over) including Older Mental Ill,Learning Dis Commissioning,Social Care - Homecare,09/10/2015,3505539,"2,679.60",Outward Housing
Adults Services,Adult Social Care,Older People (Aged 65 or over) including Older Mental Ill,Learning Dis Commissioning,Social Care - Homecare,09/10/2015,3505540,612.48,Outward Housing
Adults Services,Adult Social Care,Older People (Aged 65 or over) including Older Mental Ill,Learning Dis Commissioning,Social Care - Homecare,09/10/2015,3505542,"1,224.96",Outward Housing
Adults Services,Adult Social Care,Older People (Aged 65 or over) including Older Mental Ill,Learning Dis Commissioning,Social Care - Homecare,09/10/2015,3505543,"1,454.64",Outward Housing
Adults Services,Adult Social Care,Older People (Aged 65 or over) including Older Mental Ill,Learning Dis Commissioning,Social Care - Homecare,09/10/2015,3505545,765.60,Outward Housing
Adults Services,Adult Social Care,Older People (Aged 65 or over) including Older Mental Ill,Learning Dis Commissioning,Social Care - Homecare,09/10/2015,3505548,"1,071.84",Outward Housing
Adults Services,Adult Social Care,Older People (Aged 65 or over) including Older Mental Ill,Learning Dis Commissioning,Social Care - Homecare,09/10/2015,3505549,727.32,Outward Housing
Adults Services,Adult Social Care,Older People (Aged 65 or over) including Older Mental Ill,Learning Dis Commissioning,Social Care - Homecare,09/10/2015,3505550,574.20,Outward Housing
Adults Services,Adult Social Care,Older People (Aged 65 or over) including Older Mental Ill,Elders CMHT,Agency Staff - Health - Salary Recharge,09/10/2015,3507476,"66,475.93",East London NHS Foundation Trust
Adults Services,Adult Social Care,Older People (Aged 65 or over) including Older Mental Ill,Older People Commissioning,Social Care - Residential Care,09/10/2015,3507917,"3,085.71",Federation of Jewish Services
Adults Services,Adult Social Care,Older People (Aged 65 or over) including Older Mental Ill,Older People Commissioning,Social Care - Residential Care,09/10/2015,3507988,"2,088.17",MILLARD HOUSE RESIDENTAIL CARE HOME
Adults Services,Adult Social Care,Older People (Aged 65 or over) including Older Mental Ill,Older People Commissioning,Social Care - Residential Care,09/10/2015,3507988,-571.50,MILLARD HOUSE RESIDENTAIL CARE HOME
Adults Services,Adult Social Care,Older People (Aged 65 or over) including Older Mental Ill,Learning Dis Commissioning,Social Care - Homecare,09/10/2015,3509488,612.48,Outward Housing
Adults Services,Adult Social Care,Older People (Aged 65 or over) including Older Mental Ill,Learning Dis Commissioning,Social Care - Homecare,09/10/2015,3509489,"1,095.60",Outward Housing
Adults Services,Adult Social Care,Older People (Aged 65 or over) including Older Mental Ill,Mental Health Commissioning,Social Care - Supported Accommodation,09/10/2015,3511258,"2,121.43",HAROLD LODGE
Adults Services,Adult Social Care,Older People (Aged 65 or over) including Older Mental Ill,Older People Commissioning,Social Care - Residential Care,09/10/2015,3511303,"2,010.90",LUGANO
Adults Services,Adult Social Care,Older People (Aged 65 or over) including Older Mental Ill,Learning Dis Commissioning,Social Care - Day Care,09/10/2015,3513134,"2,196.04",NAS Services Ltd
Adults Services,Public Health,Smoking and Tobacco,Public Health Team - 2,Payments to Private Contractors - Other Contractors,09/10/2015,3515689,"1,190.17",AR Parmar Ltd
Adults Services,Public Health,Miscellaneous Public Health Services,Public Health Team - 3,Third Party Payments - Voluntary Associations,09/10/2015,3516135,"7,000.00",AGE UK EAST LONDON
Adults Services,Adult Social Care,Older People (Aged 65 or over) including Older Mental Ill,Learning Dis Commissioning,Social Care - Day Care,09/10/2015,3527735,918.00,THE GARWOOD FOUNDATION
Adults Services,Adult Social Care,Older People (Aged 65 or over) including Older Mental Ill,Mental Health Commissioning,Social Care - Supported Accommodation,09/10/2015,3528022,619.80,Look Ahead Care & Support Ltd
Adults Services,Adult Social Care,Older People (Aged 65 or over) including Older Mental Ill,Mental Health Commissioning,Social Care - Supported Accommodation,09/10/2015,3528023,561.84,Look Ahead Care & Support Ltd
Adults Services,Public Health,Children 519 Public Health Programmes,Public Health Team 1,Third Party Payments - Other Establishments,09/10/2015,3528294,"263,486.50",COMPASS WELLBEING CIC
Adults Services,Public Health,Smoking and Tobacco,Public Health Team - 2,Payments to Private Contractors - Other Contractors,09/10/2015,3528385,685.67,MRS T PIANOV T/A MAYORS CHEMIST
Adults Services,Public Health,Smoking and Tobacco,Public Health Team - 2,Payments to Private Contractors - Other Contractors,09/10/2015,3528390,"1,145.70",FLORIDA PHARMACY
Adults Services,Public Health,Smoking and Tobacco,Public Health Team - 2,Payments to Private Contractors - Other Contractors,09/10/2015,3528391,"1,105.03",FLORIDA PHARMACY
Adults Services,Adult Social Care,Adults Aged Under 65 with Mental Health Needs,"ASCPH Director�s Services		",Meeting Expenses,09/10/2015,3530292,"1,560.00",Peel Hotels T/A Norfolk Royale
Adults Services,No Service Specified,No Division Specified,Create S.E.C,Office Furniture/Equipment,12/10/2015,3507497,681.00,Xerox (UK) LTD
Adults Services,Adult Social Care,Older People (Aged 65 or over) including Older Mental Ill,Mental Health Commissioning,Social Care - Supported Accommodation,12/10/2015,3511254,"2,121.43",HAROLD LODGE
Adults Services,Adult Social Care,Older People (Aged 65 or over) including Older Mental Ill,Learning Dis Commissioning,Social Care - Day Care,12/10/2015,3511260,961.88,HEREWARD CARE SERVICES
Adults Services,No Service Specified,No Division Specified,Capital-Minor Works (SC),Building Works - Main Works,12/10/2015,3515645,"45,623.00",Tower Hamlets Schools LTD
Adults Services,Adult Social Care,Older People (Aged 65 or over) including Older Mental Ill,Mental Health Commissioning,Social Care - Supported Accommodation,12/10/2015,3526971,"1,928.57",HAROLD LODGE
Adults Services,Adult Social Care,Older People (Aged 65 or over) including Older Mental Ill,Learning Dis Commissioning,Social Care - Help to Live at Home,12/10/2015,3527694,"7,611.00",SPENCER & ARLINGTON LTD
Adults Services,Public Health,Smoking and Tobacco,Public Health Team - 2,Third Party Payments - Other Establishments,12/10/2015,3528511,"59,235.90",Chelsea and Westmeinster Hospital NHS Foundation Trust
Adults Services,Public Health,Miscellaneous Public Health Services,Public Health Team - 3,Third Party Payments - Voluntary Associations,12/10/2015,3529675,"79,250.00",SOCIAL ACTION FOR HEALTH
Adults Services,Adult Social Care,Older People (Aged 65 or over) including Older Mental Ill,Older People Commissioning,Social Care - Nursing Care,14/10/2015,3494338,-814.42,PARK VIEW CARE HOME
Adults Services,Adult Social Care,Older People (Aged 65 or over) including Older Mental Ill,Learning Dis Commissioning,Social Care - Day Care,14/10/2015,3504219,"6,740.10",London Borough of Haringey
Adults Services,Adult Social Care,Older People (Aged 65 or over) including Older Mental Ill,Learning Dis Commissioning,Social Care - Day Care,14/10/2015,3504220,"7,020.94",London Borough of Haringey
Adults Services,Public Health,Smoking and Tobacco,Public Health Team - 2,Third Party Payments - Voluntary Associations,14/10/2015,3506433,"8,326.67",Positive East
Adults Services,Public Health,Smoking and Tobacco,Public Health Team - 2,Third Party Payments - Voluntary Associations,14/10/2015,3506434,"28,259.50",Positive East
Adults Services,Adult Social Care,Older People (Aged 65 or over) including Older Mental Ill,Older People Commissioning,Social Care - Nursing Care,14/10/2015,3509315,"2,475.95",H-C ONE LTD - TOWER BRIDGE
Adults Services,Adult Social Care,Older People (Aged 65 or over) including Older Mental Ill,Older People Commissioning,Client Contributions for Social Care - Nursing Care,14/10/2015,3509315,-541.29,H-C ONE LTD - TOWER BRIDGE
Adults Services,Adult Social Care,Older People (Aged 65 or over) including Older Mental Ill,Older People Commissioning,Social Care - Homecare,14/10/2015,3509324,"1,014.26",POSITIVE CARE LINK
Adults Services,Adult Social Care,Older People (Aged 65 or over) including Older Mental Ill,Learning Dis Commissioning,Social Care - Day Care,14/10/2015,3511267,"7,020.94",London Borough of Haringey
Adults Services,Public Health,Miscellaneous Public Health Services,Public Health Team - 3,Third Party Payments - Voluntary Associations,14/10/2015,3511653,"8,333.33",Ability Bow
Adults Services,Adult Social Care,Adults Aged Under 65 with Mental Health Needs,Mental Capacity Act,Payments to Private Contractors - Other Contractors,14/10/2015,3528657,"2,749.35",RADHA CONSULTING LTD
Adults Services,No Service Specified,No Division Specified,Community Equipment Store,Services - Professional Fees - Legal Fees/Expenses,14/10/2015,3530524,"37,331.00",Workspace Group PLC
Adults Services,No Service Specified,No Division Specified,Community Equipment Store,Community Equipment  Supplies - Aids and Appliances,14/10/2015,3530829,814.01,FLORIDA PHARMACY
Adults Services,No Service Specified,No Division Specified,Community Equipment Store,Community Equipment  Supplies - Aids and Appliances,14/10/2015,3530976,"2,129.35",SINCLAIR PHARMACY
Adults Services,No Service Specified,No Division Specified,Community Equipment Store,Community Equipment  Supplies - Aids and Appliances,14/10/2015,3530977,545.76,MILDCARE LTD
Adults Services,No Service Specified,No Division Specified,Community Equipment Store,Community Equipment  Supplies - Aids and Appliances,14/10/2015,3530978,"3,710.77",Jaypharm Chemist
Adults Services,No Service Specified,No Division Specified,Community Equipment Store,Community Equipment  Supplies - Aids and Appliances,14/10/2015,3531679,"1,456.71",ARMS CHEMIST
Adults Services,Adult Social Care,Older People (Aged 65 or over) including Older Mental Ill,Older People Commissioning,Social Care - Residential Care,14/10/2015,3531699,"2,435.27",PARK VIEW CARE HOME
Adults Services,Adult Social Care,Older People (Aged 65 or over) including Older Mental Ill,Older People Commissioning,Social Care - Nursing Care,14/10/2015,3531700,"1,504.29",PARK VIEW CARE HOME
Adults Services,Adult Social Care,Older People (Aged 65 or over) including Older Mental Ill,Older People Commissioning,Social Care - Residential Care,14/10/2015,3531701,"3,321.43",PARK VIEW CARE HOME
Adults Services,Adult Social Care,Older People (Aged 65 or over) including Older Mental Ill,Older People Commissioning,Social Care - Residential Care,14/10/2015,3531701,"-1,100.37",PARK VIEW CARE HOME
Adults Services,Adult Social Care,Older People (Aged 65 or over) including Older Mental Ill,Older People Commissioning,Social Care - Nursing Care,14/10/2015,3531702,"3,821.86",PARK VIEW CARE HOME
Adults Services,Adult Social Care,Older People (Aged 65 or over) including Older Mental Ill,Older People Commissioning,Social Care - Residential Care,14/10/2015,3531703,"2,356.71",PARK VIEW CARE HOME
Adults Services,Adult Social Care,Older People (Aged 65 or over) including Older Mental Ill,Older People Commissioning,Social Care - Residential Care,14/10/2015,3531704,"3,214.29",PARK VIEW CARE HOME
Adults Services,Adult Social Care,Older People (Aged 65 or over) including Older Mental Ill,Older People Commissioning,Social Care - Residential Care,14/10/2015,3531704,"-1,064.87",PARK VIEW CARE HOME
Adults Services,Adult Social Care,Older People (Aged 65 or over) including Older Mental Ill,Older People Commissioning,Social Care - Nursing Care,14/10/2015,3531705,"3,698.57",PARK VIEW CARE HOME
Adults Services,Adult Social Care,Older People (Aged 65 or over) including Older Mental Ill,Older People Commissioning,Social Care - Homecare,14/10/2015,3531713,566.69,ATHLONE CARE LTD
Adults Services,Adult Social Care,Older People (Aged 65 or over) including Older Mental Ill,Physical Dis Commissioning,Social Care - Homecare,14/10/2015,3531714,"2,934.06",ATHLONE CARE LTD
Adults Services,Adult Social Care,Older People (Aged 65 or over) including Older Mental Ill,Physical Dis Commissioning,Social Care - Homecare,14/10/2015,3531715,"1,682.87",ATHLONE CARE LTD
Adults Services,Adult Social Care,Older People (Aged 65 or over) including Older Mental Ill,Older People Commissioning,Social Care - Homecare,14/10/2015,3531717,586.57,ATHLONE CARE LTD
Adults Services,Adult Social Care,Older People (Aged 65 or over) including Older Mental Ill,Physical Dis Commissioning,Social Care - Homecare,14/10/2015,3531721,565.11,FOCUS CARE LINK LTD
Adults Services,Adult Social Care,Older People (Aged 65 or over) including Older Mental Ill,Physical Dis Commissioning,Social Care - Homecare,14/10/2015,3531746,"1,369.31",FOCUS CARE LINK LTD
Adults Services,Adult Social Care,Older People (Aged 65 or over) including Older Mental Ill,Older People Commissioning,Social Care - Homecare,14/10/2015,3531747,536.13,FOCUS CARE LINK LTD
Adults Services,Adult Social Care,Older People (Aged 65 or over) including Older Mental Ill,Learning Dis Commissioning,Social Care - Homecare,14/10/2015,3531766,"1,154.25",Mantra Recruitment
Adults Services,Adult Social Care,Older People (Aged 65 or over) including Older Mental Ill,Older People Commissioning,Social Care - Homecare,14/10/2015,3531767,721.93,Mantra Recruitment
Adults Services,Adult Social Care,Older People (Aged 65 or over) including Older Mental Ill,Physical Dis Commissioning,Social Care - Homecare,14/10/2015,3531785,"1,029.80",Mantra Recruitment
Adults Services,Adult Social Care,Older People (Aged 65 or over) including Older Mental Ill,Older People Commissioning,Social Care - Homecare,14/10/2015,3531803,"4,082.40",Mantra Recruitment
Adults Services,Adult Social Care,Older People (Aged 65 or over) including Older Mental Ill,Older People Commissioning,Social Care - Homecare,14/10/2015,3531828,534.60,Mantra Recruitment
Adults Services,Adult Social Care,Older People (Aged 65 or over) including Older Mental Ill,Physical Dis Commissioning,Social Care - Homecare,14/10/2015,3531840,532.38,Excelcare (Home Care Division) LTD
Adults Services,Adult Social Care,Older People (Aged 65 or over) including Older Mental Ill,Learning Dis Commissioning,Social Care - Residential Care,14/10/2015,3531863,"9,200.00",Coppice Care Burgess Hill LLP
Adults Services,Adult Social Care,Older People (Aged 65 or over) including Older Mental Ill,Older People Commissioning,Social Care - Residential Care,14/10/2015,3531864,"2,071.81",MORELAND HOUSE
Adults Services,Adult Social Care,Older People (Aged 65 or over) including Older Mental Ill,Older People Commissioning,Social Care - Residential Care,14/10/2015,3531865,"2,785.71",MORELAND HOUSE
Adults Services,Adult Social Care,Older People (Aged 65 or over) including Older Mental Ill,Older People Commissioning,Social Care - Residential Care,14/10/2015,3531866,"2,878.57",MORELAND HOUSE
Adults Services,Adult Social Care,Older People (Aged 65 or over) including Older Mental Ill,Older People Commissioning,Social Care - Residential Care,14/10/2015,3531867,"-1,769.87",MORELAND HOUSE
Adults Services,Adult Social Care,Older People (Aged 65 or over) including Older Mental Ill,Mental Health Commissioning,Social Care - Prevention & Support,14/10/2015,3531868,"1,750.00",OLD FRIEND HOTEL
Adults Services,General Fund/Council Fund,Homelessness,Supporting People Services,SP - Block Subsidy - Old People-Supp Needs,14/10/2015,3532505,"1,766.93",CIRCLE SUPPORT CONSORTIUM
Adults Services,General Fund/Council Fund,Homelessness,Supporting People Services,SP - Block Subsidy - Old People-Supp Needs,14/10/2015,3532506,"1,367.93",CIRCLE SUPPORT CONSORTIUM
Adults Services,General Fund/Council Fund,Homelessness,Supporting People Services,SP - Block-Gross - Others,14/10/2015,3532509,"12,522.92",THE EX-SERVICE FELLOWSHIP CENTRES
Adults Services,General Fund/Council Fund,Homelessness,Supporting People Services,SP - Block-Gross - Single Homeless,14/10/2015,3532510,"75,781.05",Salvation Army
Adults Services,General Fund/Council Fund,Homelessness,Supporting People Services,SP - Block-Gross - Mental Health,14/10/2015,3532511,"6,651.25",Providence Row Housing Association
Adults Services,General Fund/Council Fund,Homelessness,Supporting People Services,SP - Block-Gross - Single Homeless,14/10/2015,3532511,"147,492.66",Providence Row Housing Association
Adults Services,General Fund/Council Fund,Homelessness,Supporting People Services,SP - Block-Gross - Learning Disabilities,14/10/2015,3532512,"40,768.62",Outward Housing
Adults Services,General Fund/Council Fund,Homelessness,Supporting People Services,SP - Block-Gross - Domestic Violence,14/10/2015,3532513,"25,722.58",HESTIA HOUSING & SUPPORT
Adults Services,General Fund/Council Fund,Homelessness,Supporting People Services,SP - Block-Gross - Mental Health,14/10/2015,3532513,"57,064.19",HESTIA HOUSING & SUPPORT
Adults Services,General Fund/Council Fund,Homelessness,Supporting People Services,SP - Block-Gross - Y People Risk/Care Lev,14/10/2015,3532514,"46,283.17",Kipper Project
Adults Services,General Fund/Council Fund,Homelessness,Supporting People Services,SP - Block-Gross - Old People-Supp Needs,14/10/2015,3532516,606.67,CIRCLE SUPPORT CONSORTIUM
Adults Services,General Fund/Council Fund,Homelessness,Supporting People Services,SP - Block-Gross - Old People-Supp Needs,14/10/2015,3532517,585.00,London Borough Of Newham
Adults Services,General Fund/Council Fund,Homelessness,Supporting People Services,SP - Block-Gross - Y People Risk/Care Lev,14/10/2015,3532518,"7,507.50",One Housing Group
Adults Services,General Fund/Council Fund,Homelessness,Supporting People Services,SP - Block-Gross - Generic,14/10/2015,3532519,"58,006.92",Look Ahead Care & Support Ltd
Adults Services,General Fund/Council Fund,Homelessness,Supporting People Services,SP - Block-Gross - Learning Disabilities,14/10/2015,3532519,"50,388.14",Look Ahead Care & Support Ltd
Adults Services,General Fund/Council Fund,Homelessness,Supporting People Services,SP - Block-Gross - Mental Health,14/10/2015,3532519,"207,367.27",Look Ahead Care & Support Ltd
Adults Services,General Fund/Council Fund,Homelessness,Supporting People Services,SP - Block-Gross - Single Homeless,14/10/2015,3532519,"143,530.83",Look Ahead Care & Support Ltd
Adults Services,General Fund/Council Fund,Homelessness,Supporting People Services,SP - Block-Gross - Y People Risk/Care Lev,14/10/2015,3532519,"62,943.49",Look Ahead Care & Support Ltd
Adults Services,Adult Social Care,Older People (Aged 65 or over) including Older Mental Ill,Physical Dis Commissioning,Social Care - Personal Budgets - Cash,14/10/2015,3532522,"2,801.79",DAVID HOWARD LTD CLIENT ACCOUNT
Adults Services,Adult Social Care,Older People (Aged 65 or over) including Older Mental Ill,Learning Dis Commissioning,Social Care - Personal Budgets - Cash,14/10/2015,3532523,571.43,DAVID HOWARD LTD CLIENT ACCOUNT
Adults Services,Adult Social Care,Older People (Aged 65 or over) including Older Mental Ill,Older People Commissioning,Social Care - Personal Budgets - Cash,14/10/2015,3532524,"18,241.23",D D PAYROLL SERVICES
Adults Services,Adult Social Care,Older People (Aged 65 or over) including Older Mental Ill,Older People Commissioning,Social Care - Residential Care,14/10/2015,3532525,"15,920.00",GATEWAY HOUSING ASSOCIATION
Adults Services,Adult Social Care,Older People (Aged 65 or over) including Older Mental Ill,Older People Commissioning,Social Care - Homecare,14/10/2015,3532539,554.24,REDSPOT HOMECARE(CONTRACTS) LTD
Adults Services,Adult Social Care,Older People (Aged 65 or over) including Older Mental Ill,Older People Commissioning,Social Care - Homecare,14/10/2015,3532542,858.45,REDSPOT HOMECARE(CONTRACTS) LTD
Adults Services,Adult Social Care,Older People (Aged 65 or over) including Older Mental Ill,Older People Commissioning,Social Care - Homecare,14/10/2015,3532554,568.79,REDSPOT HOMECARE(CONTRACTS) LTD
Adults Services,Adult Social Care,Older People (Aged 65 or over) including Older Mental Ill,Older People Commissioning,Social Care - Homecare,14/10/2015,3532556,"4,082.40",Mantra Recruitment
Adults Services,Adult Social Care,Older People (Aged 65 or over) including Older Mental Ill,Older People Commissioning,Social Care - Homecare,14/10/2015,3532565,540.68,Mantra Recruitment
Adults Services,Adult Social Care,Older People (Aged 65 or over) including Older Mental Ill,Older People Commissioning,Social Care - Residential Care,14/10/2015,3532567,"2,344.22",ABBELEIGH HOUSE
Adults Services,Adult Social Care,Older People (Aged 65 or over) including Older Mental Ill,Older People Commissioning,Social Care - Residential Care,14/10/2015,3532568,"2,344.22",ABBELEIGH HOUSE
Adults Services,Adult Social Care,Older People (Aged 65 or over) including Older Mental Ill,Older People Commissioning,Social Care - Residential Care,14/10/2015,3532569,"2,268.60",ABBELEIGH HOUSE
Adults Services,Adult Social Care,Older People (Aged 65 or over) including Older Mental Ill,Older People Commissioning,Social Care - Day Care,14/10/2015,3532572,668.07,St Hilda's East Community Centre
Adults Services,Adult Social Care,Older People (Aged 65 or over) including Older Mental Ill,Older People Commissioning,Social Care - Day Care,14/10/2015,3532574,908.55,St Hilda's East Community Centre
Adults Services,Adult Social Care,Older People (Aged 65 or over) including Older Mental Ill,Older People Commissioning,Social Care - Personal Budgets - Non-Trad Service,14/10/2015,3532586,700.99,St Hilda's East Community Centre
Adults Services,Adult Social Care,Older People (Aged 65 or over) including Older Mental Ill,Older People Commissioning,Social Care - Day Care,14/10/2015,3532599,695.07,St Hilda's East Community Centre
Adults Services,Adult Social Care,Older People (Aged 65 or over) including Older Mental Ill,Older People Commissioning,Social Care - Day Care,14/10/2015,3532600,886.63,St Hilda's East Community Centre
Adults Services,Adult Social Care,Older People (Aged 65 or over) including Older Mental Ill,Physical Dis Commissioning,Social Care - Day Care,14/10/2015,3532605,513.90,St Hilda's East Community Centre
Adults Services,Adult Social Care,Older People (Aged 65 or over) including Older Mental Ill,Older People Commissioning,Social Care - Day Care,14/10/2015,3532606,818.03,St Hilda's East Community Centre
Adults Services,Adult Social Care,Older People (Aged 65 or over) including Older Mental Ill,Mental Health Commissioning,Social Care - Day Care,14/10/2015,3532610,608.26,St Hilda's East Community Centre
Adults Services,Adult Social Care,Older People (Aged 65 or over) including Older Mental Ill,Older People Commissioning,Social Care - Day Care,14/10/2015,3532611,616.68,St Hilda's East Community Centre
Adults Services,Adult Social Care,Older People (Aged 65 or over) including Older Mental Ill,Older People Commissioning,Social Care - Day Care,14/10/2015,3532615,633.89,St Hilda's East Community Centre
Adults Services,Adult Social Care,Older People (Aged 65 or over) including Older Mental Ill,Mental Health Commissioning,Social Care - Day Care,14/10/2015,3532618,"1,079.19",St Hilda's East Community Centre
Adults Services,Adult Social Care,Older People (Aged 65 or over) including Older Mental Ill,Older People Commissioning,Social Care - Day Care,14/10/2015,3532619,736.67,St Hilda's East Community Centre
Adults Services,Adult Social Care,Older People (Aged 65 or over) including Older Mental Ill,Older People Commissioning,Social Care - Day Care,14/10/2015,3532620,513.90,St Hilda's East Community Centre
Adults Services,Adult Social Care,Older People (Aged 65 or over) including Older Mental Ill,Older People Commissioning,Social Care - Day Care,14/10/2015,3532625,668.07,St Hilda's East Community Centre
Adults Services,Adult Social Care,Older People (Aged 65 or over) including Older Mental Ill,Older People Commissioning,Social Care - Day Care,14/10/2015,3532626,616.68,St Hilda's East Community Centre
Adults Services,Adult Social Care,Older People (Aged 65 or over) including Older Mental Ill,Mental Health Commissioning,Social Care - Day Care,14/10/2015,3532630,758.22,St Hilda's East Community Centre
Adults Services,Adult Social Care,Older People (Aged 65 or over) including Older Mental Ill,Physical Dis Commissioning,Social Care - Day Care,14/10/2015,3532631,687.24,St Hilda's East Community Centre
Adults Services,Adult Social Care,Older People (Aged 65 or over) including Older Mental Ill,Older People Commissioning,Social Care - Day Care,14/10/2015,3532635,822.24,St Hilda's East Community Centre
Adults Services,Adult Social Care,Older People (Aged 65 or over) including Older Mental Ill,Older People Commissioning,Social Care - Day Care,14/10/2015,3532639,"1,074.98",St Hilda's East Community Centre
Adults Services,Adult Social Care,Older People (Aged 65 or over) including Older Mental Ill,Older People Commissioning,Social Care - Day Care,14/10/2015,3532645,668.07,St Hilda's East Community Centre
Adults Services,Adult Social Care,Older People (Aged 65 or over) including Older Mental Ill,Older People Commissioning,Social Care - Day Care,14/10/2015,3532646,531.11,St Hilda's East Community Centre
Adults Services,Adult Social Care,Older People (Aged 65 or over) including Older Mental Ill,Mental Health Commissioning,Social Care - Day Care,14/10/2015,3532649,608.26,St Hilda's East Community Centre
Adults Services,Adult Social Care,Older People (Aged 65 or over) including Older Mental Ill,Learning Dis Commissioning,Social Care - Day Care,14/10/2015,3532650,661.60,APASENTH
Adults Services,Adult Social Care,Older People (Aged 65 or over) including Older Mental Ill,Learning Dis Commissioning,Social Care - Day Care,14/10/2015,3532651,694.68,APASENTH
Adults Services,Adult Social Care,Older People (Aged 65 or over) including Older Mental Ill,Learning Dis Commissioning,Social Care - Day Care,14/10/2015,3532653,"1,022.14",APASENTH
Adults Services,Adult Social Care,Older People (Aged 65 or over) including Older Mental Ill,Learning Dis Commissioning,Social Care - Day Care,14/10/2015,3532653,894.43,APASENTH
Adults Services,Adult Social Care,Older People (Aged 65 or over) including Older Mental Ill,Learning Dis Commissioning,Social Care - Day Care,14/10/2015,3532654,584.36,APASENTH
Adults Services,Adult Social Care,Older People (Aged 65 or over) including Older Mental Ill,Learning Dis Commissioning,Social Care - Day Care,14/10/2015,3532655,694.68,APASENTH
Adults Services,Adult Social Care,Older People (Aged 65 or over) including Older Mental Ill,Learning Dis Commissioning,Social Care - Day Care,14/10/2015,3532656,718.24,APASENTH
Adults Services,Adult Social Care,Older People (Aged 65 or over) including Older Mental Ill,Learning Dis Commissioning,Social Care - Day Care,14/10/2015,3532657,515.97,APASENTH
Adults Services,Adult Social Care,Older People (Aged 65 or over) including Older Mental Ill,Learning Dis Commissioning,Social Care - Day Care,14/10/2015,3532658,562.36,APASENTH
Adults Services,Adult Social Care,Older People (Aged 65 or over) including Older Mental Ill,Learning Dis Commissioning,Social Care - Day Care,14/10/2015,3532660,942.69,APASENTH
Adults Services,Adult Social Care,Older People (Aged 65 or over) including Older Mental Ill,Learning Dis Commissioning,Social Care - Day Care,14/10/2015,3532661,694.68,APASENTH
Adults Services,Adult Social Care,Older People (Aged 65 or over) including Older Mental Ill,Learning Dis Commissioning,Social Care - Day Care,14/10/2015,3532662,942.69,APASENTH
Adults Services,Adult Social Care,Older People (Aged 65 or over) including Older Mental Ill,Learning Dis Commissioning,Social Care - Day Care,14/10/2015,3532664,942.69,APASENTH
Adults Services,Adult Social Care,Older People (Aged 65 or over) including Older Mental Ill,Learning Dis Commissioning,Social Care - Day Care,14/10/2015,3532665,"1,753.08",APASENTH
Adults Services,Adult Social Care,Older People (Aged 65 or over) including Older Mental Ill,Learning Dis Commissioning,Social Care - Day Care,14/10/2015,3532667,661.60,APASENTH
Adults Services,Adult Social Care,Older People (Aged 65 or over) including Older Mental Ill,Learning Dis Commissioning,Social Care - Day Care,14/10/2015,3532672,942.69,APASENTH
Adults Services,Adult Social Care,Older People (Aged 65 or over) including Older Mental Ill,Learning Dis Commissioning,Social Care - Day Care,14/10/2015,3532673,694.68,APASENTH
Adults Services,Adult Social Care,Older People (Aged 65 or over) including Older Mental Ill,Learning Dis Commissioning,Social Care - Day Care,14/10/2015,3532674,694.68,APASENTH
Adults Services,Adult Social Care,Older People (Aged 65 or over) including Older Mental Ill,Learning Dis Commissioning,Social Care - Day Care,14/10/2015,3532676,"1,669.60",APASENTH
Adults Services,Adult Social Care,Older People (Aged 65 or over) including Older Mental Ill,Learning Dis Commissioning,Social Care - Day Care,14/10/2015,3532677,"1,276.59",APASENTH
Adults Services,Adult Social Care,Older People (Aged 65 or over) including Older Mental Ill,Learning Dis Commissioning,Social Care - Day Care,14/10/2015,3532678,661.60,APASENTH
Adults Services,Adult Social Care,Older People (Aged 65 or over) including Older Mental Ill,Learning Dis Commissioning,Social Care - Day Care,14/10/2015,3532679,928.07,APASENTH
Adults Services,Adult Social Care,Older People (Aged 65 or over) including Older Mental Ill,Learning Dis Commissioning,Social Care - Personal Budgets - Non-Trad Service,14/10/2015,3532680,583.57,APASENTH
Adults Services,Adult Social Care,Older People (Aged 65 or over) including Older Mental Ill,Learning Dis Commissioning,Social Care - Day Care,14/10/2015,3532681,661.60,APASENTH
Adults Services,Adult Social Care,Older People (Aged 65 or over) including Older Mental Ill,Learning Dis Commissioning,Social Care - Day Care,14/10/2015,3532685,942.69,APASENTH
Adults Services,Adult Social Care,Older People (Aged 65 or over) including Older Mental Ill,Learning Dis Commissioning,Social Care - Day Care,14/10/2015,3532686,628.52,APASENTH
Adults Services,Adult Social Care,Older People (Aged 65 or over) including Older Mental Ill,Learning Dis Commissioning,Social Care - Day Care,14/10/2015,3532687,628.52,APASENTH
Adults Services,Adult Social Care,Older People (Aged 65 or over) including Older Mental Ill,Learning Dis Commissioning,Social Care - Day Care,14/10/2015,3532688,529.28,APASENTH
Adults Services,Adult Social Care,Older People (Aged 65 or over) including Older Mental Ill,Learning Dis Commissioning,Social Care - Day Care,14/10/2015,3532689,694.68,APASENTH
Adults Services,Adult Social Care,Older People (Aged 65 or over) including Older Mental Ill,Learning Dis Commissioning,Social Care - Day Care,14/10/2015,3532691,694.68,APASENTH
Adults Services,Adult Social Care,Older People (Aged 65 or over) including Older Mental Ill,Learning Dis Commissioning,Social Care - Day Care,14/10/2015,3532692,942.69,APASENTH
Adults Services,Adult Social Care,Older People (Aged 65 or over) including Older Mental Ill,Learning Dis Commissioning,Social Care - Day Care,14/10/2015,3532694,511.07,APASENTH
Adults Services,Adult Social Care,Older People (Aged 65 or over) including Older Mental Ill,Learning Dis Commissioning,Social Care - Day Care,14/10/2015,3532694,589.25,APASENTH
Adults Services,Adult Social Care,Older People (Aged 65 or over) including Older Mental Ill,Learning Dis Commissioning,Social Care - Day Care,14/10/2015,3532695,694.68,APASENTH
Adults Services,Adult Social Care,Older People (Aged 65 or over) including Older Mental Ill,Learning Dis Commissioning,Social Care - Day Care,14/10/2015,3532696,628.52,APASENTH
Adults Services,Adult Social Care,Older People (Aged 65 or over) including Older Mental Ill,Learning Dis Commissioning,Social Care - Day Care,14/10/2015,3532697,595.44,APASENTH
Adults Services,Adult Social Care,Older People (Aged 65 or over) including Older Mental Ill,Learning Dis Commissioning,Social Care - Day Care,14/10/2015,3532698,942.69,APASENTH
Adults Services,Adult Social Care,Older People (Aged 65 or over) including Older Mental Ill,Learning Dis Commissioning,Social Care - Day Care,14/10/2015,3532699,918.28,APASENTH
Adults Services,Adult Social Care,Older People (Aged 65 or over) including Older Mental Ill,Learning Dis Commissioning,Social Care - Day Care,14/10/2015,3532700,583.57,APASENTH
Adults Services,Adult Social Care,Older People (Aged 65 or over) including Older Mental Ill,Learning Dis Commissioning,Social Care - Day Care,14/10/2015,3532701,"1,502.00",APASENTH
Adults Services,Adult Social Care,Older People (Aged 65 or over) including Older Mental Ill,Learning Dis Commissioning,Social Care - Day Care,14/10/2015,3532705,500.88,APASENTH
Adults Services,Adult Social Care,Older People (Aged 65 or over) including Older Mental Ill,Learning Dis Commissioning,Social Care - Day Care,14/10/2015,3532708,685.23,APASENTH
Adults Services,Adult Social Care,Older People (Aged 65 or over) including Older Mental Ill,Learning Dis Commissioning,Social Care - Day Care,14/10/2015,3532715,"2,079.22",Tower Project
Adults Services,Adult Social Care,Older People (Aged 65 or over) including Older Mental Ill,Learning Dis Commissioning,Social Care - Personal Budgets - Non-Trad Service,14/10/2015,3532716,"2,079.22",Tower Project
Adults Services,Adult Social Care,Older People (Aged 65 or over) including Older Mental Ill,Learning Dis Commissioning,Social Care - Day Care,14/10/2015,3532717,"2,079.22",Tower Project
Adults Services,Adult Social Care,Older People (Aged 65 or over) including Older Mental Ill,Learning Dis Commissioning,Social Care - Day Care,14/10/2015,3532718,"2,079.22",Tower Project
Adults Services,Adult Social Care,Older People (Aged 65 or over) including Older Mental Ill,Learning Dis Commissioning,Social Care - Day Care,14/10/2015,3532719,"1,466.96",Tower Project
Adults Services,Adult Social Care,Older People (Aged 65 or over) including Older Mental Ill,Learning Dis Commissioning,Social Care - Day Care,14/10/2015,3532720,"2,079.22",Tower Project
Adults Services,Adult Social Care,Older People (Aged 65 or over) including Older Mental Ill,Learning Dis Commissioning,Social Care - Day Care,14/10/2015,3532721,"1,466.96",Tower Project
Adults Services,Adult Social Care,Older People (Aged 65 or over) including Older Mental Ill,Learning Dis Commissioning,Social Care - Day Care,14/10/2015,3532722,"2,079.22",Tower Project
Adults Services,Adult Social Care,Older People (Aged 65 or over) including Older Mental Ill,Learning Dis Commissioning,Social Care - Day Care,14/10/2015,3532723,"1,466.96",Tower Project
Adults Services,Adult Social Care,Older People (Aged 65 or over) including Older Mental Ill,Learning Dis Commissioning,Social Care - Day Care,14/10/2015,3532724,533.44,Tower Project
Adults Services,Adult Social Care,Older People (Aged 65 or over) including Older Mental Ill,Learning Dis Commissioning,Social Care - Day Care,14/10/2015,3532725,866.84,Tower Project
Adults Services,Adult Social Care,Older People (Aged 65 or over) including Older Mental Ill,Learning Dis Commissioning,Social Care - Day Care,14/10/2015,3532726,"2,087.51",Tower Project
Adults Services,Adult Social Care,Older People (Aged 65 or over) including Older Mental Ill,Physical Dis Commissioning,Social Care - Day Care,14/10/2015,3532727,660.52,Tower Project
Adults Services,Adult Social Care,Older People (Aged 65 or over) including Older Mental Ill,Learning Dis Commissioning,Social Care - Day Care,14/10/2015,3532728,"2,079.22",Tower Project
Adults Services,Adult Social Care,Older People (Aged 65 or over) including Older Mental Ill,Learning Dis Commissioning,Social Care - Day Care,14/10/2015,3532729,"2,079.22",Tower Project
Adults Services,Adult Social Care,Older People (Aged 65 or over) including Older Mental Ill,Learning Dis Commissioning,Social Care - Day Care,14/10/2015,3532730,"1,466.96",Tower Project
Adults Services,Adult Social Care,Older People (Aged 65 or over) including Older Mental Ill,Learning Dis Commissioning,Social Care - Day Care,14/10/2015,3532731,"2,079.22",Tower Project
Adults Services,Adult Social Care,Older People (Aged 65 or over) including Older Mental Ill,Learning Dis Commissioning,Social Care - Day Care,14/10/2015,3532732,"2,079.22",Tower Project
Adults Services,Adult Social Care,Older People (Aged 65 or over) including Older Mental Ill,Learning Dis Commissioning,Social Care - Day Care,14/10/2015,3532733,"1,466.96",Tower Project
Adults Services,Adult Social Care,Older People (Aged 65 or over) including Older Mental Ill,Learning Dis Commissioning,Social Care - Day Care,14/10/2015,3532734,"1,466.96",Tower Project
Adults Services,Adult Social Care,Older People (Aged 65 or over) including Older Mental Ill,Learning Dis Commissioning,Social Care - Day Care,14/10/2015,3532736,"2,079.22",Tower Project
Adults Services,Adult Social Care,Older People (Aged 65 or over) including Older Mental Ill,Learning Dis Commissioning,Social Care - Day Care,14/10/2015,3532737,"2,079.22",Tower Project
Adults Services,Adult Social Care,Older People (Aged 65 or over) including Older Mental Ill,Learning Dis Commissioning,Social Care - Day Care,14/10/2015,3532738,"2,079.22",Tower Project
Adults Services,Adult Social Care,Older People (Aged 65 or over) including Older Mental Ill,Learning Dis Commissioning,Social Care - Day Care,14/10/2015,3532740,"2,079.22",Tower Project
Adults Services,Adult Social Care,Older People (Aged 65 or over) including Older Mental Ill,Learning Dis Commissioning,Social Care - Day Care,14/10/2015,3532742,"2,079.22",Tower Project
Adults Services,Adult Social Care,Older People (Aged 65 or over) including Older Mental Ill,Learning Dis Commissioning,Social Care - Day Care,14/10/2015,3532743,"2,398.22",Tower Project
Adults Services,Adult Social Care,Older People (Aged 65 or over) including Older Mental Ill,Learning Dis Commissioning,Social Care - Day Care,14/10/2015,3532744,"1,466.96",Tower Project
Adults Services,Adult Social Care,Older People (Aged 65 or over) including Older Mental Ill,Learning Dis Commissioning,Social Care - Day Care,14/10/2015,3532745,"1,466.96",Tower Project
Adults Services,Adult Social Care,Older People (Aged 65 or over) including Older Mental Ill,Learning Dis Commissioning,Social Care - Day Care,14/10/2015,3532746,"2,079.22",Tower Project
Adults Services,Adult Social Care,Older People (Aged 65 or over) including Older Mental Ill,Learning Dis Commissioning,Social Care - Day Care,14/10/2015,3532747,"1,228.63",Tower Project
Adults Services,Adult Social Care,Older People (Aged 65 or over) including Older Mental Ill,Learning Dis Commissioning,Social Care - Day Care,14/10/2015,3532748,"2,079.22",Tower Project
Adults Services,Adult Social Care,Older People (Aged 65 or over) including Older Mental Ill,Learning Dis Commissioning,Social Care - Day Care,14/10/2015,3532751,"2,079.22",Tower Project
Adults Services,Adult Social Care,Older People (Aged 65 or over) including Older Mental Ill,Learning Dis Commissioning,Social Care - Day Care,14/10/2015,3532752,"1,466.96",Tower Project
Adults Services,Adult Social Care,Older People (Aged 65 or over) including Older Mental Ill,Learning Dis Commissioning,Social Care - Day Care,14/10/2015,3532753,"1,037.96",Tower Project
Adults Services,Adult Social Care,Older People (Aged 65 or over) including Older Mental Ill,Learning Dis Commissioning,Social Care - Day Care,14/10/2015,3532754,"2,079.22",Tower Project
Adults Services,Adult Social Care,Older People (Aged 65 or over) including Older Mental Ill,Learning Dis Commissioning,Social Care - Day Care,14/10/2015,3532755,"1,037.96",Tower Project
Adults Services,Adult Social Care,Older People (Aged 65 or over) including Older Mental Ill,Learning Dis Commissioning,Social Care - Day Care,14/10/2015,3532756,"2,079.22",Tower Project
Adults Services,Adult Social Care,Older People (Aged 65 or over) including Older Mental Ill,Learning Dis Commissioning,Social Care - Personal Budgets - Non-Trad Service,14/10/2015,3532757,"2,079.22",Tower Project
Adults Services,Adult Social Care,Older People (Aged 65 or over) including Older Mental Ill,Physical Dis Commissioning,Social Care - Personal Budgets - Non-Trad Service,14/10/2015,3532775,"4,895.39",MiHOMECARE LIMITED
Adults Services,Adult Social Care,Older People (Aged 65 or over) including Older Mental Ill,Learning Dis Commissioning,Social Care - Homecare,14/10/2015,3532776,"3,574.20",MiHOMECARE LIMITED
Adults Services,Adult Social Care,Older People (Aged 65 or over) including Older Mental Ill,Older People Commissioning,Social Care - Homecare,14/10/2015,3532789,716.29,MiHOMECARE LIMITED
Adults Services,Adult Social Care,Older People (Aged 65 or over) including Older Mental Ill,Older People Commissioning,Social Care - Homecare,14/10/2015,3532795,556.62,MiHOMECARE LIMITED
Adults Services,Adult Social Care,Older People (Aged 65 or over) including Older Mental Ill,Older People Commissioning,Social Care - Homecare,14/10/2015,3532796,538.90,MiHOMECARE LIMITED
Adults Services,Adult Social Care,Older People (Aged 65 or over) including Older Mental Ill,Physical Dis Commissioning,Social Care - Personal Budgets - Non-Trad Service,14/10/2015,3532802,"4,705.44",MiHOMECARE LIMITED
Adults Services,Adult Social Care,Older People (Aged 65 or over) including Older Mental Ill,Learning Dis Commissioning,Social Care - Homecare,14/10/2015,3532803,"2,219.06",MiHOMECARE LIMITED
Adults Services,Adult Social Care,Older People (Aged 65 or over) including Older Mental Ill,Learning Dis Commissioning,Social Care - Homecare,14/10/2015,3532818,737.36,MiHOMECARE LIMITED
Adults Services,Adult Social Care,Older People (Aged 65 or over) including Older Mental Ill,Older People Commissioning,Social Care - Homecare,14/10/2015,3532823,726.93,MiHOMECARE LIMITED
Adults Services,Adult Social Care,Older People (Aged 65 or over) including Older Mental Ill,Older People Commissioning,Social Care - Homecare,14/10/2015,3532829,538.90,MiHOMECARE LIMITED
Adults Services,Adult Social Care,Older People (Aged 65 or over) including Older Mental Ill,Older People Commissioning,Social Care - Homecare,14/10/2015,3532832,502.26,MiHOMECARE LIMITED
Adults Services,Adult Social Care,Older People (Aged 65 or over) including Older Mental Ill,Older People Commissioning,Social Care - Homecare,14/10/2015,3532849,850.94,MiHOMECARE LIMITED
Adults Services,Adult Social Care,Older People (Aged 65 or over) including Older Mental Ill,Older People Commissioning,Social Care - Nursing Care,14/10/2015,3532857,"3,716.06",Havelock Court (Bupa)
Adults Services,Adult Social Care,Older People (Aged 65 or over) including Older Mental Ill,Older People Commissioning,Social Care - Nursing Care,14/10/2015,3532858,"3,596.19",Havelock Court (Bupa)
Adults Services,Adult Social Care,Older People (Aged 65 or over) including Older Mental Ill,Older People Commissioning,Social Care - Prevention & Support,14/10/2015,3532860,"1,400.00",Plaza London Hotel
Adults Services,Adult Social Care,Older People (Aged 65 or over) including Older Mental Ill,Older People Commissioning,Social Care - Homecare,14/10/2015,3532861,"1,223.60",APASENTH
Adults Services,Adult Social Care,Older People (Aged 65 or over) including Older Mental Ill,Learning Dis Commissioning,Social Care - Help to Live at Home,14/10/2015,3532879,"5,494.84",Church House
Adults Services,Adult Social Care,Older People (Aged 65 or over) including Older Mental Ill,Older People Commissioning,Social Care - Residential Care,14/10/2015,3532880,"1,925.96",RUNWOOD HOMES PLC
Adults Services,Adult Social Care,Older People (Aged 65 or over) including Older Mental Ill,Older People Commissioning,Social Care - Residential Care,14/10/2015,3532881,"1,857.90",RUNWOOD HOMES PLC
Adults Services,Adult Social Care,Older People (Aged 65 or over) including Older Mental Ill,Older People Commissioning,Social Care - Residential Care,14/10/2015,3532881,-724.54,RUNWOOD HOMES PLC
Adults Services,Adult Social Care,Older People (Aged 65 or over) including Older Mental Ill,Older People Commissioning,Social Care - Residential Care,14/10/2015,3532882,"1,954.55",RUNWOOD HOMES PLC
Adults Services,Adult Social Care,Older People (Aged 65 or over) including Older Mental Ill,Older People Commissioning,Social Care - Residential Care,14/10/2015,3532882,-565.29,RUNWOOD HOMES PLC
Adults Services,Adult Social Care,Older People (Aged 65 or over) including Older Mental Ill,Physical Dis Commissioning,Social Care - Homecare,14/10/2015,3532889,770.04,SANCTUARY HOME CARE LIMITED
Adults Services,Adult Social Care,Older People (Aged 65 or over) including Older Mental Ill,Physical Dis Commissioning,Social Care - Homecare,14/10/2015,3532921,727.26,SANCTUARY HOME CARE LIMITED
Adults Services,Adult Social Care,Older People (Aged 65 or over) including Older Mental Ill,Older People Commissioning,Social Care - Homecare,14/10/2015,3532928,606.05,SANCTUARY HOME CARE LIMITED
Adults Services,Adult Social Care,Older People (Aged 65 or over) including Older Mental Ill,Older People Commissioning,Social Care - Homecare,14/10/2015,3532931,677.36,SANCTUARY HOME CARE LIMITED
Adults Services,Adult Social Care,Older People (Aged 65 or over) including Older Mental Ill,Physical Dis Commissioning,Social Care - Homecare,14/10/2015,3532939,"1,597.12",SANCTUARY HOME CARE LIMITED
Adults Services,Adult Social Care,Older People (Aged 65 or over) including Older Mental Ill,Learning Dis Commissioning,Social Care - Homecare,14/10/2015,3532944,556.15,SANCTUARY HOME CARE LIMITED
Adults Services,Adult Social Care,Older People (Aged 65 or over) including Older Mental Ill,Older People Commissioning,Social Care - Homecare,14/10/2015,3532956,541.50,Soma Healthcare Ltd
Adults Services,Adult Social Care,Older People (Aged 65 or over) including Older Mental Ill,Physical Dis Commissioning,Social Care - Personal Budgets - Non-Trad Service,14/10/2015,3532958,669.75,Soma Healthcare Ltd
Adults Services,Adult Social Care,Older People (Aged 65 or over) including Older Mental Ill,Older People Commissioning,Social Care - Homecare,14/10/2015,3532966,520.13,Soma Healthcare Ltd
Adults Services,Adult Social Care,Older People (Aged 65 or over) including Older Mental Ill,Older People Commissioning,Social Care - Homecare,14/10/2015,3532967,976.13,Soma Healthcare Ltd
Adults Services,Adult Social Care,Older People (Aged 65 or over) including Older Mental Ill,Older People Commissioning,Social Care - Homecare,14/10/2015,3532969,527.25,Soma Healthcare Ltd
Adults Services,Adult Social Care,Older People (Aged 65 or over) including Older Mental Ill,Older People Commissioning,Social Care - Homecare,14/10/2015,3532974,"1,813.31",Soma Healthcare Ltd
Adults Services,Adult Social Care,Older People (Aged 65 or over) including Older Mental Ill,Physical Dis Commissioning,Social Care - Homecare,14/10/2015,3532977,776.63,Soma Healthcare Ltd
Adults Services,Adult Social Care,Older People (Aged 65 or over) including Older Mental Ill,Physical Dis Commissioning,Social Care - Homecare,14/10/2015,3532978,"1,383.38",Soma Healthcare Ltd
Adults Services,Adult Social Care,Older People (Aged 65 or over) including Older Mental Ill,Learning Dis Commissioning,Social Care - Homecare,14/10/2015,3532979,584.25,Soma Healthcare Ltd
Adults Services,Adult Social Care,Older People (Aged 65 or over) including Older Mental Ill,Older People Commissioning,Social Care - Homecare,14/10/2015,3532981,997.50,Soma Healthcare Ltd
Adults Services,Adult Social Care,Older People (Aged 65 or over) including Older Mental Ill,Physical Dis Commissioning,Social Care - Homecare,14/10/2015,3532983,634.13,Soma Healthcare Ltd
Adults Services,Adult Social Care,Older People (Aged 65 or over) including Older Mental Ill,Physical Dis Commissioning,Social Care - Homecare,14/10/2015,3532994,712.50,Soma Healthcare Ltd
Adults Services,Adult Social Care,Older People (Aged 65 or over) including Older Mental Ill,Older People Commissioning,Social Care - Homecare,14/10/2015,3532999,520.13,Soma Healthcare Ltd
Adults Services,Adult Social Care,Older People (Aged 65 or over) including Older Mental Ill,Older People Commissioning,Social Care - Homecare,14/10/2015,3533000,990.38,Soma Healthcare Ltd
Adults Services,Adult Social Care,Older People (Aged 65 or over) including Older Mental Ill,Older People Commissioning,Social Care - Homecare,14/10/2015,3533033,527.25,Soma Healthcare Ltd
Adults Services,Adult Social Care,Older People (Aged 65 or over) including Older Mental Ill,Older People Commissioning,Social Care - Homecare,14/10/2015,3533035,505.88,Soma Healthcare Ltd
Adults Services,Adult Social Care,Older People (Aged 65 or over) including Older Mental Ill,Older People Commissioning,Social Care - Homecare,14/10/2015,3533037,"1,667.25",Soma Healthcare Ltd
Adults Services,Adult Social Care,Older People (Aged 65 or over) including Older Mental Ill,Older People Commissioning,Social Care - Homecare,14/10/2015,3533039,"1,603.13",Soma Healthcare Ltd
Adults Services,Adult Social Care,Older People (Aged 65 or over) including Older Mental Ill,Older People Commissioning,Social Care - Homecare,14/10/2015,3533047,591.80,SANCTUARY HOME CARE LIMITED
Adults Services,Adult Social Care,Older People (Aged 65 or over) including Older Mental Ill,Physical Dis Commissioning,Social Care - Homecare,14/10/2015,3533054,541.90,SANCTUARY HOME CARE LIMITED
Adults Services,Public Health,Children 519 Public Health Programmes,Public Health Team 1,Third Party Payments - Other Establishments,16/10/2015,3510379,"107,449.00",Mytime Active
Adults Services,No Service Specified,No Division Specified,Capital-Minor Works (SC),Building Works - Main Works,16/10/2015,3529689,"1,792.25",Tower Hamlets Schools LTD
Adults Services,No Service Specified,No Division Specified,Capital-Minor Works (SC),Building Works - Main Works,16/10/2015,3529690,"11,518.00",Tower Hamlets Schools LTD
Adults Services,No Service Specified,No Division Specified,Capital-Minor Works (SC),Building Works - Main Works,16/10/2015,3529692,"23,592.00",Tower Hamlets Schools LTD
Adults Services,No Service Specified,No Division Specified,Capital-Minor Works (SC),Building Works - Main Works,16/10/2015,3529693,"1,964.52",Tower Hamlets Schools LTD
Adults Services,Adult Social Care,Other Adult Services,Tower Hamlets Care Alarms,Services - Professional Fees - Financial Services Fees,16/10/2015,3529744,"1,165.00",Telecare Services Association
Adults Services,Adult Social Care,Older People (Aged 65 or over) including Older Mental Ill,Fides Care,Healthy & Safety Supplies,19/10/2015,3507574,"1,017.00",Praetorian Disposable Products Ltd
Adults Services,Adult Social Care,Older People (Aged 65 or over) including Older Mental Ill,Learning Dis Commissioning,Social Care - Personal Budgets - Non-Trad Service,19/10/2015,3511296,"1,520.00",Specialized Care & Support Sevices Ltd
Adults Services,Adult Social Care,Older People (Aged 65 or over) including Older Mental Ill,Older People Commissioning,Social Care - Residential Care,19/10/2015,3512461,"1,350.00",BARCHESTER HEALTHCARE
Adults Services,No Service Specified,No Division Specified,Community Equipment Store,Services - Professional Fees - Environmental Services Fees,19/10/2015,3513744,909.56,RTS
Adults Services,Adult Social Care,Older People (Aged 65 or over) including Older Mental Ill,Learning Dis Commissioning,Social Care - Residential Care,19/10/2015,3527687,"6,504.00",OVERLEY HALL SCHOOL LTD
Adults Services,Adult Social Care,Older People (Aged 65 or over) including Older Mental Ill,Physical Dis Commissioning,Social Care - Personal Budgets - Non-Trad Service,19/10/2015,3531749,"3,920.00",SPINAL & DISABLED HOMECARE
Adults Services,Public Health,Smoking and Tobacco,Public Health Team - 2,Third Party Payments - Other Establishments,21/10/2015,3486767,"11,321.23",Homerton University Hospital Trust
Adults Services,Public Health,Smoking and Tobacco,Public Health Team - 2,Third Party Payments - Other Establishments,21/10/2015,3497705,"249,995.00",Barts Health NHS Trust
Adults Services,Adult Social Care,Older People (Aged 65 or over) including Older Mental Ill,Older People Commissioning,Social Care - Day Care,21/10/2015,3511370,601.28,Peabody Trust
Adults Services,Adult Social Care,Older People (Aged 65 or over) including Older Mental Ill,Mental Health Commissioning,Social Care - Day Care,21/10/2015,3511372,832.32,Peabody Trust
Adults Services,Adult Social Care,Older People (Aged 65 or over) including Older Mental Ill,Older People Commissioning,Social Care - Day Care,21/10/2015,3511381,789.18,Peabody Trust
Adults Services,Adult Social Care,Older People (Aged 65 or over) including Older Mental Ill,Older People Commissioning,Social Care - Day Care,21/10/2015,3511389,789.18,Peabody Trust
Adults Services,Adult Social Care,Older People (Aged 65 or over) including Older Mental Ill,Older People Commissioning,Social Care - Day Care,21/10/2015,3511390,601.28,Peabody Trust
Adults Services,Adult Social Care,Other Adult Services,Integration Project,Social Care - Nursing Care,21/10/2015,3515013,"14,500.00",Barts Health NHS Trust
Adults Services,Adult Social Care,Other Adult Services,Occupational Therapy - East,Social Care - Nursing Care,21/10/2015,3515014,"9,900.00",Barts Health NHS Trust
Adults Services,Adult Social Care,Other Adult Services,Integration Project,Social Care - Nursing Care,21/10/2015,3515015,"11,000.00",Barts Health NHS Trust
Adults Services,Adult Social Care,Other Adult Services,First Response Team,Agency Staff,21/10/2015,3515016,"8,500.00",Barts Health NHS Trust
Adults Services,Adult Social Care,Other Adult Services,Integration Project,Social Care - Nursing Care,21/10/2015,3515018,"9,500.00",Barts Health NHS Trust
Adults Services,Adult Social Care,Other Adult Services,Occupational Therapy - West,Social Care - Nursing Care,21/10/2015,3515019,"10,200.00",Barts Health NHS Trust
Adults Services,Adult Social Care,Other Adult Services,Integration Project,Social Care - Nursing Care,21/10/2015,3515020,"7,915.31",Barts Health NHS Trust
Adults Services,Adult Social Care,Older People (Aged 65 or over) including Older Mental Ill,Replacement of EHCM,Computing - Purchase of Software,21/10/2015,3515351,"20,241.00",Agilisys Professional Services
Adults Services,No Service Specified,No Division Specified,Capital-Minor Works (SC),Building Works - Main Works,21/10/2015,3529694,"304,861.00",Tower Hamlets Schools LTD
Adults Services,Public Health,Smoking and Tobacco,Public Health Team - 2,Third Party Payments - Other Establishments,21/10/2015,3530540,"49,458.87",Barts Health NHS Trust
Adults Services,Public Health,Smoking and Tobacco,Public Health Team - 2,Third Party Payments - Other Establishments,21/10/2015,3530541,"118,190.68",Barts Health NHS Trust
Adults Services,Public Health,Smoking and Tobacco,Public Health Team - 2,Third Party Payments - Other Establishments,21/10/2015,3530647,"118,190.68",Barts Health NHS Trust
Adults Services,No Service Specified,No Division Specified,TCES - Prescriptions,Community Equipment  Supplies - Aids and Appliances,21/10/2015,3535049,"1,802.90",REDLAND HEALTHCARE LTD
Adults Services,No Service Specified,No Division Specified,Community Equipment Store,Community Equipment  Supplies - Aids and Appliances,21/10/2015,3535050,"1,116.60",REDLAND HEALTHCARE LTD
Adults Services,No Service Specified,No Division Specified,TCES - Prescriptions,Community Equipment  Supplies - Aids and Appliances,21/10/2015,3535051,587.09,REDLAND HEALTHCARE LTD
Adults Services,Adult Social Care,Older People (Aged 65 or over) including Older Mental Ill,Learning Dis Commissioning,Social Care - Help to Live at Home,21/10/2015,3535191,"8,871.24",PEMBROKE HOUSE
Adults Services,Adult Social Care,Older People (Aged 65 or over) including Older Mental Ill,Mental Health Commissioning,Social Care - Supported Accommodation,21/10/2015,3535192,"1,414.20",BAXTER HOUSE SUPPORTED LIVING PROJECT
Adults Services,Adult Social Care,Older People (Aged 65 or over) including Older Mental Ill,Physical Dis Commissioning,Social Care - Homecare,21/10/2015,3535194,"2,181.90",AQUAFLO CARE LTD
Adults Services,Adult Social Care,Older People (Aged 65 or over) including Older Mental Ill,Older People Commissioning,Social Care - Homecare,21/10/2015,3535195,"1,831.80",AQUAFLO CARE LTD
Adults Services,Adult Social Care,Older People (Aged 65 or over) including Older Mental Ill,Older People Commissioning,Social Care - Homecare,21/10/2015,3535196,"1,391.60",AQUAFLO CARE LTD
Adults Services,Adult Social Care,Older People (Aged 65 or over) including Older Mental Ill,Physical Dis Commissioning,Social Care - Homecare,21/10/2015,3535198,738.40,AQUAFLO CARE LTD
Adults Services,Adult Social Care,Older People (Aged 65 or over) including Older Mental Ill,Physical Dis Commissioning,Social Care - Homecare,21/10/2015,3535199,994.00,AQUAFLO CARE LTD
Adults Services,Adult Social Care,Older People (Aged 65 or over) including Older Mental Ill,Older People Commissioning,Social Care - Homecare,21/10/2015,3535205,576.83,AQUAFLO CARE LTD
Adults Services,Adult Social Care,Older People (Aged 65 or over) including Older Mental Ill,Older People Commissioning,Social Care - Homecare,21/10/2015,3535206,560.90,AQUAFLO CARE LTD
Adults Services,Adult Social Care,Older People (Aged 65 or over) including Older Mental Ill,Physical Dis Commissioning,Social Care - Homecare,21/10/2015,3535207,"1,004.66",AQUAFLO CARE LTD
Adults Services,Adult Social Care,Older People (Aged 65 or over) including Older Mental Ill,Physical Dis Commissioning,Social Care - Homecare,21/10/2015,3535208,639.00,AQUAFLO CARE LTD
Adults Services,Adult Social Care,Older People (Aged 65 or over) including Older Mental Ill,Older People Commissioning,Social Care - Homecare,21/10/2015,3535210,"1,441.24",AQUAFLO CARE LTD
Adults Services,Adult Social Care,Older People (Aged 65 or over) including Older Mental Ill,Older People Commissioning,Social Care - Homecare,21/10/2015,3535211,"1,391.60",AQUAFLO CARE LTD
Adults Services,Adult Social Care,Older People (Aged 65 or over) including Older Mental Ill,Older People Commissioning,Social Care - Homecare,21/10/2015,3535212,"1,895.70",AQUAFLO CARE LTD
Adults Services,Adult Social Care,Older People (Aged 65 or over) including Older Mental Ill,Older People Commissioning,Social Care - Homecare,21/10/2015,3535213,"1,831.80",AQUAFLO CARE LTD
Adults Services,Adult Social Care,Older People (Aged 65 or over) including Older Mental Ill,Physical Dis Commissioning,Social Care - Homecare,21/10/2015,3535214,768.56,AQUAFLO CARE LTD
Adults Services,Adult Social Care,Older People (Aged 65 or over) including Older Mental Ill,Physical Dis Commissioning,Social Care - Homecare,21/10/2015,3535215,738.40,AQUAFLO CARE LTD
Adults Services,Adult Social Care,Older People (Aged 65 or over) including Older Mental Ill,Older People Commissioning,Social Care - Homecare,21/10/2015,3535216,516.51,AQUAFLO CARE LTD
Adults Services,Adult Social Care,Older People (Aged 65 or over) including Older Mental Ill,Physical Dis Commissioning,Social Care - Homecare,21/10/2015,3535218,"2,240.48",AQUAFLO CARE LTD
Adults Services,Adult Social Care,Older People (Aged 65 or over) including Older Mental Ill,Physical Dis Commissioning,Social Care - Homecare,21/10/2015,3535219,"2,196.10",AQUAFLO CARE LTD
Adults Services,Adult Social Care,Older People (Aged 65 or over) including Older Mental Ill,Older People Commissioning,Social Care - Homecare,21/10/2015,3535220,560.90,AQUAFLO CARE LTD
Adults Services,Adult Social Care,Older People (Aged 65 or over) including Older Mental Ill,Older People Commissioning,Social Care - Homecare,21/10/2015,3535222,"1,391.60",AQUAFLO CARE LTD
Adults Services,Adult Social Care,Older People (Aged 65 or over) including Older Mental Ill,Older People Commissioning,Social Care - Homecare,21/10/2015,3535223,"1,831.80",AQUAFLO CARE LTD
Adults Services,Adult Social Care,Older People (Aged 65 or over) including Older Mental Ill,Physical Dis Commissioning,Social Care - Homecare,21/10/2015,3535225,738.40,AQUAFLO CARE LTD
Adults Services,Adult Social Care,Older People (Aged 65 or over) including Older Mental Ill,Older People Commissioning,Social Care - Residential Care,21/10/2015,3535226,"1,447.71",BARCHESTER HEALTHCARE
Adults Services,Adult Social Care,Older People (Aged 65 or over) including Older Mental Ill,Learning Dis Commissioning,Social Care - Homecare,21/10/2015,3535229,"4,783.30",TRIANGLE COMMUNITY SERVICES
Adults Services,Adult Social Care,Older People (Aged 65 or over) including Older Mental Ill,Physical Dis Commissioning,Social Care - Homecare,21/10/2015,3535269,"2,934.06",ATHLONE CARE LTD
Adults Services,Adult Social Care,Older People (Aged 65 or over) including Older Mental Ill,Physical Dis Commissioning,Social Care - Homecare,21/10/2015,3535270,"1,682.87",ATHLONE CARE LTD
Adults Services,Adult Social Care,Older People (Aged 65 or over) including Older Mental Ill,Older People Commissioning,Social Care - Homecare,21/10/2015,3535274,586.57,ATHLONE CARE LTD
Adults Services,Adult Social Care,Older People (Aged 65 or over) including Older Mental Ill,Learning Dis Commissioning,Social Care - Residential Care,21/10/2015,3535285,"53,453.38",The Camden Society
Adults Services,Adult Social Care,Older People (Aged 65 or over) including Older Mental Ill,Older People Commissioning,Social Care - Residential Care,21/10/2015,3535286,"3,300.00",St Georges Nursing Home
Adults Services,Adult Social Care,Older People (Aged 65 or over) including Older Mental Ill,Physical Dis Commissioning,Social Care - Homecare,21/10/2015,3535302,598.44,FOCUS CARE LINK LTD
Adults Services,Adult Social Care,Older People (Aged 65 or over) including Older Mental Ill,Older People Commissioning,Social Care - Homecare,21/10/2015,3535306,840.42,FOCUS CARE LINK LTD
Adults Services,Adult Social Care,Older People (Aged 65 or over) including Older Mental Ill,Older People Commissioning,Social Care - Homecare,21/10/2015,3535308,514.40,FOCUS CARE LINK LTD
Adults Services,Adult Social Care,Older People (Aged 65 or over) including Older Mental Ill,Physical Dis Commissioning,Social Care - Homecare,21/10/2015,3535311,644.81,FOCUS CARE LINK LTD
Adults Services,Adult Social Care,Older People (Aged 65 or over) including Older Mental Ill,Older People Commissioning,Social Care - Homecare,21/10/2015,3535313,586.85,FOCUS CARE LINK LTD
Adults Services,Adult Social Care,Older People (Aged 65 or over) including Older Mental Ill,Learning Dis Commissioning,Social Care - Day Care,21/10/2015,3535324,"2,720.00",ST MARKS DAY SERVICE
Adults Services,Adult Social Care,Older People (Aged 65 or over) including Older Mental Ill,Mental Health Commissioning,Social Care - Personal Budgets - Non-Trad Service,21/10/2015,3535330,627.00,TRIANGLE COMMUNITY SERVICES
Adults Services,Adult Social Care,Older People (Aged 65 or over) including Older Mental Ill,Older People Commissioning,Social Care - Homecare,21/10/2015,3535353,680.40,Mantra Recruitment
Adults Services,Adult Social Care,Older People (Aged 65 or over) including Older Mental Ill,Learning Dis Commissioning,Social Care - Homecare,21/10/2015,3535363,"1,178.55",Mantra Recruitment
Adults Services,Adult Social Care,Older People (Aged 65 or over) including Older Mental Ill,Older People Commissioning,Social Care - Homecare,21/10/2015,3535364,721.93,Mantra Recruitment
Adults Services,Adult Social Care,Older People (Aged 65 or over) including Older Mental Ill,Physical Dis Commissioning,Social Care - Homecare,21/10/2015,3535382,"1,029.80",Mantra Recruitment
Adults Services,Adult Social Care,Older People (Aged 65 or over) including Older Mental Ill,Older People Commissioning,Social Care - Homecare,21/10/2015,3535401,"4,082.40",Mantra Recruitment
Adults Services,Adult Social Care,Older People (Aged 65 or over) including Older Mental Ill,Physical Dis Commissioning,Social Care - Homecare,21/10/2015,3535429,"3,953.60",Excelcare (Home Care Division) LTD
Adults Services,Adult Social Care,Older People (Aged 65 or over) including Older Mental Ill,Older People Commissioning,Social Care - Homecare,21/10/2015,3535430,954.86,Excelcare (Home Care Division) LTD
Adults Services,Adult Social Care,Older People (Aged 65 or over) including Older Mental Ill,Older People Commissioning,Social Care - Personal Budgets - Non-Trad Service,21/10/2015,3535431,"1,119.44",Excelcare (Home Care Division) LTD
Adults Services,Adult Social Care,Older People (Aged 65 or over) including Older Mental Ill,Older People Commissioning,Social Care - Homecare,21/10/2015,3535434,532.15,Excelcare (Home Care Division) LTD
Adults Services,Adult Social Care,Older People (Aged 65 or over) including Older Mental Ill,Older People Commissioning,Social Care - Homecare,21/10/2015,3535437,586.76,Excelcare (Home Care Division) LTD
Adults Services,Adult Social Care,Older People (Aged 65 or over) including Older Mental Ill,Older People Commissioning,Social Care - Homecare,21/10/2015,3535441,"1,078.70",Excelcare (Home Care Division) LTD
Adults Services,Adult Social Care,Older People (Aged 65 or over) including Older Mental Ill,Physical Dis Commissioning,Social Care - Homecare,21/10/2015,3535453,"4,654.70",Excelcare (Home Care Division) LTD
Adults Services,Adult Social Care,Older People (Aged 65 or over) including Older Mental Ill,Older People Commissioning,Social Care - Homecare,21/10/2015,3535456,"1,228.78",Excelcare (Home Care Division) LTD
Adults Services,Adult Social Care,Older People (Aged 65 or over) including Older Mental Ill,Older People Commissioning,Social Care - Homecare,21/10/2015,3535457,552.58,Excelcare (Home Care Division) LTD
Adults Services,Adult Social Care,Older People (Aged 65 or over) including Older Mental Ill,Older People Commissioning,Social Care - Homecare,21/10/2015,3535462,675.78,Excelcare (Home Care Division) LTD
Adults Services,Adult Social Care,Older People (Aged 65 or over) including Older Mental Ill,Older People Commissioning,Social Care - Homecare,21/10/2015,3535463,996.88,Excelcare (Home Care Division) LTD
Adults Services,Adult Social Care,Older People (Aged 65 or over) including Older Mental Ill,Mental Health Commissioning,Social Care - Homecare,21/10/2015,3535465,764.54,Excelcare (Home Care Division) LTD
Adults Services,Adult Social Care,Older People (Aged 65 or over) including Older Mental Ill,Older People Commissioning,Social Care - Homecare,21/10/2015,3535468,"1,167.32",Excelcare (Home Care Division) LTD
Adults Services,Adult Social Care,Older People (Aged 65 or over) including Older Mental Ill,Older People Commissioning,Social Care - Homecare,21/10/2015,3535474,"2,170.40",Excelcare (Home Care Division) LTD
Adults Services,Adult Social Care,Older People (Aged 65 or over) including Older Mental Ill,Older People Commissioning,Social Care - Homecare,21/10/2015,3535476,559.46,Excelcare (Home Care Division) LTD
Adults Services,Adult Social Care,Older People (Aged 65 or over) including Older Mental Ill,Mental Health Commissioning,Social Care - Personal Budgets - Non-Trad Service,21/10/2015,3535487,570.00,TRIANGLE COMMUNITY SERVICES
Adults Services,Adult Social Care,Older People (Aged 65 or over) including Older Mental Ill,Older People Commissioning,Social Care - Homecare,21/10/2015,3535491,805.36,Excelcare (Home Care Division) LTD
Adults Services,Adult Social Care,Older People (Aged 65 or over) including Older Mental Ill,Learning Dis Commissioning,Social Care - Homecare,21/10/2015,3535492,573.44,Excelcare (Home Care Division) LTD
Adults Services,Adult Social Care,Older People (Aged 65 or over) including Older Mental Ill,Learning Dis Commissioning,Social Care - Homecare,21/10/2015,3535498,"1,392.37",Excelcare (Home Care Division) LTD
Adults Services,Adult Social Care,Older People (Aged 65 or over) including Older Mental Ill,Mental Health Commissioning,Social Care - Personal Budgets - Non-Trad Service,21/10/2015,3535501,627.00,TRIANGLE COMMUNITY SERVICES
Adults Services,Adult Social Care,Older People (Aged 65 or over) including Older Mental Ill,Learning Dis Commissioning,Social Care - Homecare,21/10/2015,3535502,"1,810.44",MEARS CARE LTD
Adults Services,Adult Social Care,Older People (Aged 65 or over) including Older Mental Ill,Learning Dis Commissioning,Social Care - Personal Budgets - Non-Trad Service,21/10/2015,3535503,648.96,MEARS CARE LTD
Adults Services,Adult Social Care,Older People (Aged 65 or over) including Older Mental Ill,Learning Dis Commissioning,Social Care - Personal Budgets - Non-Trad Service,21/10/2015,3535504,717.60,MEARS CARE LTD
Adults Services,Adult Social Care,Older People (Aged 65 or over) including Older Mental Ill,Learning Dis Commissioning,Social Care - Homecare,21/10/2015,3535505,"1,743.33",MEARS CARE LTD
Adults Services,Adult Social Care,Older People (Aged 65 or over) including Older Mental Ill,Learning Dis Commissioning,Social Care - Homecare,21/10/2015,3535506,"2,599.80",MEARS CARE LTD
Adults Services,Adult Social Care,Older People (Aged 65 or over) including Older Mental Ill,Mental Health Commissioning,Social Care - Personal Budgets - Non-Trad Service,21/10/2015,3535509,627.00,TRIANGLE COMMUNITY SERVICES
Adults Services,Adult Social Care,Older People (Aged 65 or over) including Older Mental Ill,Older People Commissioning,Social Care - Residential Care,21/10/2015,3535510,-899.44,MORELAND HOUSE
Adults Services,Adult Social Care,Older People (Aged 65 or over) including Older Mental Ill,Older People Commissioning,Social Care - Residential Care,21/10/2015,3535510,"2,878.74",MORELAND HOUSE
Adults Services,Adult Social Care,Older People (Aged 65 or over) including Older Mental Ill,Older People Commissioning,Social Care - Residential Care,21/10/2015,3535512,-638.43,MORELAND HOUSE
Adults Services,Adult Social Care,Older People (Aged 65 or over) including Older Mental Ill,Mental Health Commissioning,Social Care - Supported Accommodation,21/10/2015,3535513,"2,956.25",Providence Row Housing Association
Adults Services,Adult Social Care,Older People (Aged 65 or over) including Older Mental Ill,Older People Commissioning,Social Care - Residential Care,21/10/2015,3535514,"2,764.29",QUANTUM CARE LTD
Adults Services,Adult Social Care,Older People (Aged 65 or over) including Older Mental Ill,Learning Dis Commissioning,Social Care - Homecare,21/10/2015,3535515,"4,874.01",TRIANGLE COMMUNITY SERVICES
Adults Services,Adult Social Care,Older People (Aged 65 or over) including Older Mental Ill,Mental Health Commissioning,Social Care - Personal Budgets - Non-Trad Service,21/10/2015,3535516,627.00,TRIANGLE COMMUNITY SERVICES
Adults Services,Adult Social Care,Older People (Aged 65 or over) including Older Mental Ill,Learning Dis Commissioning,Social Care - Homecare,21/10/2015,3535517,619.88,TRIANGLE COMMUNITY SERVICES
Adults Services,Adult Social Care,Older People (Aged 65 or over) including Older Mental Ill,Older People Commissioning,Social Care - Personal Budgets - Cash,21/10/2015,3535569,718.20,Soma Healthcare Ltd
Adults Services,Adult Social Care,Older People (Aged 65 or over) including Older Mental Ill,Older People Commissioning,Social Care - Personal Budgets - Cash,21/10/2015,3535572,"1,319.25",St Hilda's East Community Centre
Adults Services,Adult Social Care,Older People (Aged 65 or over) including Older Mental Ill,Learning Dis Commissioning,Social Care - Personal Budgets - Cash,21/10/2015,3535573,"2,892.65",Excelcare (Home Care Division) LTD
Adults Services,Adult Social Care,Older People (Aged 65 or over) including Older Mental Ill,Learning Dis Commissioning,Social Care - Personal Budgets - Cash,21/10/2015,3535581,"1,068.64",D D PAYROLL SERVICES
Adults Services,Adult Social Care,Older People (Aged 65 or over) including Older Mental Ill,Older People Commissioning,Social Care - Personal Budgets - Cash,21/10/2015,3535587,"1,048.80",DAVID HOWARD LTD CLIENT ACCOUNT
Adults Services,Adult Social Care,Older People (Aged 65 or over) including Older Mental Ill,Physical Dis Commissioning,Social Care - Personal Budgets - Cash,21/10/2015,3535589,532.80,DAVID HOWARD LTD CLIENT ACCOUNT
Adults Services,Adult Social Care,Older People (Aged 65 or over) including Older Mental Ill,Older People Commissioning,Social Care - Personal Budgets - Cash,21/10/2015,3535593,650.96,DAVID HOWARD LTD CLIENT ACCOUNT
Adults Services,Adult Social Care,Older People (Aged 65 or over) including Older Mental Ill,Older People Commissioning,Social Care - Personal Budgets - Cash,21/10/2015,3535600,"2,583.68",D D PAYROLL SERVICES
Adults Services,Adult Social Care,Older People (Aged 65 or over) including Older Mental Ill,Physical Dis Commissioning,Social Care - Personal Budgets - Cash,21/10/2015,3535601,"12,733.16",DAVID HOWARD LTD CLIENT ACCOUNT
Adults Services,Adult Social Care,Older People (Aged 65 or over) including Older Mental Ill,Physical Dis Commissioning,Social Care - Personal Budgets - Cash,21/10/2015,3535603,"1,133.96",DAVID HOWARD LTD CLIENT ACCOUNT
Adults Services,Adult Social Care,Older People (Aged 65 or over) including Older Mental Ill,Physical Dis Commissioning,Social Care - Personal Budgets - Cash,21/10/2015,3535604,"2,442.86",D D PAYROLL SERVICES
Adults Services,Adult Social Care,Older People (Aged 65 or over) including Older Mental Ill,Older People Commissioning,Social Care - Personal Budgets - Cash,21/10/2015,3535605,703.20,D D PAYROLL SERVICES
Adults Services,Adult Social Care,Older People (Aged 65 or over) including Older Mental Ill,Learning Dis Commissioning,Social Care - Personal Budgets - Cash,21/10/2015,3535606,"1,088.66",DAVID HOWARD LTD CLIENT ACCOUNT
Adults Services,Adult Social Care,Older People (Aged 65 or over) including Older Mental Ill,Physical Dis Commissioning,Social Care - Personal Budgets - Cash,21/10/2015,3535608,"1,102.08",DAVID HOWARD LTD CLIENT ACCOUNT
Adults Services,Adult Social Care,Older People (Aged 65 or over) including Older Mental Ill,Older People Commissioning,Social Care - Personal Budgets - Cash,21/10/2015,3535611,"2,411.40",D D PAYROLL SERVICES
Adults Services,Adult Social Care,Older People (Aged 65 or over) including Older Mental Ill,Older People Commissioning,Social Care - Personal Budgets - Cash,21/10/2015,3535615,862.62,D D PAYROLL SERVICES
Adults Services,Adult Social Care,Older People (Aged 65 or over) including Older Mental Ill,Older People Commissioning,Social Care - Personal Budgets - Cash,21/10/2015,3535616,892.98,D D PAYROLL SERVICES
Adults Services,Adult Social Care,Older People (Aged 65 or over) including Older Mental Ill,Older People Commissioning,Social Care - Personal Budgets - Cash,21/10/2015,3535617,"1,060.24",DAVID HOWARD LTD CLIENT ACCOUNT
Adults Services,Adult Social Care,Older People (Aged 65 or over) including Older Mental Ill,Physical Dis Commissioning,Social Care - Personal Budgets - Cash,21/10/2015,3535619,991.62,DAVID HOWARD LTD CLIENT ACCOUNT
Adults Services,Adult Social Care,Older People (Aged 65 or over) including Older Mental Ill,Physical Dis Commissioning,Social Care - Personal Budgets - Cash,21/10/2015,3535621,"2,449.20",DAVID HOWARD LTD CLIENT ACCOUNT
Adults Services,Adult Social Care,Older People (Aged 65 or over) including Older Mental Ill,Physical Dis Commissioning,Social Care - Personal Budgets - Cash,21/10/2015,3535623,874.98,DAVID HOWARD LTD CLIENT ACCOUNT
Adults Services,Adult Social Care,Older People (Aged 65 or over) including Older Mental Ill,Physical Dis Commissioning,Social Care - Personal Budgets - Cash,21/10/2015,3535624,653.28,DAVID HOWARD LTD CLIENT ACCOUNT
Adults Services,Adult Social Care,Older People (Aged 65 or over) including Older Mental Ill,Older People Commissioning,Social Care - Personal Budgets - Cash,21/10/2015,3535626,553.50,DAVID HOWARD LTD CLIENT ACCOUNT
Adults Services,Adult Social Care,Older People (Aged 65 or over) including Older Mental Ill,Learning Dis Commissioning,Social Care - Personal Budgets - Cash,21/10/2015,3535629,"1,122.30",DAVID HOWARD LTD CLIENT ACCOUNT
Adults Services,Adult Social Care,Older People (Aged 65 or over) including Older Mental Ill,Physical Dis Commissioning,Social Care - Personal Budgets - Cash,21/10/2015,3535630,670.46,D D PAYROLL SERVICES
Adults Services,Adult Social Care,Older People (Aged 65 or over) including Older Mental Ill,Physical Dis Commissioning,Social Care - Personal Budgets - Cash,21/10/2015,3535633,"1,288.02",D D PAYROLL SERVICES
Adults Services,Adult Social Care,Older People (Aged 65 or over) including Older Mental Ill,Older People Commissioning,Social Care - Personal Budgets - Cash,21/10/2015,3535634,986.10,DAVID HOWARD LTD CLIENT ACCOUNT
Adults Services,Adult Social Care,Older People (Aged 65 or over) including Older Mental Ill,Older People Commissioning,Social Care - Personal Budgets - Cash,21/10/2015,3535637,"1,755.00",D D PAYROLL SERVICES
Adults Services,Adult Social Care,Older People (Aged 65 or over) including Older Mental Ill,Learning Dis Commissioning,Social Care - Personal Budgets - Cash,21/10/2015,3535641,"1,498.08",D D PAYROLL SERVICES
Adults Services,Adult Social Care,Older People (Aged 65 or over) including Older Mental Ill,Older People Commissioning,Social Care - Personal Budgets - Cash,21/10/2015,3535644,943.84,D D PAYROLL SERVICES
Adults Services,Adult Social Care,Older People (Aged 65 or over) including Older Mental Ill,Physical Dis Commissioning,Social Care - Personal Budgets - Cash,21/10/2015,3535645,859.72,D D PAYROLL SERVICES
Adults Services,Adult Social Care,Older People (Aged 65 or over) including Older Mental Ill,Physical Dis Commissioning,Social Care - Personal Budgets - Cash,21/10/2015,3535650,936.12,D D PAYROLL SERVICES
Adults Services,Adult Social Care,Older People (Aged 65 or over) including Older Mental Ill,Older People Commissioning,Social Care - Personal Budgets - Cash,21/10/2015,3535652,"1,092.18",D D PAYROLL SERVICES
Adults Services,Adult Social Care,Older People (Aged 65 or over) including Older Mental Ill,Physical Dis Commissioning,Social Care - Personal Budgets - Cash,21/10/2015,3535653,724.50,DAVID HOWARD LTD CLIENT ACCOUNT
Adults Services,Adult Social Care,Older People (Aged 65 or over) including Older Mental Ill,Learning Dis Commissioning,Social Care - Personal Budgets - Cash,21/10/2015,3535654,771.42,D D PAYROLL SERVICES
Adults Services,Adult Social Care,Older People (Aged 65 or over) including Older Mental Ill,Learning Dis Commissioning,Social Care - Personal Budgets - Cash,21/10/2015,3535657,"3,724.84",D D PAYROLL SERVICES
Adults Services,Adult Social Care,Older People (Aged 65 or over) including Older Mental Ill,Physical Dis Commissioning,Social Care - Personal Budgets - Cash,21/10/2015,3535659,751.16,DAVID HOWARD LTD CLIENT ACCOUNT
Adults Services,Adult Social Care,Older People (Aged 65 or over) including Older Mental Ill,Physical Dis Commissioning,Social Care - Personal Budgets - Cash,21/10/2015,3535660,824.70,DAVID HOWARD LTD CLIENT ACCOUNT
Adults Services,Adult Social Care,Older People (Aged 65 or over) including Older Mental Ill,Mental Health Commissioning,Social Care - Personal Budgets - Cash,21/10/2015,3535662,688.32,DAVID HOWARD LTD CLIENT ACCOUNT
Adults Services,Adult Social Care,Older People (Aged 65 or over) including Older Mental Ill,Physical Dis Commissioning,Social Care - Personal Budgets - Cash,21/10/2015,3535666,"1,115.70",DAVID HOWARD LTD CLIENT ACCOUNT
Adults Services,Adult Social Care,Older People (Aged 65 or over) including Older Mental Ill,Physical Dis Commissioning,Social Care - Personal Budgets - Cash,21/10/2015,3535668,"2,103.26",DAVID HOWARD LTD CLIENT ACCOUNT
Adults Services,Adult Social Care,Older People (Aged 65 or over) including Older Mental Ill,Physical Dis Commissioning,Social Care - Personal Budgets - Cash,21/10/2015,3535669,"3,513.56",DAVID HOWARD LTD CLIENT ACCOUNT
Adults Services,Adult Social Care,Older People (Aged 65 or over) including Older Mental Ill,Physical Dis Commissioning,Social Care - Personal Budgets - Cash,21/10/2015,3535670,"1,445.70",DAVID HOWARD LTD CLIENT ACCOUNT
Adults Services,Adult Social Care,Older People (Aged 65 or over) including Older Mental Ill,Learning Dis Commissioning,Social Care - Personal Budgets - Cash,21/10/2015,3535671,"3,282.82",DAVID HOWARD LTD CLIENT ACCOUNT
Adults Services,Adult Social Care,Older People (Aged 65 or over) including Older Mental Ill,Older People Commissioning,Social Care - Personal Budgets - Cash,21/10/2015,3535673,"5,584.28",DAVID HOWARD LTD CLIENT ACCOUNT
Adults Services,Adult Social Care,Older People (Aged 65 or over) including Older Mental Ill,Physical Dis Commissioning,Social Care - Personal Budgets - Cash,21/10/2015,3535675,758.40,DAVID HOWARD LTD CLIENT ACCOUNT
Adults Services,Adult Social Care,Older People (Aged 65 or over) including Older Mental Ill,Learning Dis Commissioning,Social Care - Personal Budgets - Cash,21/10/2015,3535676,625.76,D D PAYROLL SERVICES
Adults Services,Adult Social Care,Older People (Aged 65 or over) including Older Mental Ill,Older People Commissioning,Social Care - Personal Budgets - Cash,21/10/2015,3535677,"1,004.52",D D PAYROLL SERVICES
Adults Services,Adult Social Care,Older People (Aged 65 or over) including Older Mental Ill,Older People Commissioning,Social Care - Personal Budgets - Cash,21/10/2015,3535680,621.48,D D PAYROLL SERVICES
Adults Services,Adult Social Care,Older People (Aged 65 or over) including Older Mental Ill,Learning Dis Commissioning,Social Care - Personal Budgets - Cash,21/10/2015,3535682,654.04,DAVID HOWARD LTD CLIENT ACCOUNT
Adults Services,Adult Social Care,Older People (Aged 65 or over) including Older Mental Ill,Older People Commissioning,Social Care - Personal Budgets - Cash,21/10/2015,3535683,"1,720.33",D D PAYROLL SERVICES
Adults Services,Adult Social Care,Older People (Aged 65 or over) including Older Mental Ill,Physical Dis Commissioning,Social Care - Personal Budgets - Cash,21/10/2015,3535684,597.34,D D PAYROLL SERVICES
Adults Services,Adult Social Care,Older People (Aged 65 or over) including Older Mental Ill,Learning Dis Commissioning,Social Care - Personal Budgets - Cash,21/10/2015,3535685,"5,012.96",DAVID HOWARD LTD CLIENT ACCOUNT
Adults Services,Adult Social Care,Older People (Aged 65 or over) including Older Mental Ill,Learning Dis Commissioning,Social Care - Personal Budgets - Cash,21/10/2015,3535687,741.60,DAVID HOWARD LTD CLIENT ACCOUNT
Adults Services,Adult Social Care,Older People (Aged 65 or over) including Older Mental Ill,Older People Commissioning,Social Care - Personal Budgets - Cash,21/10/2015,3535688,722.06,DAVID HOWARD LTD CLIENT ACCOUNT
Adults Services,Adult Social Care,Older People (Aged 65 or over) including Older Mental Ill,Learning Dis Commissioning,Social Care - Personal Budgets - Cash,21/10/2015,3535694,"1,118.36",D D PAYROLL SERVICES
Adults Services,Adult Social Care,Older People (Aged 65 or over) including Older Mental Ill,Older People Commissioning,Social Care - Personal Budgets - Cash,21/10/2015,3535695,926.10,DAVID HOWARD LTD CLIENT ACCOUNT
Adults Services,Adult Social Care,Older People (Aged 65 or over) including Older Mental Ill,Learning Dis Commissioning,Social Care - Personal Budgets - Cash,21/10/2015,3535696,805.50,D D PAYROLL SERVICES
Adults Services,Adult Social Care,Older People (Aged 65 or over) including Older Mental Ill,Older People Commissioning,Social Care - Personal Budgets - Cash,21/10/2015,3535697,"3,626.52",DAVID HOWARD LTD CLIENT ACCOUNT
Adults Services,Adult Social Care,Older People (Aged 65 or over) including Older Mental Ill,Learning Dis Commissioning,Social Care - Personal Budgets - Cash,21/10/2015,3535699,"3,217.16",D D PAYROLL SERVICES
Adults Services,Adult Social Care,Older People (Aged 65 or over) including Older Mental Ill,Older People Commissioning,Social Care - Personal Budgets - Cash,21/10/2015,3535702,"1,068.18",DAVID HOWARD LTD CLIENT ACCOUNT
Adults Services,Adult Social Care,Older People (Aged 65 or over) including Older Mental Ill,Older People Commissioning,Social Care - Personal Budgets - Cash,21/10/2015,3535704,510.12,DAVID HOWARD LTD CLIENT ACCOUNT
Adults Services,Adult Social Care,Older People (Aged 65 or over) including Older Mental Ill,Physical Dis Commissioning,Social Care - Personal Budgets - Cash,21/10/2015,3535705,510.00,DAVID HOWARD LTD CLIENT ACCOUNT
Adults Services,Adult Social Care,Older People (Aged 65 or over) including Older Mental Ill,Older People Commissioning,Social Care - Personal Budgets - Cash,21/10/2015,3535707,699.90,DAVID HOWARD LTD CLIENT ACCOUNT
Adults Services,Adult Social Care,Older People (Aged 65 or over) including Older Mental Ill,Learning Dis Commissioning,Social Care - Personal Budgets - Cash,21/10/2015,3535710,"2,275.02",D D PAYROLL SERVICES
Adults Services,Adult Social Care,Older People (Aged 65 or over) including Older Mental Ill,Older People Commissioning,Social Care - Personal Budgets - Cash,21/10/2015,3535712,728.66,D D PAYROLL SERVICES
Adults Services,Adult Social Care,Older People (Aged 65 or over) including Older Mental Ill,Physical Dis Commissioning,Social Care - Personal Budgets - Cash,21/10/2015,3535713,710.28,D D PAYROLL SERVICES
Adults Services,Adult Social Care,Older People (Aged 65 or over) including Older Mental Ill,Older People Commissioning,Social Care - Personal Budgets - Cash,21/10/2015,3535717,"1,068.60",DAVID HOWARD LTD CLIENT ACCOUNT
Adults Services,Adult Social Care,Older People (Aged 65 or over) including Older Mental Ill,Older People Commissioning,Social Care - Personal Budgets - Cash,21/10/2015,3535721,694.38,DAVID HOWARD LTD CLIENT ACCOUNT
Adults Services,Adult Social Care,Older People (Aged 65 or over) including Older Mental Ill,Learning Dis Commissioning,Social Care - Personal Budgets - Cash,21/10/2015,3535722,"1,333.62",D D PAYROLL SERVICES
Adults Services,Adult Social Care,Older People (Aged 65 or over) including Older Mental Ill,Learning Dis Commissioning,Social Care - Personal Budgets - Cash,21/10/2015,3535724,508.24,DAVID HOWARD LTD CLIENT ACCOUNT
Adults Services,Adult Social Care,Older People (Aged 65 or over) including Older Mental Ill,Older People Commissioning,Social Care - Personal Budgets - Cash,21/10/2015,3535725,990.00,DAVID HOWARD LTD CLIENT ACCOUNT
Adults Services,Adult Social Care,Older People (Aged 65 or over) including Older Mental Ill,Physical Dis Commissioning,Social Care - Personal Budgets - Cash,21/10/2015,3535726,"4,110.60",DAVID HOWARD LTD CLIENT ACCOUNT
Adults Services,Adult Social Care,Older People (Aged 65 or over) including Older Mental Ill,Learning Dis Commissioning,Social Care - Personal Budgets - Cash,21/10/2015,3535728,"4,178.58",D D PAYROLL SERVICES
Adults Services,Adult Social Care,Older People (Aged 65 or over) including Older Mental Ill,Physical Dis Commissioning,Social Care - Personal Budgets - Cash,21/10/2015,3535729,698.40,DAVID HOWARD LTD CLIENT ACCOUNT
Adults Services,Adult Social Care,Older People (Aged 65 or over) including Older Mental Ill,Physical Dis Commissioning,Social Care - Personal Budgets - Cash,21/10/2015,3535730,588.12,DAVID HOWARD LTD CLIENT ACCOUNT
Adults Services,Adult Social Care,Older People (Aged 65 or over) including Older Mental Ill,Older People Commissioning,Social Care - Personal Budgets - Cash,21/10/2015,3535733,510.12,DAVID HOWARD LTD CLIENT ACCOUNT
Adults Services,Adult Social Care,Older People (Aged 65 or over) including Older Mental Ill,Older People Commissioning,Social Care - Personal Budgets - Cash,21/10/2015,3535737,521.28,DAVID HOWARD LTD CLIENT ACCOUNT
Adults Services,Adult Social Care,Older People (Aged 65 or over) including Older Mental Ill,Older People Commissioning,Social Care - Personal Budgets - Cash,21/10/2015,3535738,538.72,D D PAYROLL SERVICES
Adults Services,Adult Social Care,Older People (Aged 65 or over) including Older Mental Ill,Physical Dis Commissioning,Social Care - Personal Budgets - Cash,21/10/2015,3535740,"2,095.92",DAVID HOWARD LTD CLIENT ACCOUNT
Adults Services,Adult Social Care,Older People (Aged 65 or over) including Older Mental Ill,Learning Dis Commissioning,Social Care - Personal Budgets - Cash,21/10/2015,3535742,"1,874.48",DAVID HOWARD LTD CLIENT ACCOUNT
Adults Services,Adult Social Care,Older People (Aged 65 or over) including Older Mental Ill,Older People Commissioning,Social Care - Personal Budgets - Cash,21/10/2015,3535745,551.66,DAVID HOWARD LTD CLIENT ACCOUNT
Adults Services,Adult Social Care,Older People (Aged 65 or over) including Older Mental Ill,Learning Dis Commissioning,Social Care - Personal Budgets - Cash,21/10/2015,3535747,"3,580.92",D D PAYROLL SERVICES
Adults Services,Adult Social Care,Older People (Aged 65 or over) including Older Mental Ill,Learning Dis Commissioning,Social Care - Personal Budgets - Cash,21/10/2015,3535748,"2,218.94",D D PAYROLL SERVICES
Adults Services,Adult Social Care,Older People (Aged 65 or over) including Older Mental Ill,Older People Commissioning,Social Care - Personal Budgets - Cash,21/10/2015,3535749,"1,222.50",DAVID HOWARD LTD CLIENT ACCOUNT
Adults Services,Adult Social Care,Older People (Aged 65 or over) including Older Mental Ill,Older People Commissioning,Social Care - Personal Budgets - Cash,21/10/2015,3535751,873.26,DAVID HOWARD LTD CLIENT ACCOUNT
Adults Services,Adult Social Care,Older People (Aged 65 or over) including Older Mental Ill,Mental Health Commissioning,Social Care - Personal Budgets - Cash,21/10/2015,3535752,506.58,DAVID HOWARD LTD CLIENT ACCOUNT
Adults Services,Adult Social Care,Older People (Aged 65 or over) including Older Mental Ill,Physical Dis Commissioning,Social Care - Personal Budgets - Cash,21/10/2015,3535753,"1,131.30",DAVID HOWARD LTD CLIENT ACCOUNT
Adults Services,Adult Social Care,Older People (Aged 65 or over) including Older Mental Ill,Older People Commissioning,Social Care - Personal Budgets - Cash,21/10/2015,3535756,"1,201.20",DAVID HOWARD LTD CLIENT ACCOUNT
Adults Services,Adult Social Care,Older People (Aged 65 or over) including Older Mental Ill,Learning Dis Commissioning,Social Care - Personal Budgets - Cash,21/10/2015,3535757,532.38,DAVID HOWARD LTD CLIENT ACCOUNT
Adults Services,Adult Social Care,Older People (Aged 65 or over) including Older Mental Ill,Older People Commissioning,Social Care - Personal Budgets - Cash,21/10/2015,3535759,614.62,DAVID HOWARD LTD CLIENT ACCOUNT
Adults Services,Adult Social Care,Older People (Aged 65 or over) including Older Mental Ill,Physical Dis Commissioning,Social Care - Personal Budgets - Cash,21/10/2015,3535760,"1,225.46",DAVID HOWARD LTD CLIENT ACCOUNT
Adults Services,Adult Social Care,Older People (Aged 65 or over) including Older Mental Ill,Learning Dis Commissioning,Social Care - Personal Budgets - Cash,21/10/2015,3535762,968.74,D D PAYROLL SERVICES
Adults Services,Adult Social Care,Older People (Aged 65 or over) including Older Mental Ill,Learning Dis Commissioning,Social Care - Personal Budgets - Cash,21/10/2015,3535763,"2,961.94",D D PAYROLL SERVICES
Adults Services,Adult Social Care,Older People (Aged 65 or over) including Older Mental Ill,Older People Commissioning,Social Care - Personal Budgets - Cash,21/10/2015,3535765,674.78,DAVID HOWARD LTD CLIENT ACCOUNT
Adults Services,Adult Social Care,Older People (Aged 65 or over) including Older Mental Ill,Learning Dis Commissioning,Social Care - Personal Budgets - Cash,21/10/2015,3535766,"2,785.72",DAVID HOWARD LTD CLIENT ACCOUNT
Adults Services,Adult Social Care,Older People (Aged 65 or over) including Older Mental Ill,Physical Dis Commissioning,Social Care - Personal Budgets - Cash,21/10/2015,3535767,"7,574.78",DAVID HOWARD LTD CLIENT ACCOUNT
Adults Services,Adult Social Care,Older People (Aged 65 or over) including Older Mental Ill,Physical Dis Commissioning,Social Care - Personal Budgets - Cash,21/10/2015,3535771,603.42,DAVID HOWARD LTD CLIENT ACCOUNT
Adults Services,Adult Social Care,Older People (Aged 65 or over) including Older Mental Ill,Learning Dis Commissioning,Social Care - Personal Budgets - Cash,21/10/2015,3535772,"1,260.94",DAVID HOWARD LTD CLIENT ACCOUNT
Adults Services,Adult Social Care,Older People (Aged 65 or over) including Older Mental Ill,Older People Commissioning,Social Care - Personal Budgets - Cash,21/10/2015,3535774,669.56,D D PAYROLL SERVICES
Adults Services,Adult Social Care,Older People (Aged 65 or over) including Older Mental Ill,Learning Dis Commissioning,Social Care - Personal Budgets - Cash,21/10/2015,3535775,871.92,D D PAYROLL SERVICES
Adults Services,Adult Social Care,Older People (Aged 65 or over) including Older Mental Ill,Learning Dis Commissioning,Social Care - Personal Budgets - Cash,21/10/2015,3535776,871.92,D D PAYROLL SERVICES
Adults Services,Adult Social Care,Older People (Aged 65 or over) including Older Mental Ill,Older People Commissioning,Social Care - Personal Budgets - Cash,21/10/2015,3535777,748.92,DAVID HOWARD LTD CLIENT ACCOUNT
Adults Services,Adult Social Care,Older People (Aged 65 or over) including Older Mental Ill,Older People Commissioning,Social Care - Personal Budgets - Cash,21/10/2015,3535779,590.10,DAVID HOWARD LTD CLIENT ACCOUNT
Adults Services,Adult Social Care,Older People (Aged 65 or over) including Older Mental Ill,Learning Dis Commissioning,Social Care - Personal Budgets - Cash,21/10/2015,3535780,"1,918.12",DAVID HOWARD LTD CLIENT ACCOUNT
Adults Services,Adult Social Care,Older People (Aged 65 or over) including Older Mental Ill,Learning Dis Commissioning,Social Care - Personal Budgets - Cash,21/10/2015,3535781,"1,084.76",DAVID HOWARD LTD CLIENT ACCOUNT
Adults Services,Adult Social Care,Older People (Aged 65 or over) including Older Mental Ill,Learning Dis Commissioning,Social Care - Personal Budgets - Cash,21/10/2015,3535782,"1,257.00",DAVID HOWARD LTD CLIENT ACCOUNT
Adults Services,Adult Social Care,Older People (Aged 65 or over) including Older Mental Ill,Physical Dis Commissioning,Social Care - Personal Budgets - Cash,21/10/2015,3535783,"1,815.34",DAVID HOWARD LTD CLIENT ACCOUNT
Adults Services,Adult Social Care,Older People (Aged 65 or over) including Older Mental Ill,Older People Commissioning,Social Care - Personal Budgets - Cash,21/10/2015,3535785,687.30,DAVID HOWARD LTD CLIENT ACCOUNT
Adults Services,Adult Social Care,Older People (Aged 65 or over) including Older Mental Ill,Older People Commissioning,Social Care - Personal Budgets - Cash,21/10/2015,3535786,794.28,DAVID HOWARD LTD CLIENT ACCOUNT
Adults Services,Adult Social Care,Older People (Aged 65 or over) including Older Mental Ill,Older People Commissioning,Social Care - Personal Budgets - Cash,21/10/2015,3535789,622.20,DAVID HOWARD LTD CLIENT ACCOUNT
Adults Services,Adult Social Care,Older People (Aged 65 or over) including Older Mental Ill,Physical Dis Commissioning,Social Care - Personal Budgets - Cash,21/10/2015,3535791,844.92,DAVID HOWARD LTD CLIENT ACCOUNT
Adults Services,Adult Social Care,Older People (Aged 65 or over) including Older Mental Ill,Older People Commissioning,Social Care - Personal Budgets - Cash,21/10/2015,3535792,696.60,DAVID HOWARD LTD CLIENT ACCOUNT
Adults Services,Adult Social Care,Older People (Aged 65 or over) including Older Mental Ill,Older People Commissioning,Social Care - Personal Budgets - Cash,21/10/2015,3535796,678.90,DAVID HOWARD LTD CLIENT ACCOUNT
Adults Services,Adult Social Care,Older People (Aged 65 or over) including Older Mental Ill,Older People Commissioning,Social Care - Personal Budgets - Cash,21/10/2015,3535797,"6,772.80",DAVID HOWARD LTD CLIENT ACCOUNT
Adults Services,Adult Social Care,Older People (Aged 65 or over) including Older Mental Ill,Older People Commissioning,Social Care - Personal Budgets - Cash,21/10/2015,3535800,"1,316.36",D D PAYROLL SERVICES
Adults Services,Adult Social Care,Older People (Aged 65 or over) including Older Mental Ill,Learning Dis Commissioning,Social Care - Personal Budgets - Cash,21/10/2015,3535801,629.32,D D PAYROLL SERVICES
Adults Services,Adult Social Care,Older People (Aged 65 or over) including Older Mental Ill,Older People Commissioning,Social Care - Personal Budgets - Cash,21/10/2015,3535802,"1,013.48",DAVID HOWARD LTD CLIENT ACCOUNT
Adults Services,Adult Social Care,Older People (Aged 65 or over) including Older Mental Ill,Older People Commissioning,Social Care - Personal Budgets - Cash,21/10/2015,3535803,866.66,DAVID HOWARD LTD CLIENT ACCOUNT
Adults Services,Adult Social Care,Older People (Aged 65 or over) including Older Mental Ill,Older People Commissioning,Social Care - Personal Budgets - Cash,21/10/2015,3535804,761.18,D D PAYROLL SERVICES
Adults Services,Adult Social Care,Older People (Aged 65 or over) including Older Mental Ill,Physical Dis Commissioning,Social Care - Personal Budgets - Cash,21/10/2015,3535805,895.98,DAVID HOWARD LTD CLIENT ACCOUNT
Adults Services,Adult Social Care,Older People (Aged 65 or over) including Older Mental Ill,Older People Commissioning,Social Care - Personal Budgets - Cash,21/10/2015,3535807,588.04,DAVID HOWARD LTD CLIENT ACCOUNT
Adults Services,Adult Social Care,Older People (Aged 65 or over) including Older Mental Ill,Learning Dis Commissioning,Social Care - Personal Budgets - Cash,21/10/2015,3535808,733.38,HUMAN MANAGEMENT ASSISTANCE
Adults Services,Adult Social Care,Older People (Aged 65 or over) including Older Mental Ill,Physical Dis Commissioning,Social Care - Personal Budgets - Cash,21/10/2015,3535810,"3,979.72",D D PAYROLL SERVICES
Adults Services,Adult Social Care,Older People (Aged 65 or over) including Older Mental Ill,Older People Commissioning,Social Care - Personal Budgets - Cash,21/10/2015,3535813,"15,100.80",D D PAYROLL SERVICES
Adults Services,Adult Social Care,Older People (Aged 65 or over) including Older Mental Ill,Older People Commissioning,Social Care - Personal Budgets - Cash,21/10/2015,3535817,514.28,DAVID HOWARD LTD CLIENT ACCOUNT
Adults Services,Adult Social Care,Older People (Aged 65 or over) including Older Mental Ill,Physical Dis Commissioning,Social Care - Personal Budgets - Cash,21/10/2015,3535819,674.36,D D PAYROLL SERVICES
Adults Services,Adult Social Care,Older People (Aged 65 or over) including Older Mental Ill,Physical Dis Commissioning,Social Care - Personal Budgets - Cash,21/10/2015,3535820,"1,413.30",DAVID HOWARD LTD CLIENT ACCOUNT
Adults Services,Adult Social Care,Older People (Aged 65 or over) including Older Mental Ill,Older People Commissioning,Social Care - Personal Budgets - Cash,21/10/2015,3535821,664.16,D D PAYROLL SERVICES
Adults Services,Adult Social Care,Older People (Aged 65 or over) including Older Mental Ill,Older People Commissioning,Social Care - Personal Budgets - Cash,21/10/2015,3535822,687.22,D D PAYROLL SERVICES
Adults Services,Adult Social Care,Older People (Aged 65 or over) including Older Mental Ill,Physical Dis Commissioning,Social Care - Personal Budgets - Cash,21/10/2015,3535824,"-3,324.88",DAVID HOWARD LTD CLIENT ACCOUNT
Adults Services,Adult Social Care,Older People (Aged 65 or over) including Older Mental Ill,Learning Dis Commissioning,Social Care - Personal Budgets - Cash,21/10/2015,3535830,957.42,D D PAYROLL SERVICES
Adults Services,Adult Social Care,Older People (Aged 65 or over) including Older Mental Ill,Physical Dis Commissioning,Social Care - Personal Budgets - Cash,21/10/2015,3535834,"2,719.28",Redacted Section 40 FOI Act
Adults Services,Adult Social Care,Older People (Aged 65 or over) including Older Mental Ill,Learning Dis Commissioning,Social Care - Personal Budgets - Cash,21/10/2015,3535837,"2,537.62",D D PAYROLL SERVICES
Adults Services,Adult Social Care,Older People (Aged 65 or over) including Older Mental Ill,Older People Commissioning,Social Care - Personal Budgets - Cash,21/10/2015,3535838,990.08,D D PAYROLL SERVICES
Adults Services,Adult Social Care,Older People (Aged 65 or over) including Older Mental Ill,Older People Commissioning,Social Care - Personal Budgets - Cash,21/10/2015,3535846,828.52,D D PAYROLL SERVICES
Adults Services,Adult Social Care,Older People (Aged 65 or over) including Older Mental Ill,Physical Dis Commissioning,Social Care - Personal Budgets - Cash,21/10/2015,3535847,"1,327.62",DAVID HOWARD LTD CLIENT ACCOUNT
Adults Services,Adult Social Care,Older People (Aged 65 or over) including Older Mental Ill,Physical Dis Commissioning,Social Care - Personal Budgets - Cash,21/10/2015,3535848,804.42,DAVID HOWARD LTD CLIENT ACCOUNT
Adults Services,Adult Social Care,Older People (Aged 65 or over) including Older Mental Ill,Learning Dis Commissioning,Social Care - Personal Budgets - Cash,21/10/2015,3535849,"5,038.72",DAVID HOWARD LTD CLIENT ACCOUNT
Adults Services,Adult Social Care,Older People (Aged 65 or over) including Older Mental Ill,Older People Commissioning,Social Care - Personal Budgets - Cash,21/10/2015,3535850,904.76,D D PAYROLL SERVICES
Adults Services,Adult Social Care,Older People (Aged 65 or over) including Older Mental Ill,Physical Dis Commissioning,Social Care - Personal Budgets - Cash,21/10/2015,3535851,526.76,DAVID HOWARD LTD CLIENT ACCOUNT
Adults Services,Adult Social Care,Older People (Aged 65 or over) including Older Mental Ill,Physical Dis Commissioning,Social Care - Personal Budgets - Cash,21/10/2015,3535852,542.28,DAVID HOWARD LTD CLIENT ACCOUNT
Adults Services,Adult Social Care,Older People (Aged 65 or over) including Older Mental Ill,Learning Dis Commissioning,Social Care - Personal Budgets - Cash,21/10/2015,3535856,"2,618.78",DAVID HOWARD LTD CLIENT ACCOUNT
Adults Services,Adult Social Care,Older People (Aged 65 or over) including Older Mental Ill,Learning Dis Commissioning,Social Care - Personal Budgets - Cash,21/10/2015,3535857,"2,152.88",DAVID HOWARD LTD CLIENT ACCOUNT
Adults Services,Adult Social Care,Older People (Aged 65 or over) including Older Mental Ill,Learning Dis Commissioning,Social Care - Personal Budgets - Cash,21/10/2015,3535858,"3,347.92",DAVID HOWARD LTD CLIENT ACCOUNT
Adults Services,Adult Social Care,Older People (Aged 65 or over) including Older Mental Ill,Physical Dis Commissioning,Social Care - Personal Budgets - Cash,21/10/2015,3535863,798.08,DAVID HOWARD LTD CLIENT ACCOUNT
Adults Services,Adult Social Care,Older People (Aged 65 or over) including Older Mental Ill,Physical Dis Commissioning,Social Care - Personal Budgets - Cash,21/10/2015,3535866,"2,801.70",D D PAYROLL SERVICES
Adults Services,Adult Social Care,Older People (Aged 65 or over) including Older Mental Ill,Older People Commissioning,Social Care - Personal Budgets - Cash,21/10/2015,3535869,"2,286.56",DAVID HOWARD LTD CLIENT ACCOUNT
Adults Services,Adult Social Care,Older People (Aged 65 or over) including Older Mental Ill,Physical Dis Commissioning,Social Care - Personal Budgets - Cash,21/10/2015,3535871,"2,914.08",DAVID HOWARD LTD CLIENT ACCOUNT
Adults Services,Adult Social Care,Older People (Aged 65 or over) including Older Mental Ill,Older People Commissioning,Social Care - Personal Budgets - Cash,21/10/2015,3535875,692.96,D D PAYROLL SERVICES
Adults Services,Adult Social Care,Older People (Aged 65 or over) including Older Mental Ill,Older People Commissioning,Social Care - Personal Budgets - Cash,21/10/2015,3535876,"5,188.58",PayPacket Ltd
Adults Services,Adult Social Care,Older People (Aged 65 or over) including Older Mental Ill,Older People Commissioning,Social Care - Personal Budgets - Cash,21/10/2015,3535879,724.12,DAVID HOWARD LTD CLIENT ACCOUNT
Adults Services,Adult Social Care,Older People (Aged 65 or over) including Older Mental Ill,Older People Commissioning,Social Care - Personal Budgets - Cash,21/10/2015,3535880,531.56,DAVID HOWARD LTD CLIENT ACCOUNT
Adults Services,Adult Social Care,Older People (Aged 65 or over) including Older Mental Ill,Older People Commissioning,Social Care - Personal Budgets - Cash,21/10/2015,3535881,878.58,D D PAYROLL SERVICES
Adults Services,Adult Social Care,Older People (Aged 65 or over) including Older Mental Ill,Older People Commissioning,Social Care - Personal Budgets - Cash,21/10/2015,3535884,876.68,DAVID HOWARD LTD CLIENT ACCOUNT
Adults Services,Adult Social Care,Older People (Aged 65 or over) including Older Mental Ill,Mental Health Commissioning,Social Care - Personal Budgets - Cash,21/10/2015,3535885,538.88,PayPacket Ltd
Adults Services,Adult Social Care,Older People (Aged 65 or over) including Older Mental Ill,Older People Commissioning,Social Care - Personal Budgets - Cash,21/10/2015,3535886,863.02,D D PAYROLL SERVICES
Adults Services,Adult Social Care,Older People (Aged 65 or over) including Older Mental Ill,Physical Dis Commissioning,Social Care - Personal Budgets - Cash,21/10/2015,3535888,789.98,DAVID HOWARD LTD CLIENT ACCOUNT
Adults Services,Adult Social Care,Older People (Aged 65 or over) including Older Mental Ill,Older People Commissioning,Social Care - Personal Budgets - Cash,21/10/2015,3535889,873.82,D D PAYROLL SERVICES
Adults Services,Adult Social Care,Older People (Aged 65 or over) including Older Mental Ill,Older People Commissioning,Social Care - Personal Budgets - Cash,21/10/2015,3535891,"3,609.86",DAVID HOWARD LTD CLIENT ACCOUNT
Adults Services,Adult Social Care,Older People (Aged 65 or over) including Older Mental Ill,Older People Commissioning,Social Care - Personal Budgets - Cash,21/10/2015,3535893,"2,974.12",D D PAYROLL SERVICES
Adults Services,Adult Social Care,Older People (Aged 65 or over) including Older Mental Ill,Older People Commissioning,Social Care - Personal Budgets - Cash,21/10/2015,3535896,"1,068.63",DAVID HOWARD LTD CLIENT ACCOUNT
Adults Services,Adult Social Care,Older People (Aged 65 or over) including Older Mental Ill,Physical Dis Commissioning,Social Care - Personal Budgets - Cash,21/10/2015,3535897,"6,090.49",DAVID HOWARD LTD CLIENT ACCOUNT
Adults Services,Adult Social Care,Older People (Aged 65 or over) including Older Mental Ill,Physical Dis Commissioning,Social Care - Personal Budgets - Cash,21/10/2015,3535917,"1,429.32",DAVID HOWARD LTD CLIENT ACCOUNT
Adults Services,Adult Social Care,Older People (Aged 65 or over) including Older Mental Ill,Older People Commissioning,Social Care - Personal Budgets - Cash,21/10/2015,3535924,880.12,DAVID HOWARD LTD CLIENT ACCOUNT
Adults Services,Adult Social Care,Older People (Aged 65 or over) including Older Mental Ill,Older People Commissioning,Social Care - Personal Budgets - Cash,21/10/2015,3535932,"2,986.46",DAVID HOWARD LTD CLIENT ACCOUNT
Adults Services,Adult Social Care,Older People (Aged 65 or over) including Older Mental Ill,Older People Commissioning,Social Care - Personal Budgets - Cash,21/10/2015,3535934,671.62,Soma Healthcare Ltd
Adults Services,Adult Social Care,Older People (Aged 65 or over) including Older Mental Ill,Older People Commissioning,Social Care - Personal Budgets - Cash,21/10/2015,3535936,"1,245.72",DAVID HOWARD LTD CLIENT ACCOUNT
Adults Services,Adult Social Care,Older People (Aged 65 or over) including Older Mental Ill,Physical Dis Commissioning,Social Care - Personal Budgets - Cash,21/10/2015,3535939,"2,224.20",DAVID HOWARD LTD CLIENT ACCOUNT
Adults Services,Adult Social Care,Older People (Aged 65 or over) including Older Mental Ill,Older People Commissioning,Social Care - Personal Budgets - Cash,21/10/2015,3535944,725.36,DAVID HOWARD LTD CLIENT ACCOUNT
Adults Services,Adult Social Care,Older People (Aged 65 or over) including Older Mental Ill,Older People Commissioning,Social Care - Personal Budgets - Cash,21/10/2015,3535946,701.74,DAVID HOWARD LTD CLIENT ACCOUNT
Adults Services,Adult Social Care,Older People (Aged 65 or over) including Older Mental Ill,Older People Commissioning,Social Care - Personal Budgets - Cash,21/10/2015,3535953,949.20,DAVID HOWARD LTD CLIENT ACCOUNT
Adults Services,Adult Social Care,Older People (Aged 65 or over) including Older Mental Ill,Physical Dis Commissioning,Social Care - Personal Budgets - Cash,21/10/2015,3535968,"6,390.00",D D PAYROLL SERVICES
Adults Services,Adult Social Care,Older People (Aged 65 or over) including Older Mental Ill,Physical Dis Commissioning,Social Care - Personal Budgets - Cash,21/10/2015,3535980,"1,091.58",DAVID HOWARD LTD CLIENT ACCOUNT
Adults Services,Adult Social Care,Older People (Aged 65 or over) including Older Mental Ill,Older People Commissioning,Social Care - Personal Budgets - Cash,21/10/2015,3535985,"1,680.00",DAVID HOWARD LTD CLIENT ACCOUNT
Adults Services,Adult Social Care,Older People (Aged 65 or over) including Older Mental Ill,Older People Commissioning,Social Care - Personal Budgets - Cash,21/10/2015,3535987,"1,377.30",DAVID HOWARD LTD CLIENT ACCOUNT
Adults Services,Adult Social Care,Older People (Aged 65 or over) including Older Mental Ill,Physical Dis Commissioning,Social Care - Personal Budgets - Cash,21/10/2015,3535993,"2,080.16",DAVID HOWARD LTD CLIENT ACCOUNT
Adults Services,Adult Social Care,Older People (Aged 65 or over) including Older Mental Ill,Physical Dis Commissioning,Social Care - Personal Budgets - Cash,21/10/2015,3536002,627.42,DAVID HOWARD LTD CLIENT ACCOUNT
Adults Services,Adult Social Care,Older People (Aged 65 or over) including Older Mental Ill,Older People Commissioning,Social Care - Personal Budgets - Cash,21/10/2015,3536004,510.30,DAVID HOWARD LTD CLIENT ACCOUNT
Adults Services,Adult Social Care,Older People (Aged 65 or over) including Older Mental Ill,Physical Dis Commissioning,Social Care - Personal Budgets - Cash,21/10/2015,3536010,982.20,DAVID HOWARD LTD CLIENT ACCOUNT
Adults Services,Adult Social Care,Older People (Aged 65 or over) including Older Mental Ill,Older People Commissioning,Social Care - Personal Budgets - Cash,21/10/2015,3536012,686.74,DAVID HOWARD LTD CLIENT ACCOUNT
Adults Services,Adult Social Care,Older People (Aged 65 or over) including Older Mental Ill,Older People Commissioning,Social Care - Personal Budgets - Cash,21/10/2015,3536015,843.00,DAVID HOWARD LTD CLIENT ACCOUNT
Adults Services,Adult Social Care,Older People (Aged 65 or over) including Older Mental Ill,Physical Dis Commissioning,Social Care - Personal Budgets - Cash,21/10/2015,3536016,518.48,D D PAYROLL SERVICES
Adults Services,Adult Social Care,Older People (Aged 65 or over) including Older Mental Ill,Physical Dis Commissioning,Social Care - Personal Budgets - Cash,21/10/2015,3536018,565.32,DAVID HOWARD LTD CLIENT ACCOUNT
Adults Services,Adult Social Care,Older People (Aged 65 or over) including Older Mental Ill,Older People Commissioning,Social Care - Personal Budgets - Cash,21/10/2015,3536026,"3,226.04",D D PAYROLL SERVICES
Adults Services,Adult Social Care,Older People (Aged 65 or over) including Older Mental Ill,Physical Dis Commissioning,Social Care - Personal Budgets - Cash,21/10/2015,3536035,726.38,DAVID HOWARD LTD CLIENT ACCOUNT
Adults Services,Adult Social Care,Older People (Aged 65 or over) including Older Mental Ill,Physical Dis Commissioning,Social Care - Personal Budgets - Cash,21/10/2015,3536036,713.40,DAVID HOWARD LTD CLIENT ACCOUNT
Adults Services,Adult Social Care,Older People (Aged 65 or over) including Older Mental Ill,Older People Commissioning,Social Care - Personal Budgets - Cash,21/10/2015,3536044,"1,172.40",DAVID HOWARD LTD CLIENT ACCOUNT
Adults Services,Adult Social Care,Older People (Aged 65 or over) including Older Mental Ill,Older People Commissioning,Social Care - Personal Budgets - Cash,21/10/2015,3536045,782.32,DAVID HOWARD LTD CLIENT ACCOUNT
Adults Services,Adult Social Care,Older People (Aged 65 or over) including Older Mental Ill,Older People Commissioning,Social Care - Personal Budgets - Cash,21/10/2015,3536046,726.82,DAVID HOWARD LTD CLIENT ACCOUNT
Adults Services,Adult Social Care,Older People (Aged 65 or over) including Older Mental Ill,Older People Commissioning,Social Care - Personal Budgets - Cash,21/10/2015,3536047,"1,034.32",DAVID HOWARD LTD CLIENT ACCOUNT
Adults Services,Adult Social Care,Older People (Aged 65 or over) including Older Mental Ill,Mental Health Commissioning,Social Care - Personal Budgets - Cash,21/10/2015,3536048,642.18,D D PAYROLL SERVICES
Adults Services,Adult Social Care,Older People (Aged 65 or over) including Older Mental Ill,Older People Commissioning,Social Care - Personal Budgets - Cash,21/10/2015,3536050,525.00,DAVID HOWARD LTD CLIENT ACCOUNT
Adults Services,Adult Social Care,Older People (Aged 65 or over) including Older Mental Ill,Older People Commissioning,Social Care - Personal Budgets - Cash,21/10/2015,3536051,823.66,DAVID HOWARD LTD CLIENT ACCOUNT
Adults Services,Adult Social Care,Older People (Aged 65 or over) including Older Mental Ill,Physical Dis Commissioning,Social Care - Personal Budgets - Cash,21/10/2015,3536053,788.62,D D PAYROLL SERVICES
Adults Services,Adult Social Care,Older People (Aged 65 or over) including Older Mental Ill,Older People Commissioning,Social Care - Personal Budgets - Cash,21/10/2015,3536067,677.40,DAVID HOWARD LTD CLIENT ACCOUNT
Adults Services,Adult Social Care,Older People (Aged 65 or over) including Older Mental Ill,Physical Dis Commissioning,Social Care - Personal Budgets - Cash,21/10/2015,3536068,592.84,DAVID HOWARD LTD CLIENT ACCOUNT
Adults Services,Adult Social Care,Older People (Aged 65 or over) including Older Mental Ill,Older People Commissioning,Social Care - Personal Budgets - Cash,21/10/2015,3536071,621.64,DAVID HOWARD LTD CLIENT ACCOUNT
Adults Services,Adult Social Care,Older People (Aged 65 or over) including Older Mental Ill,Older People Commissioning,Social Care - Personal Budgets - Cash,21/10/2015,3536074,"1,750.16",D D PAYROLL SERVICES
Adults Services,Adult Social Care,Older People (Aged 65 or over) including Older Mental Ill,Physical Dis Commissioning,Social Care - Personal Budgets - Cash,21/10/2015,3536075,"1,145.10",DAVID HOWARD LTD CLIENT ACCOUNT
Adults Services,Adult Social Care,Older People (Aged 65 or over) including Older Mental Ill,Older People Commissioning,Social Care - Personal Budgets - Cash,21/10/2015,3536078,730.80,D D PAYROLL SERVICES
Adults Services,Adult Social Care,Older People (Aged 65 or over) including Older Mental Ill,Physical Dis Commissioning,Social Care - Personal Budgets - Cash,21/10/2015,3536081,"1,234.50",D D PAYROLL SERVICES
Adults Services,Adult Social Care,Older People (Aged 65 or over) including Older Mental Ill,Physical Dis Commissioning,Social Care - Personal Budgets - Cash,21/10/2015,3536084,500.40,D D PAYROLL SERVICES
Adults Services,Adult Social Care,Older People (Aged 65 or over) including Older Mental Ill,Older People Commissioning,Social Care - Personal Budgets - Cash,21/10/2015,3536085,967.68,DAVID HOWARD LTD CLIENT ACCOUNT
Adults Services,Adult Social Care,Older People (Aged 65 or over) including Older Mental Ill,Learning Dis Commissioning,Social Care - Personal Budgets - Cash,21/10/2015,3536091,"1,885.50",D D PAYROLL SERVICES
Adults Services,Adult Social Care,Older People (Aged 65 or over) including Older Mental Ill,Older People Commissioning,Social Care - Personal Budgets - Cash,21/10/2015,3536092,764.40,DAVID HOWARD LTD CLIENT ACCOUNT
Adults Services,Adult Social Care,Older People (Aged 65 or over) including Older Mental Ill,Older People Commissioning,Social Care - Personal Budgets - Cash,21/10/2015,3536093,"1,713.60",DAVID HOWARD LTD CLIENT ACCOUNT
Adults Services,Adult Social Care,Older People (Aged 65 or over) including Older Mental Ill,Older People Commissioning,Social Care - Personal Budgets - Cash,21/10/2015,3536095,883.20,DAVID HOWARD LTD CLIENT ACCOUNT
Adults Services,Adult Social Care,Older People (Aged 65 or over) including Older Mental Ill,Physical Dis Commissioning,Social Care - Personal Budgets - Cash,21/10/2015,3536096,"1,089.90",D D PAYROLL SERVICES
Adults Services,Adult Social Care,Older People (Aged 65 or over) including Older Mental Ill,Physical Dis Commissioning,Social Care - Personal Budgets - Cash,21/10/2015,3536098,"2,505.68",DAVID HOWARD LTD CLIENT ACCOUNT
Adults Services,Adult Social Care,Older People (Aged 65 or over) including Older Mental Ill,Older People Commissioning,Social Care - Personal Budgets - Cash,21/10/2015,3536103,786.86,D D PAYROLL SERVICES
Adults Services,Adult Social Care,Older People (Aged 65 or over) including Older Mental Ill,Older People Commissioning,Social Care - Personal Budgets - Cash,21/10/2015,3536105,"1,092.86",DAVID HOWARD LTD CLIENT ACCOUNT
Adults Services,Adult Social Care,Older People (Aged 65 or over) including Older Mental Ill,Learning Dis Commissioning,Social Care - Personal Budgets - Cash,21/10/2015,3536107,684.38,DAVID HOWARD LTD CLIENT ACCOUNT
Adults Services,Adult Social Care,Older People (Aged 65 or over) including Older Mental Ill,Physical Dis Commissioning,Social Care - Personal Budgets - Cash,21/10/2015,3536108,"6,475.50",D D PAYROLL SERVICES
Adults Services,Adult Social Care,Older People (Aged 65 or over) including Older Mental Ill,Physical Dis Commissioning,Social Care - Personal Budgets - Cash,21/10/2015,3536109,867.72,DAVID HOWARD LTD CLIENT ACCOUNT
Adults Services,Adult Social Care,Older People (Aged 65 or over) including Older Mental Ill,Older People Commissioning,Social Care - Personal Budgets - Cash,21/10/2015,3536111,"-2,106.86",DAVID HOWARD LTD CLIENT ACCOUNT
Adults Services,Adult Social Care,Older People (Aged 65 or over) including Older Mental Ill,Older People Commissioning,Social Care - Personal Budgets - Cash,21/10/2015,3536112,580.28,DAVID HOWARD LTD CLIENT ACCOUNT
Adults Services,Adult Social Care,Older People (Aged 65 or over) including Older Mental Ill,Older People Commissioning,Social Care - Personal Budgets - Cash,21/10/2015,3536113,536.70,DAVID HOWARD LTD CLIENT ACCOUNT
Adults Services,Adult Social Care,Older People (Aged 65 or over) including Older Mental Ill,Physical Dis Commissioning,Social Care - Personal Budgets - Cash,21/10/2015,3536117,"1,121.22",D D PAYROLL SERVICES
Adults Services,Adult Social Care,Older People (Aged 65 or over) including Older Mental Ill,Older People Commissioning,Social Care - Personal Budgets - Cash,21/10/2015,3536118,"1,472.44",DAVID HOWARD LTD CLIENT ACCOUNT
Adults Services,Adult Social Care,Older People (Aged 65 or over) including Older Mental Ill,Older People Commissioning,Social Care - Personal Budgets - Cash,21/10/2015,3536121,675.48,D D PAYROLL SERVICES
Adults Services,Adult Social Care,Older People (Aged 65 or over) including Older Mental Ill,Older People Commissioning,Social Care - Personal Budgets - Cash,21/10/2015,3536122,934.68,D D PAYROLL SERVICES
Adults Services,Adult Social Care,Older People (Aged 65 or over) including Older Mental Ill,Older People Commissioning,Social Care - Personal Budgets - Cash,21/10/2015,3536126,590.40,D D PAYROLL SERVICES
Adults Services,Adult Social Care,Older People (Aged 65 or over) including Older Mental Ill,Older People Commissioning,Social Care - Personal Budgets - Cash,21/10/2015,3536128,700.50,DAVID HOWARD LTD CLIENT ACCOUNT
Adults Services,Adult Social Care,Older People (Aged 65 or over) including Older Mental Ill,Older People Commissioning,Social Care - Personal Budgets - Cash,21/10/2015,3536129,-653.28,D D PAYROLL SERVICES
Adults Services,Adult Social Care,Older People (Aged 65 or over) including Older Mental Ill,Physical Dis Commissioning,Social Care - Personal Budgets - Cash,21/10/2015,3536130,855.18,DAVID HOWARD LTD CLIENT ACCOUNT
Adults Services,Adult Social Care,Older People (Aged 65 or over) including Older Mental Ill,Physical Dis Commissioning,Social Care - Personal Budgets - Cash,21/10/2015,3536132,544.16,DAVID HOWARD LTD CLIENT ACCOUNT
Adults Services,Adult Social Care,Older People (Aged 65 or over) including Older Mental Ill,Older People Commissioning,Social Care - Personal Budgets - Cash,21/10/2015,3536133,555.68,D D PAYROLL SERVICES
Adults Services,Adult Social Care,Older People (Aged 65 or over) including Older Mental Ill,Physical Dis Commissioning,Social Care - Personal Budgets - Cash,21/10/2015,3536135,957.00,DAVID HOWARD LTD CLIENT ACCOUNT
Adults Services,Adult Social Care,Older People (Aged 65 or over) including Older Mental Ill,Physical Dis Commissioning,Social Care - Personal Budgets - Cash,21/10/2015,3536137,572.48,DAVID HOWARD LTD CLIENT ACCOUNT
Adults Services,Adult Social Care,Older People (Aged 65 or over) including Older Mental Ill,Learning Dis Commissioning,Social Care - Personal Budgets - Cash,21/10/2015,3536142,"1,091.10",DAVID HOWARD LTD CLIENT ACCOUNT
Adults Services,Adult Social Care,Older People (Aged 65 or over) including Older Mental Ill,Mental Health Commissioning,Social Care - Personal Budgets - Cash,21/10/2015,3536144,718.24,D D PAYROLL SERVICES
Adults Services,Adult Social Care,Older People (Aged 65 or over) including Older Mental Ill,Physical Dis Commissioning,Social Care - Personal Budgets - Cash,21/10/2015,3536145,938.10,DAVID HOWARD LTD CLIENT ACCOUNT
Adults Services,Adult Social Care,Older People (Aged 65 or over) including Older Mental Ill,Physical Dis Commissioning,Social Care - Personal Budgets - Cash,21/10/2015,3536146,"2,264.82",DAVID HOWARD LTD CLIENT ACCOUNT
Adults Services,Adult Social Care,Older People (Aged 65 or over) including Older Mental Ill,Mental Health Commissioning,Social Care - Residential Care,21/10/2015,3536149,"5,000.00",ST MICHAELS LODGE T/A SHAKTHI HEALTHCARE LIMITED
Adults Services,Adult Social Care,Older People (Aged 65 or over) including Older Mental Ill,Learning Dis Commissioning,Client Contributions for Social Care - Residential Care,21/10/2015,3536151,"10,288.71",STALLCOMBE HOUSE
Adults Services,Adult Social Care,Older People (Aged 65 or over) including Older Mental Ill,Learning Dis Commissioning,Social Care - Day Care,21/10/2015,3536152,"5,234.23",Tower Project
Adults Services,Adult Social Care,Older People (Aged 65 or over) including Older Mental Ill,Learning Dis Commissioning,Social Care - Personal Budgets - Cash,21/10/2015,3536153,-652.30,D D PAYROLL SERVICES
Adults Services,Adult Social Care,Older People (Aged 65 or over) including Older Mental Ill,Learning Dis Commissioning,Social Care - Personal Budgets - Cash,21/10/2015,3536154,"18,406.05",D D PAYROLL SERVICES
Adults Services,Adult Social Care,Older People (Aged 65 or over) including Older Mental Ill,Learning Dis Commissioning,Social Care - Personal Budgets - Cash,21/10/2015,3536155,"20,677.89",D D PAYROLL SERVICES
Adults Services,Adult Social Care,Older People (Aged 65 or over) including Older Mental Ill,Physical Dis Commissioning,Social Care - Homecare,21/10/2015,3536158,"2,082.50",AQUAFLO CARE LTD
Adults Services,Adult Social Care,Older People (Aged 65 or over) including Older Mental Ill,Older People Commissioning,Social Care - Homecare,21/10/2015,3536166,790.65,REDSPOT HOMECARE(CONTRACTS) LTD
Adults Services,Adult Social Care,Older People (Aged 65 or over) including Older Mental Ill,Older People Commissioning,Social Care - Homecare,21/10/2015,3536171,817.79,REDSPOT HOMECARE(CONTRACTS) LTD
Adults Services,Adult Social Care,Older People (Aged 65 or over) including Older Mental Ill,Older People Commissioning,Social Care - Homecare,21/10/2015,3536177,778.10,REDSPOT HOMECARE(CONTRACTS) LTD
Adults Services,Adult Social Care,Older People (Aged 65 or over) including Older Mental Ill,Older People Commissioning,Social Care - Homecare,21/10/2015,3536183,571.03,REDSPOT HOMECARE(CONTRACTS) LTD
Adults Services,Adult Social Care,Older People (Aged 65 or over) including Older Mental Ill,Older People Commissioning,Social Care - Nursing Care,21/10/2015,3536185,"9,067.44",Loughton Care Centre
Adults Services,Adult Social Care,Older People (Aged 65 or over) including Older Mental Ill,Older People Commissioning,Client Contributions for Social Care - Nursing Care,21/10/2015,3536185,-974.32,Loughton Care Centre
Adults Services,Adult Social Care,Older People (Aged 65 or over) including Older Mental Ill,Carers,Social Care - Carers Centre Adult Services,21/10/2015,3536187,"90,000.00",CARERS CENTRE TOWER HAMLETS
Adults Services,Adult Social Care,Older People (Aged 65 or over) including Older Mental Ill,Older People Commissioning,Social Care - Homecare,21/10/2015,3536188,"1,883.40",COMMUNITY CARE CONSORTIUM
Adults Services,Adult Social Care,Older People (Aged 65 or over) including Older Mental Ill,Older People Commissioning,Social Care - Personal Budgets - Non-Trad Service,21/10/2015,3536189,"1,547.60",COMMUNITY CARE CONSORTIUM
Adults Services,Adult Social Care,Older People (Aged 65 or over) including Older Mental Ill,Older People Commissioning,Social Care - Homecare,21/10/2015,3536190,"1,533.00",COMMUNITY CARE CONSORTIUM
Adults Services,Adult Social Care,Older People (Aged 65 or over) including Older Mental Ill,Learning Dis Commissioning,Social Care - Homecare,21/10/2015,3536191,"1,270.20",COMMUNITY CARE CONSORTIUM
Adults Services,Adult Social Care,Older People (Aged 65 or over) including Older Mental Ill,Mental Health Commissioning,Social Care - Personal Budgets - Non-Trad Service,21/10/2015,3536192,"1,226.40",COMMUNITY CARE CONSORTIUM
Adults Services,Adult Social Care,Older People (Aged 65 or over) including Older Mental Ill,Older People Commissioning,Social Care - Homecare,21/10/2015,3536193,"1,073.10",COMMUNITY CARE CONSORTIUM
Adults Services,Adult Social Care,Older People (Aged 65 or over) including Older Mental Ill,Learning Dis Commissioning,Social Care - Homecare,21/10/2015,3536194,"1,036.60",COMMUNITY CARE CONSORTIUM
Adults Services,Adult Social Care,Older People (Aged 65 or over) including Older Mental Ill,Learning Dis Commissioning,Social Care - Homecare,21/10/2015,3536195,"1,022.00",COMMUNITY CARE CONSORTIUM
Adults Services,Adult Social Care,Older People (Aged 65 or over) including Older Mental Ill,Older People Commissioning,Social Care - Homecare,21/10/2015,3536196,817.60,COMMUNITY CARE CONSORTIUM
Adults Services,Adult Social Care,Older People (Aged 65 or over) including Older Mental Ill,Older People Commissioning,Social Care - Homecare,21/10/2015,3536197,781.10,COMMUNITY CARE CONSORTIUM
Adults Services,Adult Social Care,Older People (Aged 65 or over) including Older Mental Ill,Physical Dis Commissioning,Social Care - Homecare,21/10/2015,3536198,737.30,COMMUNITY CARE CONSORTIUM
Adults Services,Adult Social Care,Older People (Aged 65 or over) including Older Mental Ill,Older People Commissioning,Social Care - Homecare,21/10/2015,3536199,715.40,COMMUNITY CARE CONSORTIUM
Adults Services,Adult Social Care,Older People (Aged 65 or over) including Older Mental Ill,Learning Dis Commissioning,Social Care - Homecare,21/10/2015,3536200,700.80,COMMUNITY CARE CONSORTIUM
Adults Services,Adult Social Care,Older People (Aged 65 or over) including Older Mental Ill,Learning Dis Commissioning,Social Care - Homecare,21/10/2015,3536201,671.60,COMMUNITY CARE CONSORTIUM
Adults Services,Adult Social Care,Older People (Aged 65 or over) including Older Mental Ill,Older People Commissioning,Social Care - Homecare,21/10/2015,3536202,627.80,COMMUNITY CARE CONSORTIUM
Adults Services,Adult Social Care,Older People (Aged 65 or over) including Older Mental Ill,Older People Commissioning,Social Care - Homecare,21/10/2015,3536203,620.50,COMMUNITY CARE CONSORTIUM
Adults Services,Adult Social Care,Older People (Aged 65 or over) including Older Mental Ill,Learning Dis Commissioning,Social Care - Homecare,21/10/2015,3536204,613.20,COMMUNITY CARE CONSORTIUM
Adults Services,Adult Social Care,Older People (Aged 65 or over) including Older Mental Ill,Learning Dis Commissioning,Social Care - Homecare,21/10/2015,3536205,598.60,COMMUNITY CARE CONSORTIUM
Adults Services,Adult Social Care,Older People (Aged 65 or over) including Older Mental Ill,Physical Dis Commissioning,Social Care - Homecare,21/10/2015,3536206,598.60,COMMUNITY CARE CONSORTIUM
Adults Services,Adult Social Care,Older People (Aged 65 or over) including Older Mental Ill,Older People Commissioning,Social Care - Homecare,21/10/2015,3536207,591.30,COMMUNITY CARE CONSORTIUM
Adults Services,Adult Social Care,Older People (Aged 65 or over) including Older Mental Ill,Learning Dis Commissioning,Social Care - Homecare,21/10/2015,3536208,584.00,COMMUNITY CARE CONSORTIUM
Adults Services,Adult Social Care,Older People (Aged 65 or over) including Older Mental Ill,Learning Dis Commissioning,Social Care - Homecare,21/10/2015,3536209,584.00,COMMUNITY CARE CONSORTIUM
Adults Services,Adult Social Care,Older People (Aged 65 or over) including Older Mental Ill,Older People Commissioning,Social Care - Homecare,21/10/2015,3536210,569.40,COMMUNITY CARE CONSORTIUM
Adults Services,Adult Social Care,Older People (Aged 65 or over) including Older Mental Ill,Older People Commissioning,Social Care - Homecare,21/10/2015,3536211,525.60,COMMUNITY CARE CONSORTIUM
Adults Services,Adult Social Care,Older People (Aged 65 or over) including Older Mental Ill,Older People Commissioning,Social Care - Homecare,21/10/2015,3536268,"1,883.40",COMMUNITY CARE CONSORTIUM
Adults Services,Adult Social Care,Older People (Aged 65 or over) including Older Mental Ill,Older People Commissioning,Social Care - Personal Budgets - Non-Trad Service,21/10/2015,3536269,"1,547.60",COMMUNITY CARE CONSORTIUM
Adults Services,Adult Social Care,Older People (Aged 65 or over) including Older Mental Ill,Older People Commissioning,Social Care - Homecare,21/10/2015,3536270,"1,533.00",COMMUNITY CARE CONSORTIUM
Adults Services,Adult Social Care,Older People (Aged 65 or over) including Older Mental Ill,Mental Health Commissioning,Social Care - Personal Budgets - Non-Trad Service,21/10/2015,3536271,"1,226.40",COMMUNITY CARE CONSORTIUM
Adults Services,Adult Social Care,Older People (Aged 65 or over) including Older Mental Ill,Older People Commissioning,Social Care - Homecare,21/10/2015,3536272,"1,095.00",COMMUNITY CARE CONSORTIUM
Adults Services,Adult Social Care,Older People (Aged 65 or over) including Older Mental Ill,Learning Dis Commissioning,Social Care - Homecare,21/10/2015,3536273,"1,036.60",COMMUNITY CARE CONSORTIUM
Adults Services,Adult Social Care,Older People (Aged 65 or over) including Older Mental Ill,Learning Dis Commissioning,Social Care - Homecare,21/10/2015,3536274,"1,022.00",COMMUNITY CARE CONSORTIUM
Adults Services,Adult Social Care,Older People (Aged 65 or over) including Older Mental Ill,Older People Commissioning,Social Care - Homecare,21/10/2015,3536275,817.60,COMMUNITY CARE CONSORTIUM
Adults Services,Adult Social Care,Older People (Aged 65 or over) including Older Mental Ill,Older People Commissioning,Social Care - Homecare,21/10/2015,3536276,781.10,COMMUNITY CARE CONSORTIUM
Adults Services,Adult Social Care,Older People (Aged 65 or over) including Older Mental Ill,Learning Dis Commissioning,Social Care - Homecare,21/10/2015,3536277,730.00,COMMUNITY CARE CONSORTIUM
Adults Services,Adult Social Care,Older People (Aged 65 or over) including Older Mental Ill,Physical Dis Commissioning,Social Care - Homecare,21/10/2015,3536278,726.35,COMMUNITY CARE CONSORTIUM
Adults Services,Adult Social Care,Older People (Aged 65 or over) including Older Mental Ill,Older People Commissioning,Social Care - Homecare,21/10/2015,3536279,715.40,COMMUNITY CARE CONSORTIUM
Adults Services,Adult Social Care,Older People (Aged 65 or over) including Older Mental Ill,Learning Dis Commissioning,Social Care - Homecare,21/10/2015,3536280,700.80,COMMUNITY CARE CONSORTIUM
Adults Services,Adult Social Care,Older People (Aged 65 or over) including Older Mental Ill,Older People Commissioning,Social Care - Homecare,21/10/2015,3536281,627.80,COMMUNITY CARE CONSORTIUM
Adults Services,Adult Social Care,Older People (Aged 65 or over) including Older Mental Ill,Older People Commissioning,Social Care - Homecare,21/10/2015,3536282,620.50,COMMUNITY CARE CONSORTIUM
Adults Services,Adult Social Care,Older People (Aged 65 or over) including Older Mental Ill,Learning Dis Commissioning,Social Care - Homecare,21/10/2015,3536283,613.20,COMMUNITY CARE CONSORTIUM
Adults Services,Adult Social Care,Older People (Aged 65 or over) including Older Mental Ill,Learning Dis Commissioning,Social Care - Homecare,21/10/2015,3536284,613.20,COMMUNITY CARE CONSORTIUM
Adults Services,Adult Social Care,Older People (Aged 65 or over) including Older Mental Ill,Learning Dis Commissioning,Social Care - Homecare,21/10/2015,3536285,598.60,COMMUNITY CARE CONSORTIUM
Adults Services,Adult Social Care,Older People (Aged 65 or over) including Older Mental Ill,Physical Dis Commissioning,Social Care - Homecare,21/10/2015,3536286,598.60,COMMUNITY CARE CONSORTIUM
Adults Services,Adult Social Care,Older People (Aged 65 or over) including Older Mental Ill,Older People Commissioning,Social Care - Homecare,21/10/2015,3536287,591.30,COMMUNITY CARE CONSORTIUM
Adults Services,Adult Social Care,Older People (Aged 65 or over) including Older Mental Ill,Learning Dis Commissioning,Social Care - Homecare,21/10/2015,3536288,584.00,COMMUNITY CARE CONSORTIUM
Adults Services,Adult Social Care,Older People (Aged 65 or over) including Older Mental Ill,Physical Dis Commissioning,Social Care - Homecare,21/10/2015,3536289,576.70,COMMUNITY CARE CONSORTIUM
Adults Services,Adult Social Care,Older People (Aged 65 or over) including Older Mental Ill,Older People Commissioning,Social Care - Homecare,21/10/2015,3536290,569.40,COMMUNITY CARE CONSORTIUM
Adults Services,Adult Social Care,Older People (Aged 65 or over) including Older Mental Ill,Older People Commissioning,Social Care - Homecare,21/10/2015,3536291,525.60,COMMUNITY CARE CONSORTIUM
Adults Services,Adult Social Care,Older People (Aged 65 or over) including Older Mental Ill,Learning Dis Commissioning,Social Care - Homecare,21/10/2015,3536292,525.60,COMMUNITY CARE CONSORTIUM
Adults Services,Adult Social Care,Older People (Aged 65 or over) including Older Mental Ill,Older People Commissioning,Social Care - Homecare,21/10/2015,3536350,"1,941.80",COMMUNITY CARE CONSORTIUM
